SERVICE_CODE,ORGANISATION_UNIT,EXPENDITURE_CATEGORY,EXPENDITURE_DESCRIPTION,EXPENDITURE_CODE,NARRATIVE,DATE,TRANSATION_CODE,NET_AMOUNT,SUPPLIER_CODE,SUPPLIER_NAME,FROM_DATE,TO_DATE,FINANCIAL_PERIOD_YEAR
,LEE VALLEY WATERWORKS CENTRE,PREMISES RELATED EXPENDITURE,GM MAIN CONTRACT SCHEDULED,2141,GM CORE-FEB24/FLYTIP,13/03/2024 00:00,283110,135.34,GL0214,GLENDALE GROUNDS MANAGEMENT LIMITED,26/02/2024 00:00,31/03/2024 00:00,P12-2024
P&V,LEE VALLEY FARM HOLYFIELDHALL,PREMISES RELATED EXPENDITURE,GM MAIN CONTRACT SCHEDULED,2141,GM CORE-FEB24/FLYTIP,13/03/2024 00:00,283110,76.23,GL0214,GLENDALE GROUNDS MANAGEMENT LIMITED,26/02/2024 00:00,31/03/2024 00:00,P12-2024
P&V,EAST INDIA DOCK AND BOW CREEK,PREMISES RELATED EXPENDITURE,GM MAIN CONTRACT SCHEDULED,2141,GM CORE-FEB24/FLYTIP,13/03/2024 00:00,283110,432.85,GL0214,GLENDALE GROUNDS MANAGEMENT LIMITED,26/02/2024 00:00,31/03/2024 00:00,P12-2024
P&V,EAST INDIA DOCK AND BOW CREEK,PREMISES RELATED EXPENDITURE,GM MAIN CONTRACT SCHEDULED,2141,GM CORE-FEB24/FLYTIP,13/03/2024 00:00,283110,483.37,GL0214,GLENDALE GROUNDS MANAGEMENT LIMITED,26/02/2024 00:00,31/03/2024 00:00,P12-2024
P&V,NORTH AREA RANGERS,PREMISES RELATED EXPENDITURE,GM MAIN CONTRACT SCHEDULED,2141,GM CORE-FEB24/FLYTIP,13/03/2024 00:00,283110,2886.54,GL0214,GLENDALE GROUNDS MANAGEMENT LIMITED,26/02/2024 00:00,31/03/2024 00:00,P12-2024
P&V,SOUTH AREA RANGERS,PREMISES RELATED EXPENDITURE,GM MAIN CONTRACT SCHEDULED,2141,GM CORE-FEB24/FLYTIP,13/03/2024 00:00,283110,193.35,GL0214,GLENDALE GROUNDS MANAGEMENT LIMITED,26/02/2024 00:00,31/03/2024 00:00,P12-2024
P&V,SOUTH AREA RANGERS,PREMISES RELATED EXPENDITURE,GM MAIN CONTRACT SCHEDULED,2141,GM CORE-FEB24/FLYTIP,13/03/2024 00:00,283110,3338.71,GL0214,GLENDALE GROUNDS MANAGEMENT LIMITED,26/02/2024 00:00,31/03/2024 00:00,P12-2024
P&V,ABBEY GARDENS,PREMISES RELATED EXPENDITURE,GM MAIN CONTRACT SCHEDULED,2141,GM CORE-FEB24/FLYTIP,13/03/2024 00:00,283110,1474.52,GL0214,GLENDALE GROUNDS MANAGEMENT LIMITED,26/02/2024 00:00,31/03/2024 00:00,P12-2024
P&V,GUNPOWDER PARK,PREMISES RELATED EXPENDITURE,GM MAIN CONTRACT SCHEDULED,2141,GM CORE-FEB24/FLYTIP,13/03/2024 00:00,283110,1451.76,GL0214,GLENDALE GROUNDS MANAGEMENT LIMITED,26/02/2024 00:00,31/03/2024 00:00,P12-2024
P&V,RIVER LEE COUNTRY PARK,PREMISES RELATED EXPENDITURE,GM MAIN CONTRACT SCHEDULED,2141,GM CORE-FEB24/FLYTIP,13/03/2024 00:00,283110,8489.76,GL0214,GLENDALE GROUNDS MANAGEMENT LIMITED,26/02/2024 00:00,31/03/2024 00:00,P12-2024
P&V,RIVER LEE COUNTRY PARK,PREMISES RELATED EXPENDITURE,GM MAIN CONTRACT SCHEDULED,2141,GM CORE-FEB24/FLYTIP,13/03/2024 00:00,283110,96.67,GL0214,GLENDALE GROUNDS MANAGEMENT LIMITED,26/02/2024 00:00,31/03/2024 00:00,P12-2024
,LEE VALLEY VELOPARK,PREMISES RELATED EXPENDITURE,GM MAIN CONTRACT SCHEDULED,2141,GM CORE-FEB24/FLYTIP,13/03/2024 00:00,283110,3689.34,GL0214,GLENDALE GROUNDS MANAGEMENT LIMITED,26/02/2024 00:00,31/03/2024 00:00,P12-2024
,LV HOCKEY AND TENNIS CENTRE,PREMISES RELATED EXPENDITURE,GM MAIN CONTRACT SCHEDULED,2141,GM CORE-FEB24/FLYTIP,13/03/2024 00:00,283110,2262.58,GL0214,GLENDALE GROUNDS MANAGEMENT LIMITED,26/02/2024 00:00,31/03/2024 00:00,P12-2024
P&V,THREE MILLS,PREMISES RELATED EXPENDITURE,GM MAIN CONTRACT SCHEDULED,2141,GM CORE-FEB24/FLYTIP,13/03/2024 00:00,283110,826.92,GL0214,GLENDALE GROUNDS MANAGEMENT LIMITED,26/02/2024 00:00,31/03/2024 00:00,P12-2024
,LEE VALLEY RIDING CENTRE,PREMISES RELATED EXPENDITURE,GM MAIN CONTRACT SCHEDULED,2141,GM CORE-FEB24/FLYTIP,13/03/2024 00:00,283110,286.76,GL0214,GLENDALE GROUNDS MANAGEMENT LIMITED,26/02/2024 00:00,31/03/2024 00:00,P12-2024
,LEE VALLEY ICE CENTRE,PREMISES RELATED EXPENDITURE,GM MAIN CONTRACT SCHEDULED,2141,GM CORE-FEB24/FLYTIP,13/03/2024 00:00,283110,461.99,GL0214,GLENDALE GROUNDS MANAGEMENT LIMITED,26/02/2024 00:00,31/03/2024 00:00,P12-2024
P&V,FORMER LV LIDO SITE,PREMISES RELATED EXPENDITURE,GM MAIN CONTRACT SCHEDULED,2141,GM CORE-FEB24/FLYTIP,13/03/2024 00:00,283110,566.45,GL0214,GLENDALE GROUNDS MANAGEMENT LIMITED,26/02/2024 00:00,31/03/2024 00:00,P12-2024
,LEE VALLEY ATHLETICS CENTRE,PREMISES RELATED EXPENDITURE,GM MAIN CONTRACT SCHEDULED,2141,GM CORE-FEB24/FLYTIP,13/03/2024 00:00,283110,342.66,GL0214,GLENDALE GROUNDS MANAGEMENT LIMITED,26/02/2024 00:00,31/03/2024 00:00,P12-2024
,LEE VALLEY WHITE WATER CENTRE,PREMISES RELATED EXPENDITURE,GM MAIN CONTRACT SCHEDULED,2141,GM CORE-FEB24/FLYTIP,13/03/2024 00:00,283110,1781.46,GL0214,GLENDALE GROUNDS MANAGEMENT LIMITED,26/02/2024 00:00,31/03/2024 00:00,P12-2024
P&V,SOUTH AREA RANGERS,PREMISES RELATED EXPENDITURE,GM MAIN CONTRACT UNSCHEDULED,2142,GM CORE-FEB24/FLYTIP,13/03/2024 00:00,283110,495.87,GL0214,GLENDALE GROUNDS MANAGEMENT LIMITED,26/02/2024 00:00,31/03/2024 00:00,P12-2024
,LEE VALLEY WATERWORKS CENTRE,PREMISES RELATED EXPENDITURE,GM HORTICULTURE SCHEDULED,2143,GM CORE-FEB24/FLYTIP,13/03/2024 00:00,283110,86.56,GL0214,GLENDALE GROUNDS MANAGEMENT LIMITED,26/02/2024 00:00,31/03/2024 00:00,P12-2024
P&V,NORTH AREA RANGERS,PREMISES RELATED EXPENDITURE,GM HORTICULTURE SCHEDULED,2143,GM CORE-FEB24/FLYTIP,13/03/2024 00:00,283110,127.58,GL0214,GLENDALE GROUNDS MANAGEMENT LIMITED,26/02/2024 00:00,31/03/2024 00:00,P12-2024
P&V,SOUTH AREA RANGERS,PREMISES RELATED EXPENDITURE,GM HORTICULTURE SCHEDULED,2143,GM CORE-FEB24/FLYTIP,13/03/2024 00:00,283110,73.78,GL0214,GLENDALE GROUNDS MANAGEMENT LIMITED,26/02/2024 00:00,31/03/2024 00:00,P12-2024
P&V,ABBEY GARDENS,PREMISES RELATED EXPENDITURE,GM HORTICULTURE SCHEDULED,2143,GM CORE-FEB24/FLYTIP,13/03/2024 00:00,283110,1005.46,GL0214,GLENDALE GROUNDS MANAGEMENT LIMITED,26/02/2024 00:00,31/03/2024 00:00,P12-2024
P&V,GUNPOWDER PARK,PREMISES RELATED EXPENDITURE,GM HORTICULTURE SCHEDULED,2143,GM CORE-FEB24/FLYTIP,13/03/2024 00:00,283110,131.99,GL0214,GLENDALE GROUNDS MANAGEMENT LIMITED,26/02/2024 00:00,31/03/2024 00:00,P12-2024
P&V,RIVER LEE COUNTRY PARK,PREMISES RELATED EXPENDITURE,GM HORTICULTURE SCHEDULED,2143,GM CORE-FEB24/FLYTIP,13/03/2024 00:00,283110,68.49,GL0214,GLENDALE GROUNDS MANAGEMENT LIMITED,26/02/2024 00:00,31/03/2024 00:00,P12-2024
,LEE VALLEY VELOPARK,PREMISES RELATED EXPENDITURE,GM HORTICULTURE SCHEDULED,2143,GM CORE-FEB24/FLYTIP,13/03/2024 00:00,283110,587.09,GL0214,GLENDALE GROUNDS MANAGEMENT LIMITED,26/02/2024 00:00,31/03/2024 00:00,P12-2024
,LV HOCKEY AND TENNIS CENTRE,PREMISES RELATED EXPENDITURE,GM HORTICULTURE SCHEDULED,2143,GM CORE-FEB24/FLYTIP,13/03/2024 00:00,283110,845.45,GL0214,GLENDALE GROUNDS MANAGEMENT LIMITED,26/02/2024 00:00,31/03/2024 00:00,P12-2024
P&V,THREE MILLS,PREMISES RELATED EXPENDITURE,GM HORTICULTURE SCHEDULED,2143,GM CORE-FEB24/FLYTIP,13/03/2024 00:00,283110,27.44,GL0214,GLENDALE GROUNDS MANAGEMENT LIMITED,26/02/2024 00:00,31/03/2024 00:00,P12-2024
,LEE VALLEY RIDING CENTRE,PREMISES RELATED EXPENDITURE,GM HORTICULTURE SCHEDULED,2143,GM CORE-FEB24/FLYTIP,13/03/2024 00:00,283110,6.86,GL0214,GLENDALE GROUNDS MANAGEMENT LIMITED,26/02/2024 00:00,31/03/2024 00:00,P12-2024
P&V,FORMER LV LIDO SITE,PREMISES RELATED EXPENDITURE,GM HORTICULTURE SCHEDULED,2143,GM CORE-FEB24/FLYTIP,13/03/2024 00:00,283110,6.54,GL0214,GLENDALE GROUNDS MANAGEMENT LIMITED,26/02/2024 00:00,31/03/2024 00:00,P12-2024
,LEE VALLEY WHITE WATER CENTRE,PREMISES RELATED EXPENDITURE,GM HORTICULTURE SCHEDULED,2143,GM CORE-FEB24/FLYTIP,13/03/2024 00:00,283110,14.98,GL0214,GLENDALE GROUNDS MANAGEMENT LIMITED,26/02/2024 00:00,31/03/2024 00:00,P12-2024
P&V,RIVER LEE COUNTRY PARK,PREMISES RELATED EXPENDITURE,GM ARBORICULTURE SCHEDULED,2145,P124494-SERVICE-28x Fruit Trees,12/03/2024 00:00,283315,468,EA0180,EAST OF ENGLAND APPLES & ORCHARDS PROJECT,26/02/2024 00:00,31/03/2024 00:00,P12-2024
P&V,RIVER LEE COUNTRY PARK,PREMISES RELATED EXPENDITURE,GM ARBORICULTURE SCHEDULED,2145,P124494-SERVICE-Delivery,12/03/2024 00:00,283315,74,EA0180,EAST OF ENGLAND APPLES & ORCHARDS PROJECT,26/02/2024 00:00,31/03/2024 00:00,P12-2024
P&V,NORTH AREA RANGERS,PREMISES RELATED EXPENDITURE,GM ARBORICULTURE UNSCHEDULED,2146,P125407-SERVICE-Tree Works at Glen Faba,31/03/2024 00:00,283994,925,VE0004,PRINCIPAL TREES LTD,26/02/2024 00:00,31/03/2024 00:00,P12-2024
P&V,NORTH AREA RANGERS,PREMISES RELATED EXPENDITURE,GM ARBORICULTURE UNSCHEDULED,2146,P125265-SERVICE-Tree Works at Roydon Road,31/03/2024 00:00,284147,2220,VE0004,PRINCIPAL TREES LTD,26/02/2024 00:00,31/03/2024 00:00,P12-2024
P&V,SOUTH AREA RANGERS,PREMISES RELATED EXPENDITURE,GM ARBORICULTURE UNSCHEDULED,2146,P125030-SERVICE-Tree Works at Walthamstow Marshes,05/03/2024 00:00,282959,2175,PA0222,PARKIN & PARKER TREE SPECIALISTS,26/02/2024 00:00,31/03/2024 00:00,P12-2024
P&V,SOUTH AREA RANGERS,PREMISES RELATED EXPENDITURE,GM ARBORICULTURE UNSCHEDULED,2146,P125525-SERVICE-Tree Woks at Lee Park Way,31/03/2024 00:00,284314,550,PA0222,PARKIN & PARKER TREE SPECIALISTS,26/02/2024 00:00,31/03/2024 00:00,P12-2024
P&V,GUNPOWDER PARK,PREMISES RELATED EXPENDITURE,GM ARBORICULTURE UNSCHEDULED,2146,P125454-SERVICE-Emergency Tree Works at Gunpowder Park,31/03/2024 00:00,284315,495,PA0222,PARKIN & PARKER TREE SPECIALISTS,26/02/2024 00:00,31/03/2024 00:00,P12-2024
P&V,RIVER LEE COUNTRY PARK,PREMISES RELATED EXPENDITURE,GM ARBORICULTURE UNSCHEDULED,2146,P124328-SERVICE-Tree Works - Disc Golf & Tow Path,05/03/2024 00:00,282491,4300,VE0004,PRINCIPAL TREES LTD,26/02/2024 00:00,31/03/2024 00:00,P12-2024
P&V,RIVER LEE COUNTRY PARK,PREMISES RELATED EXPENDITURE,GM ARBORICULTURE UNSCHEDULED,2146,P125105-SERVICE-Emergency Tree Works at Cadmore Lane,31/03/2024 00:00,283995,195,VE0004,PRINCIPAL TREES LTD,26/02/2024 00:00,31/03/2024 00:00,P12-2024
P&V,RIVER LEE COUNTRY PARK,PREMISES RELATED EXPENDITURE,GM ARBORICULTURE UNSCHEDULED,2146,P120621-SERVICE-Tree Works - White Water Centre Tow Path,31/03/2024 00:00,283996,2425,VE0004,PRINCIPAL TREES LTD,26/02/2024 00:00,31/03/2024 00:00,P12-2024
P&V,RIVER LEE COUNTRY PARK,PREMISES RELATED EXPENDITURE,GM ARBORICULTURE UNSCHEDULED,2146,P124939-SERVICE-Tree Works Fishers Green Sailing Club Track,31/03/2024 00:00,284149,425,VE0004,PRINCIPAL TREES LTD,26/02/2024 00:00,31/03/2024 00:00,P12-2024
P&V,RIVER LEE COUNTRY PARK,PREMISES RELATED EXPENDITURE,GM ARBORICULTURE UNSCHEDULED,2146,P124935-SERVICE-Tree Works at Friday Lake,31/03/2024 00:00,284150,1600,VE0004,PRINCIPAL TREES LTD,26/02/2024 00:00,31/03/2024 00:00,P12-2024
P&V,RIVER LEE COUNTRY PARK,PREMISES RELATED EXPENDITURE,GM ARBORICULTURE UNSCHEDULED,2146,P124860-SERVICE-Tree Works at Nightingale Woods,31/03/2024 00:00,284151,980,VE0004,PRINCIPAL TREES LTD,26/02/2024 00:00,31/03/2024 00:00,P12-2024
P&V,RIVER LEE COUNTRY PARK,PREMISES RELATED EXPENDITURE,GM ARBORICULTURE UNSCHEDULED,2146,P124936-SERVICE-Tree Works at Green Lanes,31/03/2024 00:00,284152,1825,VE0004,PRINCIPAL TREES LTD,26/02/2024 00:00,31/03/2024 00:00,P12-2024
P&V,RIVER LEE COUNTRY PARK,PREMISES RELATED EXPENDITURE,GM ARBORICULTURE UNSCHEDULED,2146,P124919-SERVICE-Tree Works at Britannia Meadows,31/03/2024 00:00,284153,5580,VE0004,PRINCIPAL TREES LTD,26/02/2024 00:00,31/03/2024 00:00,P12-2024
P&V,SOUTH AREA RANGERS,PREMISES RELATED EXPENDITURE,GM NON MAIN CONT UNSCHEDULED,2147,P125098-SERVICE-Lea Bridge Road Underpass - Gullies,13/03/2024 00:00,283412,552,CO0550,CONVERT WATER LTD,26/02/2024 00:00,31/03/2024 00:00,P12-2024
P&V,SOUTH AREA RANGERS,PREMISES RELATED EXPENDITURE,GM NON MAIN CONT UNSCHEDULED,2147,P125302-SERVICE-Welding Manhole Cover at Waterworks Nature Re,31/03/2024 00:00,284196,1060,RE0094,REACT 2 IT (BUILDING & REFURBISHMENT) LTD,26/02/2024 00:00,31/03/2024 00:00,P12-2024
P&V,GUNPOWDER PARK,PREMISES RELATED EXPENDITURE,GM NON MAIN CONT UNSCHEDULED,2147,P125570-SERVICE-Boardwalk Repairs at Gunpowder Park,31/03/2024 00:00,284376,350,JO0019,R G JOYCE,26/02/2024 00:00,31/03/2024 00:00,P12-2024
P&V,THREE MILLS,PREMISES RELATED EXPENDITURE,GM NON MAIN CONT UNSCHEDULED,2147,P121492-SERVICE-Annual Playground Equipment Inspection at Thr,12/03/2024 00:00,283208,290,PL0436,THE PLAY INSPECTION COMPANY,26/02/2024 00:00,31/03/2024 00:00,P12-2024
P&V,NORTH AREA RANGERS,PREMISES RELATED EXPENDITURE,HABITAT MANAGEMENT WORKS,2149,"P125117-SERVICE-Flailing Works, North of the Park",13/03/2024 00:00,283354,5925,SA0691,SAMUEL BACON T/A ACORN SERVICES (HERTS) LTD,26/02/2024 00:00,31/03/2024 00:00,P12-2024
P&V,SOUTH AREA RANGERS,PREMISES RELATED EXPENDITURE,HABITAT MANAGEMENT WORKS,2149,P125027-SERVICE-Emergency Tree Works at Middlesex Filter Beds,12/03/2024 00:00,282874,1000,PA0222,PARKIN & PARKER TREE SPECIALISTS,26/02/2024 00:00,31/03/2024 00:00,P12-2024
P&V,SOUTH AREA RANGERS,PREMISES RELATED EXPENDITURE,HABITAT MANAGEMENT WORKS,2149,P123886-SERVICE-Middlesex Filter Beds - Bed Landscape,12/03/2024 00:00,283139,3000,BU0090,BUSH WHEELER SERVICES LTD,26/02/2024 00:00,31/03/2024 00:00,P12-2024
P&V,RIVER LEE COUNTRY PARK,PREMISES RELATED EXPENDITURE,HABITAT MANAGEMENT WORKS,2149,P125176-SERVICE-Flailing - Cornmill Meadows Tree Park,31/03/2024 00:00,283223,300,BU0090,BUSH WHEELER SERVICES LTD,26/02/2024 00:00,31/03/2024 00:00,P12-2024
,LEE VALLEY MARINA SPRINGFIELD,PREMISES RELATED EXPENDITURE,GENERAL WASTE,2211,"P124866-SERVICE-General Waste & Recyling Jan,Feb,March 2024",12/03/2024 00:00,283157,1485.29,CL0037,VEOLIA ES (UK) LTD,26/02/2024 00:00,31/03/2024 00:00,P12-2024
,LEE VALLEY MARINA SPRINGFIELD,PREMISES RELATED EXPENDITURE,GENERAL WASTE,2211,"P124866-SERVICE-General Waste & Recyling Jan,Feb,March 2024",31/03/2024 00:00,284163,1439.04,CL0037,VEOLIA ES (UK) LTD,26/02/2024 00:00,31/03/2024 00:00,P12-2024
,LEE VALLEY CAMPSITE,PREMISES RELATED EXPENDITURE,GENERAL WASTE,2211,P124922-SERVICE-Extra general waste skip feb23,12/03/2024 00:00,283158,165.56,CL0037,VEOLIA ES (UK) LTD,26/02/2024 00:00,31/03/2024 00:00,P12-2024
,LEE VALLEY CAMPSITE,PREMISES RELATED EXPENDITURE,GENERAL WASTE,2211,P124922-SERVICE-Extra general waste skip feb23,31/03/2024 00:00,284166,334.44,CL0037,VEOLIA ES (UK) LTD,26/02/2024 00:00,31/03/2024 00:00,P12-2024
,LEE VALLEY CAMPSITE,PREMISES RELATED EXPENDITURE,GENERAL WASTE,2211,P122977-SERVICE-Skip Collections  Aug- Dec 23,31/03/2024 00:00,284166,46.92,CL0037,VEOLIA ES (UK) LTD,26/02/2024 00:00,31/03/2024 00:00,P12-2024
,LEE VALLEY CARAVAN PARK,PREMISES RELATED EXPENDITURE,GENERAL WASTE,2211,P125281-SERVICE-General waste,12/03/2024 00:00,283156,2134.1,CL0037,VEOLIA ES (UK) LTD,26/02/2024 00:00,31/03/2024 00:00,P12-2024
P&V,NORTH AREA RANGERS,PREMISES RELATED EXPENDITURE,GENERAL WASTE,2211,P124856-SERVICE-Nazeing Fly Tip Removal,05/03/2024 00:00,282842,650,MK0465,M K CLEANING & MAINTENANCE LTD,26/02/2024 00:00,31/03/2024 00:00,P12-2024
P&V,NORTH AREA RANGERS,PREMISES RELATED EXPENDITURE,GENERAL WASTE,2211,P124952-SERVICE-12yd General Rubbish Skip at Holyfield Hall F,12/03/2024 00:00,283164,323.4,GB0239,GBN SERVICES LTD,26/02/2024 00:00,31/03/2024 00:00,P12-2024
P&V,NORTH AREA RANGERS,PREMISES RELATED EXPENDITURE,GENERAL WASTE,2211,P124952-SERVICE-12yd General Rubbish Skip at Holyfield Hall F,27/03/2024 00:00,283925,323.4,GB0239,GBN SERVICES LTD,26/02/2024 00:00,31/03/2024 00:00,P12-2024
P&V,NORTH AREA RANGERS,PREMISES RELATED EXPENDITURE,GENERAL WASTE,2211,P124952-SERVICE-12yd General Rubbish Skip at Holyfield Hall F,31/03/2024 00:00,284116,323.4,GB0239,GBN SERVICES LTD,26/02/2024 00:00,31/03/2024 00:00,P12-2024
P&V,NORTH AREA RANGERS,PREMISES RELATED EXPENDITURE,GENERAL WASTE,2211,P124952-SERVICE-Armchair in the skip,31/03/2024 00:00,284116,50,GB0239,GBN SERVICES LTD,26/02/2024 00:00,31/03/2024 00:00,P12-2024
P&V,SOUTH AREA RANGERS,PREMISES RELATED EXPENDITURE,GENERAL WASTE,2211,P125157-SERVICE-Skip at WaterWorks Centre,05/03/2024 00:00,283066,323.4,GB0239,GBN SERVICES LTD,26/02/2024 00:00,31/03/2024 00:00,P12-2024
P&V,SOUTH AREA RANGERS,PREMISES RELATED EXPENDITURE,GENERAL WASTE,2211,P125157-SERVICE-Skip at WaterWorks Centre,19/03/2024 00:00,283459,323.4,GB0239,GBN SERVICES LTD,26/02/2024 00:00,31/03/2024 00:00,P12-2024
P&V,SOUTH AREA RANGERS,PREMISES RELATED EXPENDITURE,GENERAL WASTE,2211,P125157-SERVICE-Skip at WaterWorks Centre,26/03/2024 00:00,283890,323.4,GB0239,GBN SERVICES LTD,26/02/2024 00:00,31/03/2024 00:00,P12-2024
P&V,SOUTH AREA RANGERS,PREMISES RELATED EXPENDITURE,GENERAL WASTE,2211,P125157-SERVICE-Skip at WaterWorks Centre,27/03/2024 00:00,283926,323.4,GB0239,GBN SERVICES LTD,26/02/2024 00:00,31/03/2024 00:00,P12-2024
P&V,SOUTH AREA RANGERS,PREMISES RELATED EXPENDITURE,GENERAL WASTE,2211,P125627-SERVICE-Skip at WaterWorks Centre,31/03/2024 00:00,284189,323.4,GB0239,GBN SERVICES LTD,26/02/2024 00:00,31/03/2024 00:00,P12-2024
,LV LEISURE CENTRE CAMPSITE,PREMISES RELATED EXPENDITURE,GENERAL WASTE,2211,P124890-SERVICE-Removal of Rubbish and Human Waste,05/03/2024 00:00,282264,495.88,GL0214,GLENDALE GROUNDS MANAGEMENT LIMITED,26/02/2024 00:00,31/03/2024 00:00,P12-2024
CEO,PR/COMMUNICATIONS,EMPLOYEES,APPOINTMENT EXPENSES,1301,P125482-SERVICE-SNR COMMS OFFICER VACANCY COSTS,26/03/2024 00:00,283887,1555,SA0133,SOWERBY ADVERTISING AND COMMUNICATIONS,26/02/2024 00:00,31/03/2024 00:00,P12-2024
P&V,SOUTH AREA RANGERS,EMPLOYEES,APPOINTMENT EXPENSES,1301,P125320-SERVICE-ASST RANGER VACANCY ADVERT CHARGES,19/03/2024 00:00,283640,415,SA0133,SOWERBY ADVERTISING AND COMMUNICATIONS,26/02/2024 00:00,31/03/2024 00:00,P12-2024
P&V,SPORT AND LEISURE,EMPLOYEES,APPOINTMENT EXPENSES,1301,P125375-SERVICE-L&D OFFICER VACANCY COSTS,19/03/2024 00:00,283641,679,SA0133,SOWERBY ADVERTISING AND COMMUNICATIONS,26/02/2024 00:00,31/03/2024 00:00,P12-2024
R&B,CORPORATE TRAINING,EMPLOYEES,TRAINING EXPENSES,1305,P124646-SERVICE-EMERGENCY FIRST AID COURSE 15/02/2024,20/03/2024 00:00,283598,745,RI0053,RIGHT DIRECTIONS (MANAGEMENT) LTD,26/02/2024 00:00,31/03/2024 00:00,P12-2024
R&B,CORPORATE TRAINING,EMPLOYEES,TRAINING EXPENSES,1305,P125440-SERVICE-LADDER TRAINING GARDENS,26/03/2024 00:00,283745,31,HI0455,HIGH SPEED TRAINING LIMITED,26/02/2024 00:00,31/03/2024 00:00,P12-2024
P&V,LEE VALLEY FARM HOLYFIELDHALL,EMPLOYEES,TRAINING EXPENSES,1305,P125171-SERVICE-NRoSO Training,12/03/2024 00:00,283090,75,HA0013,HARLOW AGRICULTURAL MERCHANTS,26/02/2024 00:00,31/03/2024 00:00,P12-2024
,LEE VALLEY CAMPSITE,EMPLOYEES,TRAINING EXPENSES,1305,P125153-SERVICE-Brushcutter Training - Lee Freeman,05/03/2024 00:00,283086,100,SA0137,SAFFRON WALDEN AGRICULTURAL TRAINING GROUP,26/02/2024 00:00,31/03/2024 00:00,P12-2024
,LEE VALLEY CAMPSITE,EMPLOYEES,TRAINING EXPENSES,1305,P125208-SERVICE-SC Staff Training,05/03/2024 00:00,283108,92,GR0097,GREENWICH LEISURE LTD,26/02/2024 00:00,31/03/2024 00:00,P12-2024
,LEE VALLEY CAMPSITE,EMPLOYEES,TRAINING EXPENSES,1305,P125153-SERVICE-Brushcutter Training - Lee Freeman,12/03/2024 00:00,283332,38.75,SA0137,SAFFRON WALDEN AGRICULTURAL TRAINING GROUP,26/02/2024 00:00,31/03/2024 00:00,P12-2024
,LEE VALLEY CARAVAN PARK,EMPLOYEES,TRAINING EXPENSES,1305,P125208-SERVICE-DW Staff Training,05/03/2024 00:00,283108,92,GR0097,GREENWICH LEISURE LTD,26/02/2024 00:00,31/03/2024 00:00,P12-2024
P&V,MYDDELTON HOUSE GARDENS,EMPLOYEES,TRAINING EXPENSES,1305,P125153-SERVICE-Brushcutter Training - Charlie Salmon,05/03/2024 00:00,283086,100,SA0137,SAFFRON WALDEN AGRICULTURAL TRAINING GROUP,26/02/2024 00:00,31/03/2024 00:00,P12-2024
P&V,MYDDELTON HOUSE GARDENS,EMPLOYEES,TRAINING EXPENSES,1305,P125153-SERVICE-Brushcutter Training - Charlie Salmon,12/03/2024 00:00,283332,38.75,SA0137,SAFFRON WALDEN AGRICULTURAL TRAINING GROUP,26/02/2024 00:00,31/03/2024 00:00,P12-2024
P&V,NORTH AREA RANGERS,EMPLOYEES,TRAINING EXPENSES,1305,P125153-SERVICE-Brushcutter Training - Milo Hayes-Colins,05/03/2024 00:00,283086,100,SA0137,SAFFRON WALDEN AGRICULTURAL TRAINING GROUP,26/02/2024 00:00,31/03/2024 00:00,P12-2024
P&V,NORTH AREA RANGERS,EMPLOYEES,TRAINING EXPENSES,1305,P124389-SERVICE-Chainsaw Refresher - February 2024,12/03/2024 00:00,283332,200,SA0137,SAFFRON WALDEN AGRICULTURAL TRAINING GROUP,26/02/2024 00:00,31/03/2024 00:00,P12-2024
P&V,NORTH AREA RANGERS,EMPLOYEES,TRAINING EXPENSES,1305,P125153-SERVICE-Brushcutter Training - Milo Hayes-Colins,12/03/2024 00:00,283332,38.75,SA0137,SAFFRON WALDEN AGRICULTURAL TRAINING GROUP,26/02/2024 00:00,31/03/2024 00:00,P12-2024
P&V,SOUTH AREA RANGERS,EMPLOYEES,TRAINING EXPENSES,1305,P125153-SERVICE-Brushcutter Training - Luke Boyle,05/03/2024 00:00,283086,100,SA0137,SAFFRON WALDEN AGRICULTURAL TRAINING GROUP,26/02/2024 00:00,31/03/2024 00:00,P12-2024
P&V,SOUTH AREA RANGERS,EMPLOYEES,TRAINING EXPENSES,1305,P124389-SERVICE-Chainsaw Refresher - February 2024,12/03/2024 00:00,283332,200,SA0137,SAFFRON WALDEN AGRICULTURAL TRAINING GROUP,26/02/2024 00:00,31/03/2024 00:00,P12-2024
P&V,SOUTH AREA RANGERS,EMPLOYEES,TRAINING EXPENSES,1305,P125153-SERVICE-Brushcutter Training - Luke Boyle,12/03/2024 00:00,283332,38.75,SA0137,SAFFRON WALDEN AGRICULTURAL TRAINING GROUP,26/02/2024 00:00,31/03/2024 00:00,P12-2024
P&V,ALMOST WILD CAMPSITE,EMPLOYEES,TRAINING EXPENSES,1305,P125208-SERVICE-AWC Staff Training,05/03/2024 00:00,283108,92,GR0097,GREENWICH LEISURE LTD,26/02/2024 00:00,31/03/2024 00:00,P12-2024
,LV LEISURE CENTRE CAMPSITE,EMPLOYEES,TRAINING EXPENSES,1305,P125208-SERVICE-EC Staff Training,05/03/2024 00:00,283108,92,GR0097,GREENWICH LEISURE LTD,26/02/2024 00:00,31/03/2024 00:00,P12-2024
,LV LEISURE CENTRE GOLF COURSE,EMPLOYEES,TRAINING EXPENSES,1305,P125208-SERVICE-GY Staff Training,05/03/2024 00:00,283108,92,GR0097,GREENWICH LEISURE LTD,26/02/2024 00:00,31/03/2024 00:00,P12-2024
R&B,NON DISTRIBUTED COSTS,EMPLOYEES,SUPERANNUATION ADDED YEARS,1310,RESIDUAL LIABILITIES,18/03/2024 00:00,283610,4776.77,LO0031,LONDON PENSIONS FUND AUTHORITY,26/02/2024 00:00,31/03/2024 00:00,P12-2024
R&B,NON DISTRIBUTED COSTS,EMPLOYEES,SUPERANNUATION ADDED YEARS,1310,RESIDUAL LIABILITIES,31/03/2024 00:00,284210,4776.77,LO0031,LONDON PENSIONS FUND AUTHORITY,26/02/2024 00:00,31/03/2024 00:00,P12-2024
R&B,HUMAN RESOURCES,EMPLOYEES,CRB CHECKS,1330,DBS CHECK,12/03/2024 00:00,283206,20,DD0119,DUE DILIGENCE CHECKING LIMITED,26/02/2024 00:00,31/03/2024 00:00,P12-2024
R&B,HUMAN RESOURCES,EMPLOYEES,CRB CHECKS,1330,ADMIN FEE,12/03/2024 00:00,283206,18,DD0119,DUE DILIGENCE CHECKING LIMITED,26/02/2024 00:00,31/03/2024 00:00,P12-2024
,LEE VALLEY CAMPSITE,EMPLOYEES,CRB CHECKS,1330,ADMIN FEE,12/03/2024 00:00,283206,18,DD0119,DUE DILIGENCE CHECKING LIMITED,26/02/2024 00:00,31/03/2024 00:00,P12-2024
,LEE VALLEY CAMPSITE,EMPLOYEES,CRB CHECKS,1330,DBS CHECKS,12/03/2024 00:00,283206,20,DD0119,DUE DILIGENCE CHECKING LIMITED,26/02/2024 00:00,31/03/2024 00:00,P12-2024
,LEE VALLEY CAMPSITE,EMPLOYEES,CRB CHECKS,1330,DBS CHECK,31/03/2024 00:00,284425,40,DD0119,DUE DILIGENCE CHECKING LIMITED,26/02/2024 00:00,31/03/2024 00:00,P12-2024
,LEE VALLEY CAMPSITE,EMPLOYEES,CRB CHECKS,1330,ADMIN FEE,31/03/2024 00:00,284425,36,DD0119,DUE DILIGENCE CHECKING LIMITED,26/02/2024 00:00,31/03/2024 00:00,P12-2024
,LEE VALLEY CARAVAN PARK,EMPLOYEES,CRB CHECKS,1330,ADMIN FEE,12/03/2024 00:00,283206,18,DD0119,DUE DILIGENCE CHECKING LIMITED,26/02/2024 00:00,31/03/2024 00:00,P12-2024
,LEE VALLEY CARAVAN PARK,EMPLOYEES,CRB CHECKS,1330,DBS CHECK,12/03/2024 00:00,283206,20,DD0119,DUE DILIGENCE CHECKING LIMITED,26/02/2024 00:00,31/03/2024 00:00,P12-2024
,LEE VALLEY CARAVAN PARK,EMPLOYEES,CRB CHECKS,1330,ADMIN FEE,31/03/2024 00:00,284425,18,DD0119,DUE DILIGENCE CHECKING LIMITED,26/02/2024 00:00,31/03/2024 00:00,P12-2024
,LEE VALLEY CARAVAN PARK,EMPLOYEES,CRB CHECKS,1330,DBS CHECK,31/03/2024 00:00,284425,20,DD0119,DUE DILIGENCE CHECKING LIMITED,26/02/2024 00:00,31/03/2024 00:00,P12-2024
P&V,YOUTH AND SCHOOLS,EMPLOYEES,CRB CHECKS,1330,DBS CHECK,12/03/2024 00:00,283206,38,DD0119,DUE DILIGENCE CHECKING LIMITED,26/02/2024 00:00,31/03/2024 00:00,P12-2024
P&V,YOUTH AND SCHOOLS,EMPLOYEES,CRB CHECKS,1330,ADMIN FEE,12/03/2024 00:00,283206,20,DD0119,DUE DILIGENCE CHECKING LIMITED,26/02/2024 00:00,31/03/2024 00:00,P12-2024
P&V,YOUTH AND SCHOOLS,EMPLOYEES,CRB CHECKS,1330,P125708-SERVICE-Enhance disclosure with DBS,31/03/2024 00:00,284424,20,DD0119,DUE DILIGENCE CHECKING LIMITED,26/02/2024 00:00,31/03/2024 00:00,P12-2024
P&V,NORTH AREA RANGERS,EMPLOYEES,CRB CHECKS,1330,DBS CHECK,12/03/2024 00:00,283206,20,DD0119,DUE DILIGENCE CHECKING LIMITED,26/02/2024 00:00,31/03/2024 00:00,P12-2024
P&V,NORTH AREA RANGERS,EMPLOYEES,CRB CHECKS,1330,ADMIN FEE,12/03/2024 00:00,283206,18,DD0119,DUE DILIGENCE CHECKING LIMITED,26/02/2024 00:00,31/03/2024 00:00,P12-2024
P&V,NORTH AREA RANGERS,EMPLOYEES,CRB CHECKS,1330,ADMIN FEE,31/03/2024 00:00,284425,38,DD0119,DUE DILIGENCE CHECKING LIMITED,26/02/2024 00:00,31/03/2024 00:00,P12-2024
P&V,NORTH AREA RANGERS,EMPLOYEES,CRB CHECKS,1330,DBS CHECK,31/03/2024 00:00,284425,20,DD0119,DUE DILIGENCE CHECKING LIMITED,26/02/2024 00:00,31/03/2024 00:00,P12-2024
P&V,WILDLIFE DISCOVERY CENTRE,EMPLOYEES,CRB CHECKS,1330,P125270-SERVICE-DBS Check - WDC Volunteer,12/03/2024 00:00,283205,40,DD0119,DUE DILIGENCE CHECKING LIMITED,26/02/2024 00:00,31/03/2024 00:00,P12-2024
P&V,WILDLIFE DISCOVERY CENTRE,EMPLOYEES,CRB CHECKS,1330,DBS CHECK,12/03/2024 00:00,283206,38,DD0119,DUE DILIGENCE CHECKING LIMITED,26/02/2024 00:00,31/03/2024 00:00,P12-2024
P&V,WILDLIFE DISCOVERY CENTRE,EMPLOYEES,CRB CHECKS,1330,ADMIN FEE,12/03/2024 00:00,283206,20,DD0119,DUE DILIGENCE CHECKING LIMITED,26/02/2024 00:00,31/03/2024 00:00,P12-2024
,LV LEISURE CENTRE CAMPSITE,EMPLOYEES,CRB CHECKS,1330,DBS CHECK,12/03/2024 00:00,283206,20,DD0119,DUE DILIGENCE CHECKING LIMITED,26/02/2024 00:00,31/03/2024 00:00,P12-2024
,LV LEISURE CENTRE CAMPSITE,EMPLOYEES,CRB CHECKS,1330,ADMIN FEE,12/03/2024 00:00,283206,18,DD0119,DUE DILIGENCE CHECKING LIMITED,26/02/2024 00:00,31/03/2024 00:00,P12-2024
,LV LEISURE CENTRE CAMPSITE,EMPLOYEES,CRB CHECKS,1330,DBS CHECK,31/03/2024 00:00,284425,20,DD0119,DUE DILIGENCE CHECKING LIMITED,26/02/2024 00:00,31/03/2024 00:00,P12-2024
,LV LEISURE CENTRE CAMPSITE,EMPLOYEES,CRB CHECKS,1330,ADMIN FEE,31/03/2024 00:00,284425,18,DD0119,DUE DILIGENCE CHECKING LIMITED,26/02/2024 00:00,31/03/2024 00:00,P12-2024
P&V,ACTIVE COMMUNTIES PROJECTS,EMPLOYEES,CRB CHECKS,1330,ADMIN FEE,31/03/2024 00:00,284425,36,DD0119,DUE DILIGENCE CHECKING LIMITED,26/02/2024 00:00,31/03/2024 00:00,P12-2024
P&V,ACTIVE COMMUNTIES PROJECTS,EMPLOYEES,CRB CHECKS,1330,DBS CHECK,31/03/2024 00:00,284425,40,DD0119,DUE DILIGENCE CHECKING LIMITED,26/02/2024 00:00,31/03/2024 00:00,P12-2024
R&B,HUMAN RESOURCES,EMPLOYEES,DRIVING LICENCE CHECKS,1335,M VARTUCA DRIVING LICENCE CHECK,12/03/2024 00:00,283292,6.25,FI0288,FIRST ADVANTAGE EUROPE LTD,26/02/2024 00:00,31/03/2024 00:00,P12-2024
P&V,SPORT AND LEISURE,EMPLOYEES,DRIVING LICENCE CHECKS,1335,HR-KYP DRIVING LICENCE DATA FEE,31/03/2024 00:00,284469,6.25,FI0288,FIRST ADVANTAGE EUROPE LTD,26/02/2024 00:00,31/03/2024 00:00,P12-2024
R&B,CORPORATE TRAINING,EMPLOYEES,APPRENTICE LEVY,1390,PAYE,13/03/2024 00:00,283375,1084,HM0368,HMRC,26/02/2024 00:00,31/03/2024 00:00,P12-2024
,LEE VALLEY MARINA SPRINGFIELD,PREMISES RELATED EXPENDITURE,SCHEDULED GROUND MAINTENANCE,2111,P125119-SERVICE-Hire 12 Yard Skip,05/03/2024 00:00,283079,344.5,OD0010,O'DONOVAN (WASTE DISPOSAL) LTD,26/02/2024 00:00,31/03/2024 00:00,P12-2024
,LEE VALLEY MARINA SPRINGFIELD,PREMISES RELATED EXPENDITURE,SCHEDULED GROUND MAINTENANCE,2111,P124130-SERVICE-To carry out quote QT00277,05/03/2024 00:00,283083,736,BR0018,BRADSHAW ELECTRICAL LIMITED,26/02/2024 00:00,31/03/2024 00:00,P12-2024
,LEE VALLEY MARINA SPRINGFIELD,PREMISES RELATED EXPENDITURE,SCHEDULED GROUND MAINTENANCE,2111,P125216-SERVICE-1 x 12 yard skip exchange,19/03/2024 00:00,283333,344.5,OD0010,O'DONOVAN (WASTE DISPOSAL) LTD,26/02/2024 00:00,31/03/2024 00:00,P12-2024
,LEE VALLEY MARINA SPRINGFIELD,PREMISES RELATED EXPENDITURE,SCHEDULED GROUND MAINTENANCE,2111,P125216-SERVICE-1 x new 12 yard skip,19/03/2024 00:00,283333,344.5,OD0010,O'DONOVAN (WASTE DISPOSAL) LTD,26/02/2024 00:00,31/03/2024 00:00,P12-2024
,LEE VALLEY MARINA SPRINGFIELD,PREMISES RELATED EXPENDITURE,SCHEDULED GROUND MAINTENANCE,2111,P125216-SERVICE-Additional charge for non conforming item,19/03/2024 00:00,283333,40,OD0010,O'DONOVAN (WASTE DISPOSAL) LTD,26/02/2024 00:00,31/03/2024 00:00,P12-2024
,LEE VALLEY MARINA STANSTEAD,PREMISES RELATED EXPENDITURE,SCHEDULED GROUND MAINTENANCE,2111,P121961-SERVICE-annual bin pick ups for RH and SA TOP UP,06/03/2024 00:00,283153,234.66,CL0037,VEOLIA ES (UK) LTD,26/02/2024 00:00,31/03/2024 00:00,P12-2024
,LEE VALLEY MARINA STANSTEAD,PREMISES RELATED EXPENDITURE,SCHEDULED GROUND MAINTENANCE,2111,P121961-SERVICE-annual bin pick ups for RH and SA TOP UP,06/03/2024 00:00,283159,931.51,CL0037,VEOLIA ES (UK) LTD,26/02/2024 00:00,31/03/2024 00:00,P12-2024
CEO,LVLC SERVICE CHARGE,PREMISES RELATED EXPENDITURE,SCHEDULED GROUND MAINTENANCE,2111,GM CORE-FEB24/FLYTIP,13/03/2024 00:00,283110,56.16,GL0214,GLENDALE GROUNDS MANAGEMENT LIMITED,26/02/2024 00:00,31/03/2024 00:00,P12-2024
CEO,LVLC SERVICE CHARGE,PREMISES RELATED EXPENDITURE,SCHEDULED GROUND MAINTENANCE,2111,GM CORE-FEB24/FLYTIP,13/03/2024 00:00,283110,1539.85,GL0214,GLENDALE GROUNDS MANAGEMENT LIMITED,26/02/2024 00:00,31/03/2024 00:00,P12-2024
CEO,LVLC SERVICE CHARGE,PREMISES RELATED EXPENDITURE,SCHEDULED GROUND MAINTENANCE,2111,P125149-SERVICE-Security at LVAC 27-28/02,26/03/2024 00:00,283653,758.5,PA0059,PARKGUARD LTD,26/02/2024 00:00,31/03/2024 00:00,P12-2024
P&V,MYDDELTON HOUSE,PREMISES RELATED EXPENDITURE,CONTRACT CLEANING,2120,P125285-SERVICE-Cleaning of all Windows Inside & Out at Mydde,12/03/2024 00:00,283389,795,PH0424,PHOENIX WINDOW CLEANING LTD,26/02/2024 00:00,31/03/2024 00:00,P12-2024
P&V,MYDDELTON HOUSE,PREMISES RELATED EXPENDITURE,CONTRACT CLEANING,2120,P121875-SERVICE-Myddelton House Cleaning,19/03/2024 00:00,283606,1850.16,BR0632,BRITANNIA SERVICES GROUP LTD,26/02/2024 00:00,31/03/2024 00:00,P12-2024
P&V,MYDDELTON HOUSE,PREMISES RELATED EXPENDITURE,CONTRACT CLEANING,2120,P121875-SERVICE-Myddelton House Cleaning,31/03/2024 00:00,284384,1850.16,BR0632,BRITANNIA SERVICES GROUP LTD,26/02/2024 00:00,31/03/2024 00:00,P12-2024
,LEE VALLEY WATERWORKS CENTRE,PREMISES RELATED EXPENDITURE,CONTRACT CLEANING,2120,P124456-SERVICE-Cleaning WaterWorks Centre,19/03/2024 00:00,283607,155.48,BR0632,BRITANNIA SERVICES GROUP LTD,26/02/2024 00:00,31/03/2024 00:00,P12-2024
,LEE VALLEY WATERWORKS CENTRE,PREMISES RELATED EXPENDITURE,CONTRACT CLEANING,2120,P124456-SERVICE-Cleaning WaterWorks Centre,19/03/2024 00:00,283607,698.44,BR0632,BRITANNIA SERVICES GROUP LTD,26/02/2024 00:00,31/03/2024 00:00,P12-2024
,LEE VALLEY WATERWORKS CENTRE,PREMISES RELATED EXPENDITURE,CONTRACT CLEANING,2120,P125668-SERVICE-Cleaning WaterWorks Centre - March 2023,31/03/2024 00:00,284382,853.92,BR0632,BRITANNIA SERVICES GROUP LTD,26/02/2024 00:00,31/03/2024 00:00,P12-2024
,LEE VALLEY CAMPSITE,PREMISES RELATED EXPENDITURE,CONTRACT CLEANING,2120,P124359-SERVICE-Site Cleaning Feb 24,19/03/2024 00:00,283652,1720,LI0305,LIMPIAR CLEANING,26/02/2024 00:00,31/03/2024 00:00,P12-2024
P&V,NORTH AREA RANGERS,PREMISES RELATED EXPENDITURE,CONTRACT CLEANING,2120,P123370-SERVICE-Cleaning - Meeting Room,26/03/2024 00:00,283608,78.51,BR0632,BRITANNIA SERVICES GROUP LTD,26/02/2024 00:00,31/03/2024 00:00,P12-2024
P&V,WILDLIFE DISCOVERY CENTRE,PREMISES RELATED EXPENDITURE,CONTRACT CLEANING,2120,P123372-SERVICE-Cleaning at Wildlife Discovery Centre,26/03/2024 00:00,283608,286.74,BR0632,BRITANNIA SERVICES GROUP LTD,26/02/2024 00:00,31/03/2024 00:00,P12-2024
P&V,WILDLIFE DISCOVERY CENTRE,PREMISES RELATED EXPENDITURE,CONTRACT CLEANING,2120,P123372-SERVICE-Cleaning at Wildlife Discovery Centre,26/03/2024 00:00,283608,61.71,BR0632,BRITANNIA SERVICES GROUP LTD,26/02/2024 00:00,31/03/2024 00:00,P12-2024
P&V,WILDLIFE DISCOVERY CENTRE,PREMISES RELATED EXPENDITURE,CONTRACT CLEANING,2120,P125673-SERVICE-Cleaning - Ranger Office / Wildlife Discovery,31/03/2024 00:00,284381,426.96,BR0632,BRITANNIA SERVICES GROUP LTD,26/02/2024 00:00,31/03/2024 00:00,P12-2024
P&V,GUNPOWDER PARK,PREMISES RELATED EXPENDITURE,CONTRACT CLEANING,2120,GM CORE-FEB24/FLYTIP,13/03/2024 00:00,283110,281.26,GL0214,GLENDALE GROUNDS MANAGEMENT LIMITED,26/02/2024 00:00,31/03/2024 00:00,P12-2024
P&V,RIVER LEE COUNTRY PARK,PREMISES RELATED EXPENDITURE,CONTRACT CLEANING,2120,GM CORE-FEB24/FLYTIP,13/03/2024 00:00,283110,562.53,GL0214,GLENDALE GROUNDS MANAGEMENT LIMITED,26/02/2024 00:00,31/03/2024 00:00,P12-2024
P&V,MYDDLETON HSE HERITAGE CENTRE,PREMISES RELATED EXPENDITURE,CLEANING CONTRACT,2121,P125287-SERVICE-Cleaing of Cafe Windows Inside and Out,12/03/2024 00:00,283391,65,PH0424,PHOENIX WINDOW CLEANING LTD,26/02/2024 00:00,31/03/2024 00:00,P12-2024
P&V,MYDDLETON HSE HERITAGE CENTRE,PREMISES RELATED EXPENDITURE,CLEANING CONTRACT,2121,P125387-SERVICE-Tea Room Cleaning,19/03/2024 00:00,283605,925.08,BR0632,BRITANNIA SERVICES GROUP LTD,26/02/2024 00:00,31/03/2024 00:00,P12-2024
,LEE VALLEY CAMPSITE,PREMISES RELATED EXPENDITURE,LINEN SERVICE,2122,P123805-SERVICE-Increase value to cover invoices,05/03/2024 00:00,283062,188.32,JO0168,JOHNSONS STALBRIDGE LINEN SERVICES,26/02/2024 00:00,31/03/2024 00:00,P12-2024
,LEE VALLEY CARAVAN PARK,PREMISES RELATED EXPENDITURE,LINEN SERVICE,2122,P125197-SERVICE-Linwn Service,05/03/2024 00:00,283061,291.74,JO0168,JOHNSONS STALBRIDGE LINEN SERVICES,26/02/2024 00:00,31/03/2024 00:00,P12-2024
,LEE VALLEY MARINA STANSTEAD,PREMISES RELATED EXPENDITURE,GM MAIN CONTRACT SCHEDULED,2141,GM CORE-FEB24/FLYTIP,13/03/2024 00:00,283110,328.59,GL0214,GLENDALE GROUNDS MANAGEMENT LIMITED,26/02/2024 00:00,31/03/2024 00:00,P12-2024
,LEE VALLEY WATERWORKS CENTRE,PREMISES RELATED EXPENDITURE,GM MAIN CONTRACT SCHEDULED,2141,GM CORE-FEB24/FLYTIP,13/03/2024 00:00,283110,308.7,GL0214,GLENDALE GROUNDS MANAGEMENT LIMITED,26/02/2024 00:00,31/03/2024 00:00,P12-2024
,LV LEISURE CENTRE CAMPSITE,PREMISES RELATED EXPENDITURE,GENERAL WASTE,2211,P125253-SERVICE-compactor and skip,12/03/2024 00:00,283160,367.5,CL0037,VEOLIA ES (UK) LTD,26/02/2024 00:00,31/03/2024 00:00,P12-2024
,LV LEISURE CENTRE CAMPSITE,PREMISES RELATED EXPENDITURE,GENERAL WASTE,2211,P125331-SERVICE-recycling waste collection,19/03/2024 00:00,283339,254.46,BY0049,BYWATERS (LEYTON) LTD,26/02/2024 00:00,31/03/2024 00:00,P12-2024
,LV LEISURE CENTRE CAMPSITE,PREMISES RELATED EXPENDITURE,GENERAL WASTE,2211,P125619-SERVICE-skip and compactor empty,31/03/2024 00:00,284162,902.7,CL0037,VEOLIA ES (UK) LTD,26/02/2024 00:00,31/03/2024 00:00,P12-2024
P&V,NORTH AREA RANGERS,PREMISES RELATED EXPENDITURE,FLYTIPPING/WHITE GOOD DISPOSAL,2213,P125103-SERVICE-Fly Tip Testing at Spitalbrook,19/03/2024 00:00,283450,550,LI0432,LIFE ENVIRONMENTAL SERVICES LTD,26/02/2024 00:00,31/03/2024 00:00,P12-2024
P&V,NORTH AREA RANGERS,PREMISES RELATED EXPENDITURE,FLYTIPPING/WHITE GOOD DISPOSAL,2213,P125104-SERVICE-Move Fly Tip at Spitalbrook,31/03/2024 00:00,283744,200,BU0090,BUSH WHEELER SERVICES LTD,26/02/2024 00:00,31/03/2024 00:00,P12-2024
P&V,NORTH AREA RANGERS,PREMISES RELATED EXPENDITURE,FLYTIPPING/WHITE GOOD DISPOSAL,2213,"P125123-SERVICE-Fly Tip Removal at Meadgate Road, Nazeing Mea",26/03/2024 00:00,283871,850,MK0465,M K CLEANING & MAINTENANCE LTD,26/02/2024 00:00,31/03/2024 00:00,P12-2024
P&V,GUNPOWDER PARK,PREMISES RELATED EXPENDITURE,FLYTIPPING/WHITE GOOD DISPOSAL,2213,P125177-SERVICE-Remove Fly Tip at Hawes Lane,13/03/2024 00:00,283423,300,JO0019,R G JOYCE,26/02/2024 00:00,31/03/2024 00:00,P12-2024
P&V,GUNPOWDER PARK,PREMISES RELATED EXPENDITURE,FLYTIPPING/WHITE GOOD DISPOSAL,2213,P125455-SERVICE-Remove Fly Tip Hawes lane x 2 at Gunpowder Pa,27/03/2024 00:00,283947,400,JO0019,R G JOYCE,26/02/2024 00:00,31/03/2024 00:00,P12-2024
P&V,MYDDELTON HOUSE,PREMISES RELATED EXPENDITURE,RECYCLING,2214,P124582-SERVICE-Recycling,19/03/2024 00:00,283461,231.34,CA0341,F & R CAWLEY LTD,26/02/2024 00:00,31/03/2024 00:00,P12-2024
P&V,MYDDELTON HOUSE,PREMISES RELATED EXPENDITURE,BUILDING SERVICE AGREEMENTS,2220,P125388-SERVICE-Myddelton House Pest Control,19/03/2024 00:00,282883,1564.32,EN0035,LONDON BOROUGH OF ENFIELD,26/02/2024 00:00,31/03/2024 00:00,P12-2024
P&V,MYDDELTON HOUSE,PREMISES RELATED EXPENDITURE,BUILDING SERVICE AGREEMENTS,2220,"P125286-SERVICE-Cleaning of all Gutters, Downpipes, Gulleys a",12/03/2024 00:00,283390,825,PH0424,PHOENIX WINDOW CLEANING LTD,26/02/2024 00:00,31/03/2024 00:00,P12-2024
,LEE VALLEY MARINA SPRINGFIELD,PREMISES RELATED EXPENDITURE,BUILDING SERVICE AGREEMENTS,2220,P125185-SERVICE-Annual Alarm Service for Main Marina,05/03/2024 00:00,282920,224.48,CH0088,CHUBB FIRE & SECURITY,26/02/2024 00:00,31/03/2024 00:00,P12-2024
,LEE VALLEY MARINA SPRINGFIELD,PREMISES RELATED EXPENDITURE,BUILDING SERVICE AGREEMENTS,2220,P125120-SERVICE-To service sewage pumping system,19/03/2024 00:00,283306,195,CO0550,CONVERT WATER LTD,26/02/2024 00:00,31/03/2024 00:00,P12-2024
,LEE VALLEY MARINA SPRINGFIELD,PREMISES RELATED EXPENDITURE,BUILDING SERVICE AGREEMENTS,2220,P125237-SERVICE-Boiler service worcester heating boiler on,20/03/2024 00:00,283710,140,SO0400,SOUTHERN GREEN SERVICES LIMITED,26/02/2024 00:00,31/03/2024 00:00,P12-2024
,LEE VALLEY MARINA SPRINGFIELD,PREMISES RELATED EXPENDITURE,BUILDING SERVICE AGREEMENTS,2220,P125237-SERVICE-service underfloor heating boiler,20/03/2024 00:00,283710,110,SO0400,SOUTHERN GREEN SERVICES LIMITED,26/02/2024 00:00,31/03/2024 00:00,P12-2024
,LEE VALLEY MARINA SPRINGFIELD,PREMISES RELATED EXPENDITURE,BUILDING SERVICE AGREEMENTS,2220,"P125237-SERVICE-De scale hot water cylinder,workshop/office",20/03/2024 00:00,283710,185,SO0400,SOUTHERN GREEN SERVICES LIMITED,26/02/2024 00:00,31/03/2024 00:00,P12-2024
,LEE VALLEY MARINA SPRINGFIELD,PREMISES RELATED EXPENDITURE,BUILDING SERVICE AGREEMENTS,2220,P125237-SERVICE-service Gas water heater facilities block,20/03/2024 00:00,283710,180,SO0400,SOUTHERN GREEN SERVICES LIMITED,26/02/2024 00:00,31/03/2024 00:00,P12-2024
,LEE VALLEY MARINA SPRINGFIELD,PREMISES RELATED EXPENDITURE,BUILDING SERVICE AGREEMENTS,2220,P125237-SERVICE-Gas safety inspection and certificate whole,20/03/2024 00:00,283710,190,SO0400,SOUTHERN GREEN SERVICES LIMITED,26/02/2024 00:00,31/03/2024 00:00,P12-2024
,LEE VALLEY MARINA SPRINGFIELD,PREMISES RELATED EXPENDITURE,BUILDING SERVICE AGREEMENTS,2220,P125238-SERVICE-Chlorination works drain cold water storage,20/03/2024 00:00,283711,565,SO0400,SOUTHERN GREEN SERVICES LIMITED,26/02/2024 00:00,31/03/2024 00:00,P12-2024
,LEE VALLEY MARINA SPRINGFIELD,PREMISES RELATED EXPENDITURE,BUILDING SERVICE AGREEMENTS,2220,P125239-SERVICE-De scale hot water cylinder in facilties,20/03/2024 00:00,283712,425,SO0400,SOUTHERN GREEN SERVICES LIMITED,26/02/2024 00:00,31/03/2024 00:00,P12-2024
,LEE VALLEY MARINA SPRINGFIELD,PREMISES RELATED EXPENDITURE,BUILDING SERVICE AGREEMENTS,2220,"P125239-SERVICE-To service ambi rads in worshop,clean,service",20/03/2024 00:00,283712,390,SO0400,SOUTHERN GREEN SERVICES LIMITED,26/02/2024 00:00,31/03/2024 00:00,P12-2024
,LEE VALLEY MARINA SPRINGFIELD,PREMISES RELATED EXPENDITURE,BUILDING SERVICE AGREEMENTS,2220,P121658-SERVICE-Annual maintenance 2 vists & Adhoc,26/03/2024 00:00,283743,805,DE0013,DENNIS SECURITY CENTRE,26/02/2024 00:00,31/03/2024 00:00,P12-2024
,LEE VALLEY MARINA SPRINGFIELD,PREMISES RELATED EXPENDITURE,BUILDING SERVICE AGREEMENTS,2220,P124482-SERVICE-Annual alarm service for chandlery,31/03/2024 00:00,283923,44.9,CH0088,CHUBB FIRE & SECURITY,26/02/2024 00:00,31/03/2024 00:00,P12-2024
,LEE VALLEY MARINA SPRINGFIELD,PREMISES RELATED EXPENDITURE,BUILDING SERVICE AGREEMENTS,2220,P124482-SERVICE-Additional works needed,31/03/2024 00:00,283923,34.78,CH0088,CHUBB FIRE & SECURITY,26/02/2024 00:00,31/03/2024 00:00,P12-2024
,LEE VALLEY MARINA SPRINGFIELD,PREMISES RELATED EXPENDITURE,BUILDING SERVICE AGREEMENTS,2220,P124482-SERVICE-Additional works needed,31/03/2024 00:00,283924,101.57,CH0088,CHUBB FIRE & SECURITY,26/02/2024 00:00,31/03/2024 00:00,P12-2024
,LEE VALLEY WATERWORKS CENTRE,PREMISES RELATED EXPENDITURE,BUILDING SERVICE AGREEMENTS,2220,P125493-SERVICE-Waterworks Feb 2024 PPM,26/03/2024 00:00,283748,229.85,CO0199,EQUANS FM LIMITED (frmlyENGIE FM LIMITED),26/02/2024 00:00,31/03/2024 00:00,P12-2024
,LEE VALLEY CAMPSITE,PREMISES RELATED EXPENDITURE,BUILDING SERVICE AGREEMENTS,2220,P121646-SERVICE-Mar 24,19/03/2024 00:00,283361,70,VE0006,VERMINATE CITY & RURAL PEST CONTROL LTD,26/02/2024 00:00,31/03/2024 00:00,P12-2024
,LEE VALLEY CAMPSITE,PREMISES RELATED EXPENDITURE,BUILDING SERVICE AGREEMENTS,2220,P125393-SERVICE-Alarm call out 13/9/23,19/03/2024 00:00,283600,115,AC0012,SCUTUM SOUTH EAST LTD (frmly Active Security),26/02/2024 00:00,31/03/2024 00:00,P12-2024
,LEE VALLEY CAMPSITE,PREMISES RELATED EXPENDITURE,BUILDING SERVICE AGREEMENTS,2220,P125540-SERVICE-Alarm maintenance/service,27/03/2024 00:00,283708,125,AC0012,SCUTUM SOUTH EAST LTD (frmly Active Security),26/02/2024 00:00,31/03/2024 00:00,P12-2024
,LEE VALLEY CAMPSITE,PREMISES RELATED EXPENDITURE,BUILDING SERVICE AGREEMENTS,2220,P125390-SERVICE-CODE 2 WORKS,31/03/2024 00:00,283927,1150,BR0018,BRADSHAW ELECTRICAL LIMITED,26/02/2024 00:00,31/03/2024 00:00,P12-2024
,LEE VALLEY CAMPSITE,PREMISES RELATED EXPENDITURE,BUILDING SERVICE AGREEMENTS,2220,P125390-SERVICE-CODE 3 WORKS,31/03/2024 00:00,283927,2450,BR0018,BRADSHAW ELECTRICAL LIMITED,26/02/2024 00:00,31/03/2024 00:00,P12-2024
,LEE VALLEY CAMPSITE,PREMISES RELATED EXPENDITURE,BUILDING SERVICE AGREEMENTS,2220,P125390-SERVICE-Replace MCB for new,31/03/2024 00:00,283927,50,BR0018,BRADSHAW ELECTRICAL LIMITED,26/02/2024 00:00,31/03/2024 00:00,P12-2024
,LEE VALLEY CAMPSITE,PREMISES RELATED EXPENDITURE,BUILDING SERVICE AGREEMENTS,2220,P125539-SERVICE-PAT Testing All appliances,31/03/2024 00:00,283928,552.9,BR0018,BRADSHAW ELECTRICAL LIMITED,26/02/2024 00:00,31/03/2024 00:00,P12-2024
,LEE VALLEY CAMPSITE,PREMISES RELATED EXPENDITURE,BUILDING SERVICE AGREEMENTS,2220,P125391-SERVICE-Toilet blocksa and garage,31/03/2024 00:00,283929,1485,BR0018,BRADSHAW ELECTRICAL LIMITED,26/02/2024 00:00,31/03/2024 00:00,P12-2024
,LEE VALLEY CARAVAN PARK,PREMISES RELATED EXPENDITURE,BUILDING SERVICE AGREEMENTS,2220,P125094-SERVICE-Annual Washer/Dryer & Duct Clean Service,13/03/2024 00:00,283311,140,JL0014,JLA LIMITED,26/02/2024 00:00,31/03/2024 00:00,P12-2024
,LEE VALLEY CARAVAN PARK,PREMISES RELATED EXPENDITURE,BUILDING SERVICE AGREEMENTS,2220,P125094-SERVICE-Annual Washer/Dryer & Duct Clean Service,13/03/2024 00:00,283312,140,JL0014,JLA LIMITED,26/02/2024 00:00,31/03/2024 00:00,P12-2024
,LEE VALLEY CARAVAN PARK,PREMISES RELATED EXPENDITURE,BUILDING SERVICE AGREEMENTS,2220,P125311-SERVICE-Pest control,13/03/2024 00:00,283364,70,VE0006,VERMINATE CITY & RURAL PEST CONTROL LTD,26/02/2024 00:00,31/03/2024 00:00,P12-2024
,LEE VALLEY CARAVAN PARK,PREMISES RELATED EXPENDITURE,BUILDING SERVICE AGREEMENTS,2220,P125094-SERVICE-Annual Washer/Dryer & Duct Clean Service,31/03/2024 00:00,283940,190,JL0014,JLA LIMITED,26/02/2024 00:00,31/03/2024 00:00,P12-2024
,LEE VALLEY CARAVAN PARK,PREMISES RELATED EXPENDITURE,BUILDING SERVICE AGREEMENTS,2220,P125094-SERVICE-Annual Washer/Dryer & Duct Clean Service,31/03/2024 00:00,283941,190,JL0014,JLA LIMITED,26/02/2024 00:00,31/03/2024 00:00,P12-2024
P&V,NORTH AREA RANGERS,PREMISES RELATED EXPENDITURE,BUILDING SERVICE AGREEMENTS,2220,P125276-SERVICE-Sanitary Disposal - Old Mill & Meadows Toilet,26/03/2024 00:00,282697,3.74,PE0015,PHS GROUP PLC,26/02/2024 00:00,31/03/2024 00:00,P12-2024
P&V,ALMOST WILD CAMPSITE,PREMISES RELATED EXPENDITURE,BUILDING SERVICE AGREEMENTS,2220,P125409-SERVICE-Kingfisher Legionella Sampling,27/03/2024 00:00,283939,228.95,KI0090,KINGFISHER ENVIRONMENTAL SERVICES LTD,26/02/2024 00:00,31/03/2024 00:00,P12-2024
,LV LEISURE CENTRE CAMPSITE,PREMISES RELATED EXPENDITURE,BUILDING SERVICE AGREEMENTS,2220,P124872-SERVICE-service compactor,19/03/2024 00:00,282843,312,PD0171,PDE WASTE TECHNOLOGIES,26/02/2024 00:00,31/03/2024 00:00,P12-2024
,LV LEISURE CENTRE CAMPSITE,PREMISES RELATED EXPENDITURE,BUILDING SERVICE AGREEMENTS,2220,P125335-SERVICE-pest control,19/03/2024 00:00,283365,70,VE0006,VERMINATE CITY & RURAL PEST CONTROL LTD,26/02/2024 00:00,31/03/2024 00:00,P12-2024
,LV LEISURE CENTRE GOLF COURSE,PREMISES RELATED EXPENDITURE,BUILDING SERVICE AGREEMENTS,2220,P125127-SERVICE-Start up & Drain Down,05/03/2024 00:00,283112,600,SJ0635,SJS IRRIGATION,26/02/2024 00:00,31/03/2024 00:00,P12-2024
,LEE VALLEY CARAVAN PARK,PREMISES RELATED EXPENDITURE,ENGINEERING SERVICE AGREEMENTS,2221,P125256-SERVICE-WiFi Install Plot 34 Dobbs Weir,13/03/2024 00:00,283447,400,JP0183,JPH CABLING SERVICES,26/02/2024 00:00,31/03/2024 00:00,P12-2024
,LV LEISURE CENTRE CAMPSITE,PREMISES RELATED EXPENDITURE,ENGINEERING SERVICE AGREEMENTS,2221,P125342-SERVICE-sanitary waste,19/03/2024 00:00,283432,163.96,PE0015,PHS GROUP PLC,26/02/2024 00:00,31/03/2024 00:00,P12-2024
CEO,RESIDENTIAL ACCOMMODATION,PREMISES RELATED EXPENDITURE,BUILDING REPAIRS & MAINTENANCE,2222,P125441-SERVICE-11 Picketts Lock Lane - Storage Heaters,20/03/2024 00:00,282177,1950,CA0165,CASTLES,26/02/2024 00:00,31/03/2024 00:00,P12-2024
CEO,RESIDENTIAL ACCOMMODATION,PREMISES RELATED EXPENDITURE,BUILDING REPAIRS & MAINTENANCE,2222,P121557-SERVICE-Maintenance,06/03/2024 00:00,282963,100,CA0165,CASTLES,26/02/2024 00:00,31/03/2024 00:00,P12-2024
CEO,RESIDENTIAL ACCOMMODATION,PREMISES RELATED EXPENDITURE,BUILDING REPAIRS & MAINTENANCE,2222,P121557-SERVICE-Maintenance,20/03/2024 00:00,283319,341.67,CA0165,CASTLES,26/02/2024 00:00,31/03/2024 00:00,P12-2024
CEO,RESIDENTIAL ACCOMMODATION,PREMISES RELATED EXPENDITURE,BUILDING REPAIRS & MAINTENANCE,2222,P125444-SERVICE-2 Bunglaow Wasp Nest,26/03/2024 00:00,283465,60,WA0315,PAUL WALLACE ESTATE AGENTS,26/02/2024 00:00,31/03/2024 00:00,P12-2024
CEO,RESIDENTIAL ACCOMMODATION,PREMISES RELATED EXPENDITURE,BUILDING REPAIRS & MAINTENANCE,2222,P122506-SERVICE-Repairs & Maintenance,31/03/2024 00:00,283886,144,WA0315,PAUL WALLACE ESTATE AGENTS,26/02/2024 00:00,31/03/2024 00:00,P12-2024
CEO,COMMERCIAL ACCOMMODATION,PREMISES RELATED EXPENDITURE,BUILDING REPAIRS & MAINTENANCE,2222,P121780-SERVICE-Concrete blocks Wharf Road,05/03/2024 00:00,282926,58,NA0171,NAIVETTE SERVICES LTD,26/02/2024 00:00,31/03/2024 00:00,P12-2024
CEO,COMMERCIAL ACCOMMODATION,PREMISES RELATED EXPENDITURE,BUILDING REPAIRS & MAINTENANCE,2222,P125226-SERVICE-Eviction of 15 Caravans at Picketts Lock,19/03/2024 00:00,283321,4595,GR0236,G R C BAILIFFS,26/02/2024 00:00,31/03/2024 00:00,P12-2024
CEO,COMMERCIAL ACCOMMODATION,PREMISES RELATED EXPENDITURE,BUILDING REPAIRS & MAINTENANCE,2222,P125567-SERVICE-Concrete blocks Wharf Road,31/03/2024 00:00,284022,62,NA0171,NAIVETTE SERVICES LTD,26/02/2024 00:00,31/03/2024 00:00,P12-2024
,LEE VALLEY MARINA SPRINGFIELD,PREMISES RELATED EXPENDITURE,BUILDING REPAIRS & MAINTENANCE,2222,P124132-SERVICE-Tocarry out quote QT00273,05/03/2024 00:00,283081,655,BR0018,BRADSHAW ELECTRICAL LIMITED,26/02/2024 00:00,31/03/2024 00:00,P12-2024
,LEE VALLEY MARINA SPRINGFIELD,PREMISES RELATED EXPENDITURE,BUILDING REPAIRS & MAINTENANCE,2222,P124134-SERVICE-To carry out quote QT00274,05/03/2024 00:00,283082,965,BR0018,BRADSHAW ELECTRICAL LIMITED,26/02/2024 00:00,31/03/2024 00:00,P12-2024
,LEE VALLEY MARINA SPRINGFIELD,PREMISES RELATED EXPENDITURE,BUILDING REPAIRS & MAINTENANCE,2222,P124140-SERVICE-To carry out quote QT00278,05/03/2024 00:00,283084,965,BR0018,BRADSHAW ELECTRICAL LIMITED,26/02/2024 00:00,31/03/2024 00:00,P12-2024
,LEE VALLEY MARINA SPRINGFIELD,PREMISES RELATED EXPENDITURE,BUILDING REPAIRS & MAINTENANCE,2222,P124139-SERVICE-To carry out Quote QT00225,05/03/2024 00:00,283085,510,BR0018,BRADSHAW ELECTRICAL LIMITED,26/02/2024 00:00,31/03/2024 00:00,P12-2024
,LEE VALLEY MARINA SPRINGFIELD,PREMISES RELATED EXPENDITURE,BUILDING REPAIRS & MAINTENANCE,2222,"P122543-SERVICE-Call out's, key cutting, new locks &",19/03/2024 00:00,283434,215,DE0013,DENNIS SECURITY CENTRE,26/02/2024 00:00,31/03/2024 00:00,P12-2024
,LEE VALLEY MARINA SPRINGFIELD,PREMISES RELATED EXPENDITURE,BUILDING REPAIRS & MAINTENANCE,2222,P125120-SERVICE-Engineer for pump float switches 3 new float,19/03/2024 00:00,283462,405,CO0550,CONVERT WATER LTD,26/02/2024 00:00,31/03/2024 00:00,P12-2024
,LEE VALLEY MARINA SPRINGFIELD,PREMISES RELATED EXPENDITURE,BUILDING REPAIRS & MAINTENANCE,2222,P124867-SERVICE-Call out to unblock urinal & new flush sensor,20/03/2024 00:00,283714,475,SO0400,SOUTHERN GREEN SERVICES LIMITED,26/02/2024 00:00,31/03/2024 00:00,P12-2024
,LEE VALLEY MARINA SPRINGFIELD,PREMISES RELATED EXPENDITURE,BUILDING REPAIRS & MAINTENANCE,2222,P122105-SERVICE-Toilet & plumbing repairs,20/03/2024 00:00,283715,585,SO0400,SOUTHERN GREEN SERVICES LIMITED,26/02/2024 00:00,31/03/2024 00:00,P12-2024
,LEE VALLEY MARINA SPRINGFIELD,PREMISES RELATED EXPENDITURE,BUILDING REPAIRS & MAINTENANCE,2222,P124867-SERVICE-Call out to unblock urinal & new flush sensor,20/03/2024 00:00,283716,375,SO0400,SOUTHERN GREEN SERVICES LIMITED,26/02/2024 00:00,31/03/2024 00:00,P12-2024
,LEE VALLEY MARINA SPRINGFIELD,PREMISES RELATED EXPENDITURE,BUILDING REPAIRS & MAINTENANCE,2222,P124867-SERVICE-Addition work due to fault on boiler,20/03/2024 00:00,283716,270,SO0400,SOUTHERN GREEN SERVICES LIMITED,26/02/2024 00:00,31/03/2024 00:00,P12-2024
,LEE VALLEY MARINA SPRINGFIELD,PREMISES RELATED EXPENDITURE,BUILDING REPAIRS & MAINTENANCE,2222,P125437-SERVICE-Repair to mezzanine boiler,20/03/2024 00:00,283717,285,SO0400,SOUTHERN GREEN SERVICES LIMITED,26/02/2024 00:00,31/03/2024 00:00,P12-2024
,LEE VALLEY MARINA SPRINGFIELD,PREMISES RELATED EXPENDITURE,BUILDING REPAIRS & MAINTENANCE,2222,P121723-SERVICE-Emergency callout & repairs,26/03/2024 00:00,283749,300,BR0018,BRADSHAW ELECTRICAL LIMITED,26/02/2024 00:00,31/03/2024 00:00,P12-2024
,LEE VALLEY MARINA SPRINGFIELD,PREMISES RELATED EXPENDITURE,BUILDING REPAIRS & MAINTENANCE,2222,P121723-SERVICE-Emergency callout & repairs,26/03/2024 00:00,283750,540,BR0018,BRADSHAW ELECTRICAL LIMITED,26/02/2024 00:00,31/03/2024 00:00,P12-2024
,LEE VALLEY MARINA SPRINGFIELD,PREMISES RELATED EXPENDITURE,BUILDING REPAIRS & MAINTENANCE,2222,P121723-SERVICE-Emergency callout & repairs,26/03/2024 00:00,283751,280,BR0018,BRADSHAW ELECTRICAL LIMITED,26/02/2024 00:00,31/03/2024 00:00,P12-2024
,LEE VALLEY MARINA SPRINGFIELD,PREMISES RELATED EXPENDITURE,BUILDING REPAIRS & MAINTENANCE,2222,P125046-SERVICE-To carry out quote 1 Emergency lighting,31/03/2024 00:00,283932,580,BR0018,BRADSHAW ELECTRICAL LIMITED,26/02/2024 00:00,31/03/2024 00:00,P12-2024
,LEE VALLEY MARINA SPRINGFIELD,PREMISES RELATED EXPENDITURE,BUILDING REPAIRS & MAINTENANCE,2222,P125047-SERVICE-To carry quote 2 emergency lighting chandlery,31/03/2024 00:00,283933,550,BR0018,BRADSHAW ELECTRICAL LIMITED,26/02/2024 00:00,31/03/2024 00:00,P12-2024
,LEE VALLEY MARINA STANSTEAD,PREMISES RELATED EXPENDITURE,BUILDING REPAIRS & MAINTENANCE,2222,P124855-SERVICE-LEV & COSH - W?S dust extractor ann service,28/02/2024 00:00,282204,1280,CL0435,CLEAR THE AIR,26/02/2024 00:00,31/03/2024 00:00,P12-2024
,LEE VALLEY MARINA STANSTEAD,PREMISES RELATED EXPENDITURE,BUILDING REPAIRS & MAINTENANCE,2222,P125383-SERVICE-faulty washing machine - (credit note coming),19/03/2024 00:00,283368,174.28,JH0012,GIRBAU  UK LIMITED,26/02/2024 00:00,31/03/2024 00:00,P12-2024
,LEE VALLEY MARINA STANSTEAD,PREMISES RELATED EXPENDITURE,BUILDING REPAIRS & MAINTENANCE,2222,P125383-SERVICE-faulty washing machine - (credit note coming),19/03/2024 00:00,283646,-174.28,JH0012,GIRBAU  UK LIMITED,26/02/2024 00:00,31/03/2024 00:00,P12-2024
,LEE VALLEY MARINA STANSTEAD,PREMISES RELATED EXPENDITURE,BUILDING REPAIRS & MAINTENANCE,2222,P125575-SERVICE-replace burnt out pod 18 (S Cox),31/03/2024 00:00,284143,132.5,BR0018,BRADSHAW ELECTRICAL LIMITED,26/02/2024 00:00,31/03/2024 00:00,P12-2024
,LEE VALLEY WATERWORKS CENTRE,PREMISES RELATED EXPENDITURE,BUILDING REPAIRS & MAINTENANCE,2222,P124632-SERVICE-Boiler Repairs at Waterworks Centre,31/03/2024 00:00,283747,393.87,CO0199,EQUANS FM LIMITED (frmlyENGIE FM LIMITED),26/02/2024 00:00,31/03/2024 00:00,P12-2024
P&V,LEE VALLEY FARM HOLYFIELDHALL,PREMISES RELATED EXPENDITURE,BUILDING REPAIRS & MAINTENANCE,2222,P124797-SERVICE-Building Sundries,05/03/2024 00:00,282906,41.21,JE0011,SAINT-GOBAIN BUILDING DISTRIBUTION,26/02/2024 00:00,31/03/2024 00:00,P12-2024
P&V,LEE VALLEY FARM HOLYFIELDHALL,PREMISES RELATED EXPENDITURE,BUILDING REPAIRS & MAINTENANCE,2222,P125170-SERVICE-Building Supplies,12/03/2024 00:00,282907,267.38,JE0011,SAINT-GOBAIN BUILDING DISTRIBUTION,26/02/2024 00:00,31/03/2024 00:00,P12-2024
P&V,LEE VALLEY FARM HOLYFIELDHALL,PREMISES RELATED EXPENDITURE,BUILDING REPAIRS & MAINTENANCE,2222,P125272-SERVICE-Replace LED PIR Flood Lights,12/03/2024 00:00,283142,97,BR0018,BRADSHAW ELECTRICAL LIMITED,26/02/2024 00:00,31/03/2024 00:00,P12-2024
P&V,LEE VALLEY FARM HOLYFIELDHALL,PREMISES RELATED EXPENDITURE,BUILDING REPAIRS & MAINTENANCE,2222,P125170-SERVICE-Building Supplies,19/03/2024 00:00,283474,123.3,JE0011,SAINT-GOBAIN BUILDING DISTRIBUTION,26/02/2024 00:00,31/03/2024 00:00,P12-2024
P&V,LEE VALLEY FARM HOLYFIELDHALL,PREMISES RELATED EXPENDITURE,BUILDING REPAIRS & MAINTENANCE,2222,P125170-SERVICE-Building Supplies,31/03/2024 00:00,283907,96.87,JE0011,SAINT-GOBAIN BUILDING DISTRIBUTION,26/02/2024 00:00,31/03/2024 00:00,P12-2024
P&V,LEE VALLEY FARM HOLYFIELDHALL,PREMISES RELATED EXPENDITURE,BUILDING REPAIRS & MAINTENANCE,2222,P125542-SERVICE-Remove Caravan,31/03/2024 00:00,284320,500,BU0088,BURNELL CONTRACTING,26/02/2024 00:00,31/03/2024 00:00,P12-2024
,LEE VALLEY CAMPSITE,PREMISES RELATED EXPENDITURE,BUILDING REPAIRS & MAINTENANCE,2222,P124909-SERVICE-T17 SYCAMORE TREE DEAD FELL,05/03/2024 00:00,282960,150,PA0222,PARKIN & PARKER TREE SPECIALISTS,26/02/2024 00:00,31/03/2024 00:00,P12-2024
,LEE VALLEY CAMPSITE,PREMISES RELATED EXPENDITURE,BUILDING REPAIRS & MAINTENANCE,2222,P124909-SERVICE-T18 ASH TREE FELL 1 TRUNK,05/03/2024 00:00,282960,200,PA0222,PARKIN & PARKER TREE SPECIALISTS,26/02/2024 00:00,31/03/2024 00:00,P12-2024
,LEE VALLEY CAMPSITE,PREMISES RELATED EXPENDITURE,BUILDING REPAIRS & MAINTENANCE,2222,P124909-SERVICE-T4 CHERRY TREE TO FELL,05/03/2024 00:00,282960,200,PA0222,PARKIN & PARKER TREE SPECIALISTS,26/02/2024 00:00,31/03/2024 00:00,P12-2024
,LEE VALLEY CAMPSITE,PREMISES RELATED EXPENDITURE,BUILDING REPAIRS & MAINTENANCE,2222,P124909-SERVICE-T16 SYCAMORE TREE DEAD FELL,05/03/2024 00:00,282960,200,PA0222,PARKIN & PARKER TREE SPECIALISTS,26/02/2024 00:00,31/03/2024 00:00,P12-2024
,LEE VALLEY CAMPSITE,PREMISES RELATED EXPENDITURE,BUILDING REPAIRS & MAINTENANCE,2222,P124909-SERVICE-T1 oAK TRE TO POLLARD TO 8M,05/03/2024 00:00,282960,300,PA0222,PARKIN & PARKER TREE SPECIALISTS,26/02/2024 00:00,31/03/2024 00:00,P12-2024
,LEE VALLEY CAMPSITE,PREMISES RELATED EXPENDITURE,BUILDING REPAIRS & MAINTENANCE,2222,P124909-SERVICE-T3 ASH TREE TO LIFT AND CUT BACK hh43,05/03/2024 00:00,282960,200,PA0222,PARKIN & PARKER TREE SPECIALISTS,26/02/2024 00:00,31/03/2024 00:00,P12-2024
,LEE VALLEY CAMPSITE,PREMISES RELATED EXPENDITURE,BUILDING REPAIRS & MAINTENANCE,2222,P124909-SERVICE-T2 ASH TREE TO POLLARD 10M,05/03/2024 00:00,282960,450,PA0222,PARKIN & PARKER TREE SPECIALISTS,26/02/2024 00:00,31/03/2024 00:00,P12-2024
,LEE VALLEY CARAVAN PARK,PREMISES RELATED EXPENDITURE,BUILDING REPAIRS & MAINTENANCE,2222,P125199-SERVICE-Replace pipes in Ladies loos,12/03/2024 00:00,283194,935,SO0400,SOUTHERN GREEN SERVICES LIMITED,26/02/2024 00:00,31/03/2024 00:00,P12-2024
,LEE VALLEY CARAVAN PARK,PREMISES RELATED EXPENDITURE,BUILDING REPAIRS & MAINTENANCE,2222,P125200-SERVICE-3 Ladies WC pans,12/03/2024 00:00,283195,410,SO0400,SOUTHERN GREEN SERVICES LIMITED,26/02/2024 00:00,31/03/2024 00:00,P12-2024
P&V,MYDDELTON HOUSE GARDENS,PREMISES RELATED EXPENDITURE,BUILDING REPAIRS & MAINTENANCE,2222,P125329-SERVICE-spur for ark gardens 24,27/03/2024 00:00,283670,635,BR0018,BRADSHAW ELECTRICAL LIMITED,26/02/2024 00:00,31/03/2024 00:00,P12-2024
P&V,MYDDLETON HSE HERITAGE CENTRE,PREMISES RELATED EXPENDITURE,BUILDING REPAIRS & MAINTENANCE,2222,P125020-SERVICE-Supply and Fit:,05/03/2024 00:00,282962,743,AB0435,ABSOLUTE DOOR SERVICES ESSEX LTD,26/02/2024 00:00,31/03/2024 00:00,P12-2024
P&V,MYDDLETON HSE HERITAGE CENTRE,PREMISES RELATED EXPENDITURE,BUILDING REPAIRS & MAINTENANCE,2222,P125260-SERVICE-Padlock,13/03/2024 00:00,283295,63.3,SC0057,SCREWFIX DIRECT LTD,26/02/2024 00:00,31/03/2024 00:00,P12-2024
P&V,MYDDLETON HSE HERITAGE CENTRE,PREMISES RELATED EXPENDITURE,BUILDING REPAIRS & MAINTENANCE,2222,P125547-SERVICE-Extractor Fans Work to 3 Toilets,31/03/2024 00:00,284003,965,BR0018,BRADSHAW ELECTRICAL LIMITED,26/02/2024 00:00,31/03/2024 00:00,P12-2024
P&V,SOUTH AREA RANGERS,PREMISES RELATED EXPENDITURE,BUILDING REPAIRS & MAINTENANCE,2222,P124929-SERVICE-5x Twin Combi ASSA Complete Locks,31/03/2024 00:00,284209,530.45,LO0020,LOCK AND KEY SERVICES,26/02/2024 00:00,31/03/2024 00:00,P12-2024
P&V,SOUTH AREA RANGERS,PREMISES RELATED EXPENDITURE,BUILDING REPAIRS & MAINTENANCE,2222,PADLOCKS,31/03/2024 00:00,284209,-530.45,LO0020,LOCK AND KEY SERVICES,26/02/2024 00:00,31/03/2024 00:00,P12-2024
P&V,GUNPOWDER PARK,PREMISES RELATED EXPENDITURE,BUILDING REPAIRS & MAINTENANCE,2222,P123821-SERVICE-PPM - Oct 2023 to Mar 2024 at Gunpowder Park,26/03/2024 00:00,283746,154.6,CO0199,EQUANS FM LIMITED (frmlyENGIE FM LIMITED),26/02/2024 00:00,31/03/2024 00:00,P12-2024
P&V,RIVER LEE COUNTRY PARK,PREMISES RELATED EXPENDITURE,BUILDING REPAIRS & MAINTENANCE,2222,P124670-SERVICE-Air Con Unit Repairs Rangers Office,12/03/2024 00:00,283069,95,GI0137,R & P GIBBS LIMITED,26/02/2024 00:00,31/03/2024 00:00,P12-2024
,LV LEISURE CENTRE CAMPSITE,PREMISES RELATED EXPENDITURE,BUILDING REPAIRS & MAINTENANCE,2222,P125186-SERVICE-isolation valve,05/03/2024 00:00,282898,225,SO0400,SOUTHERN GREEN SERVICES LIMITED,26/02/2024 00:00,31/03/2024 00:00,P12-2024
,LV LEISURE CENTRE CAMPSITE,PREMISES RELATED EXPENDITURE,BUILDING REPAIRS & MAINTENANCE,2222,P125187-SERVICE-no gas in block,05/03/2024 00:00,282899,235,SO0400,SOUTHERN GREEN SERVICES LIMITED,26/02/2024 00:00,31/03/2024 00:00,P12-2024
,LV LEISURE CENTRE CAMPSITE,PREMISES RELATED EXPENDITURE,BUILDING REPAIRS & MAINTENANCE,2222,P125188-SERVICE-grey waste clearance,05/03/2024 00:00,282900,195,SO0400,SOUTHERN GREEN SERVICES LIMITED,26/02/2024 00:00,31/03/2024 00:00,P12-2024
,LV LEISURE CENTRE CAMPSITE,PREMISES RELATED EXPENDITURE,BUILDING REPAIRS & MAINTENANCE,2222,P125227-SERVICE-pip SENSOR AND VALVE,20/03/2024 00:00,283713,420,SO0400,SOUTHERN GREEN SERVICES LIMITED,26/02/2024 00:00,31/03/2024 00:00,P12-2024
CEO,LVLC SERVICE CHARGE,PREMISES RELATED EXPENDITURE,BUILDING REPAIRS & MAINTENANCE,2222,P121726-SERVICE-Contract Sweep,06/03/2024 00:00,282905,300,SE0374,SELECT SWEEPER HIRE LTD,26/02/2024 00:00,31/03/2024 00:00,P12-2024
CEO,LVLC SERVICE CHARGE,PREMISES RELATED EXPENDITURE,BUILDING REPAIRS & MAINTENANCE,2222,P125348-SERVICE-LVAC - Lock Removed from Barrier,26/03/2024 00:00,283204,117,PS0429,PSL AUTOMATION,26/02/2024 00:00,31/03/2024 00:00,P12-2024
CEO,LVLC SERVICE CHARGE,PREMISES RELATED EXPENDITURE,BUILDING REPAIRS & MAINTENANCE,2222,PADLOCKS,31/03/2024 00:00,284209,530.45,LO0020,LOCK AND KEY SERVICES,26/02/2024 00:00,31/03/2024 00:00,P12-2024
P&V,NORTH AREA RANGERS,SUPPLIES AND SERVICES,FENCES/GATES ETC.,2231,P125293-SERVICE-Height Barrier Repairs at Stanstead Innings,31/03/2024 00:00,284027,300,BA0658,BASE FABRICATIONS LTD,26/02/2024 00:00,31/03/2024 00:00,P12-2024
CEO,RESIDENTIAL ACCOMMODATION,EXPENDITURE FROM REPAIRS FUND,EXPENDITURE FROM REPAIRS FUND,2240,P124341-SERVICE-1 Bungalow Wharf Road - Refurbishment Works R,31/03/2024 00:00,283976,5720,CA0165,CASTLES,26/02/2024 00:00,31/03/2024 00:00,P12-2024
CEO,RESIDENTIAL ACCOMMODATION,EXPENDITURE FROM REPAIRS FUND,EXPENDITURE FROM REPAIRS FUND,2240,"P124481-SERVICE-Works to Gate Lodge, Myddelton House",31/03/2024 00:00,283992,15975,RE0094,REACT 2 IT (BUILDING & REFURBISHMENT) LTD,26/02/2024 00:00,31/03/2024 00:00,P12-2024
CEO,COMMERCIAL ACCOMMODATION,PREMISES RELATED EXPENDITURE,EAST HALE ALLOTMENTS,2261,P121887-SERVICE-Allotment Bins,06/03/2024 00:00,283154,365.7,CL0037,VEOLIA ES (UK) LTD,26/02/2024 00:00,31/03/2024 00:00,P12-2024
CEO,COMMERCIAL ACCOMMODATION,PREMISES RELATED EXPENDITURE,EAST HALE ALLOTMENTS,2261,P121887-SERVICE-Allotment Bins,06/03/2024 00:00,283155,16.72,CL0037,VEOLIA ES (UK) LTD,26/02/2024 00:00,31/03/2024 00:00,P12-2024
CEO,COMMERCIAL ACCOMMODATION,PREMISES RELATED EXPENDITURE,EAST HALE ALLOTMENTS,2261,P121887-SERVICE-Allotment Bins,31/03/2024 00:00,284000,-233.44,CL0037,VEOLIA ES (UK) LTD,26/02/2024 00:00,31/03/2024 00:00,P12-2024
CEO,COMMERCIAL ACCOMMODATION,PREMISES RELATED EXPENDITURE,EAST HALE ALLOTMENTS,2261,P121887-SERVICE-Allotment Bins,31/03/2024 00:00,284001,-149,CL0037,VEOLIA ES (UK) LTD,26/02/2024 00:00,31/03/2024 00:00,P12-2024
CEO,COMMERCIAL ACCOMMODATION,PREMISES RELATED EXPENDITURE,EAST HALE ALLOTMENTS,2261,P121887-SERVICE-Allotment Bins,31/03/2024 00:00,284002,-87.54,CL0037,VEOLIA ES (UK) LTD,26/02/2024 00:00,31/03/2024 00:00,P12-2024
CEO,COMMERCIAL ACCOMMODATION,PREMISES RELATED EXPENDITURE,EAST HALE ALLOTMENTS,2261,P121887-SERVICE-Allotment Bins,31/03/2024 00:00,284164,74.37,CL0037,VEOLIA ES (UK) LTD,26/02/2024 00:00,31/03/2024 00:00,P12-2024
CEO,COMMERCIAL ACCOMMODATION,PREMISES RELATED EXPENDITURE,EAST HALE ALLOTMENTS,2261,P121887-SERVICE-Allotment Bins,31/03/2024 00:00,284165,10.64,CL0037,VEOLIA ES (UK) LTD,26/02/2024 00:00,31/03/2024 00:00,P12-2024
P&V,MYDDELTON HOUSE,PREMISES RELATED EXPENDITURE,ENERGY COSTS (ELECTRICITY),2332,REF 1014564-MD HSE-ELECTRIC-FEB24,18/03/2024 00:00,283563,3026.92,KE0007,KENT COUNTY COUNCIL (KCS),26/02/2024 00:00,31/03/2024 00:00,P12-2024
CEO,RESIDENTIAL ACCOMMODATION,PREMISES RELATED EXPENDITURE,ENERGY COSTS (ELECTRICITY),2332,Jan-24,06/03/2024 00:00,282483,31,EO0398,E-ON NEXT ENERGY LTD,26/02/2024 00:00,31/03/2024 00:00,P12-2024
CEO,RESIDENTIAL ACCOMMODATION,PREMISES RELATED EXPENDITURE,ENERGY COSTS (ELECTRICITY),2332,Feb-24,18/03/2024 00:00,283328,29,EO0398,E-ON NEXT ENERGY LTD,26/02/2024 00:00,31/03/2024 00:00,P12-2024
CEO,RESIDENTIAL ACCOMMODATION,PREMISES RELATED EXPENDITURE,ENERGY COSTS (ELECTRICITY),2332,Feb-24,18/03/2024 00:00,283329,29.04,EO0419,E-ON NEXT ENERGY LTD,26/02/2024 00:00,31/03/2024 00:00,P12-2024
CEO,RESIDENTIAL ACCOMMODATION,PREMISES RELATED EXPENDITURE,ENERGY COSTS (ELECTRICITY),2332,25/01/24-29/02/24,18/03/2024 00:00,283330,126.28,EO0420,E-ON NEXT ENERGY LTD,26/02/2024 00:00,31/03/2024 00:00,P12-2024
CEO,RESIDENTIAL ACCOMMODATION,PREMISES RELATED EXPENDITURE,ENERGY COSTS (ELECTRICITY),2332,"TH BUNGALOW, LV FORGE - ELECT-120224-110",20/03/2024 00:00,283460,15.07,EO0418,E-ON NEXT ENERGY LTD,26/02/2024 00:00,31/03/2024 00:00,P12-2024
CEO,RESIDENTIAL ACCOMMODATION,PREMISES RELATED EXPENDITURE,ENERGY COSTS (ELECTRICITY),2332,01/03/24-31/03/24,31/03/2024 00:00,284348,94.24,EO0420,E-ON NEXT ENERGY LTD,26/02/2024 00:00,31/03/2024 00:00,P12-2024
CEO,RESIDENTIAL ACCOMMODATION,PREMISES RELATED EXPENDITURE,ENERGY COSTS (ELECTRICITY),2332,"1 BUNGALOW, WHARF RD -05/03/24-05/04/24",31/03/2024 00:00,284463,359.64,OC0132,OCTOPUS ENERGY,26/02/2024 00:00,31/03/2024 00:00,P12-2024
CEO,RESIDENTIAL ACCOMMODATION,PREMISES RELATED EXPENDITURE,ENERGY COSTS (ELECTRICITY),2332,Mar-24,31/03/2024 00:00,284464,31.09,EO0419,E-ON NEXT ENERGY LTD,26/02/2024 00:00,31/03/2024 00:00,P12-2024
CEO,COMMERCIAL ACCOMMODATION,PREMISES RELATED EXPENDITURE,ENERGY COSTS (ELECTRICITY),2332,"1 BUNGALOW, WHARF RD -31/01/24-04/03/24",06/03/2024 00:00,283145,423,OC0132,OCTOPUS ENERGY,26/02/2024 00:00,31/03/2024 00:00,P12-2024
,LEE VALLEY MARINA SPRINGFIELD,PREMISES RELATED EXPENDITURE,ENERGY COSTS (ELECTRICITY),2332,REF 1011097-SPRINGFIELD-ELECT-FEB 2024,18/03/2024 00:00,283570,5702.02,KE0007,KENT COUNTY COUNCIL (KCS),26/02/2024 00:00,31/03/2024 00:00,P12-2024
,LEE VALLEY MARINA STANSTEAD,PREMISES RELATED EXPENDITURE,ENERGY COSTS (ELECTRICITY),2332,REF 1055515-TOILET BLK-ELECT-12/23-02/24,18/03/2024 00:00,283574,270.7,KE0007,KENT COUNTY COUNCIL (KCS),26/02/2024 00:00,31/03/2024 00:00,P12-2024
,LEE VALLEY MARINA STANSTEAD,PREMISES RELATED EXPENDITURE,ENERGY COSTS (ELECTRICITY),2332,REF 1055516-BOAT YARD-ELECT-12/23-02/24,18/03/2024 00:00,283575,6205.3,KE0007,KENT COUNTY COUNCIL (KCS),26/02/2024 00:00,31/03/2024 00:00,P12-2024
,LEE VALLEY MARINA STANSTEAD,PREMISES RELATED EXPENDITURE,ENERGY COSTS (ELECTRICITY),2332,REF 1055517-UNDERCOVER BOAT ST 12/23-022,18/03/2024 00:00,283576,535.23,KE0007,KENT COUNTY COUNCIL (KCS),26/02/2024 00:00,31/03/2024 00:00,P12-2024
,LEE VALLEY WATERWORKS CENTRE,PREMISES RELATED EXPENDITURE,ENERGY COSTS (ELECTRICITY),2332,WATERWORKS-ELECT-FEB 24,26/03/2024 00:00,283700,1303.84,NP0123,NPOWER LIMITED,26/02/2024 00:00,31/03/2024 00:00,P12-2024
P&V,LEE VALLEY FARM HOLYFIELDHALL,PREMISES RELATED EXPENDITURE,ENERGY COSTS (ELECTRICITY),2332,01/10/23 - 26/02/24,05/03/2024 00:00,282904,39.36,BR0030,BRITISH GAS ENERGY,26/02/2024 00:00,31/03/2024 00:00,P12-2024
P&V,LEE VALLEY FARM HOLYFIELDHALL,PREMISES RELATED EXPENDITURE,ENERGY COSTS (ELECTRICITY),2332,REF 1055511-HOLYFIELD-FEB24,31/03/2024 00:00,283626,37.02,KE0007,KENT COUNTY COUNCIL (KCS),26/02/2024 00:00,31/03/2024 00:00,P12-2024
,LEE VALLEY CAMPSITE,PREMISES RELATED EXPENDITURE,ENERGY COSTS (ELECTRICITY),2332,REF 101159-SEWARDSTONE-ELECT - FEB24,18/03/2024 00:00,283572,1333.82,KE0007,KENT COUNTY COUNCIL (KCS),26/02/2024 00:00,31/03/2024 00:00,P12-2024
,LEE VALLEY CAMPSITE,PREMISES RELATED EXPENDITURE,ENERGY COSTS (ELECTRICITY),2332,REF 1055535-SEWARDSTONE-ELECT-FEB24,18/03/2024 00:00,283573,156.66,KE0007,KENT COUNTY COUNCIL (KCS),26/02/2024 00:00,31/03/2024 00:00,P12-2024
,LEE VALLEY CAMPSITE,PREMISES RELATED EXPENDITURE,ENERGY COSTS (ELECTRICITY),2332,SEWARDSTONE- ELECT-FEB 24,27/03/2024 00:00,283726,1606.24,KE0007,KENT COUNTY COUNCIL (KCS),26/02/2024 00:00,31/03/2024 00:00,P12-2024
,LEE VALLEY CARAVAN PARK,PREMISES RELATED EXPENDITURE,ENERGY COSTS (ELECTRICITY),2332,REF 1014563-DW-ELECT- FEB24,26/03/2024 00:00,283843,6535.14,KE0007,KENT COUNTY COUNCIL (KCS),26/02/2024 00:00,31/03/2024 00:00,P12-2024
P&V,MYDDELTON HOUSE GARDENS,PREMISES RELATED EXPENDITURE,ENERGY COSTS (ELECTRICITY),2332,REF 1055494-GARDEN BUNGALOW-12/23-02/24,18/03/2024 00:00,283562,2390.65,KE0007,KENT COUNTY COUNCIL (KCS),26/02/2024 00:00,31/03/2024 00:00,P12-2024
P&V,EAST INDIA DOCK AND BOW CREEK,PREMISES RELATED EXPENDITURE,ENERGY COSTS (ELECTRICITY),2332,REF 1055467-EIDB-12/23-02/24,19/03/2024 00:00,283625,105.12,KE0007,KENT COUNTY COUNCIL (KCS),26/02/2024 00:00,31/03/2024 00:00,P12-2024
P&V,RYE HOUSE GATEHOUSE,PREMISES RELATED EXPENDITURE,ENERGY COSTS (ELECTRICITY),2332,REF 1055471-GATEHOUSE-ELECT-12/23-02/24,18/03/2024 00:00,283571,182.68,KE0007,KENT COUNTY COUNCIL (KCS),26/02/2024 00:00,31/03/2024 00:00,P12-2024
P&V,NORTH AREA RANGERS,PREMISES RELATED EXPENDITURE,ENERGY COSTS (ELECTRICITY),2332,REF 1055469-TOILET BLK-ELECT-12/23-02/24,18/03/2024 00:00,283569,1325.31,KE0007,KENT COUNTY COUNCIL (KCS),26/02/2024 00:00,31/03/2024 00:00,P12-2024
P&V,NORTH AREA RANGERS,PREMISES RELATED EXPENDITURE,ENERGY COSTS (ELECTRICITY),2332,REF 1055534-RYE GATE FARM -12/23-02/24,19/03/2024 00:00,283624,116.18,KE0007,KENT COUNTY COUNCIL (KCS),26/02/2024 00:00,31/03/2024 00:00,P12-2024
P&V,SOUTH AREA RANGERS,PREMISES RELATED EXPENDITURE,ENERGY COSTS (ELECTRICITY),2332,REF 1055464-LEA BR ROAD E107QL-12/23-02/,18/03/2024 00:00,283577,426.6,KE0007,KENT COUNTY COUNCIL (KCS),26/02/2024 00:00,31/03/2024 00:00,P12-2024
P&V,ABBEY GARDENS,PREMISES RELATED EXPENDITURE,ENERGY COSTS (ELECTRICITY),2332,REF 1055510-CAR PARK-ELECT-12/23-02/24,18/03/2024 00:00,283567,1639.36,KE0007,KENT COUNTY COUNCIL (KCS),26/02/2024 00:00,31/03/2024 00:00,P12-2024
P&V,GUNPOWDER PARK,PREMISES RELATED EXPENDITURE,ENERGY COSTS (ELECTRICITY),2332,REF 1014008-GUNPOWDER-ELECT-FEB24,18/03/2024 00:00,283566,684.99,KE0007,KENT COUNTY COUNCIL (KCS),26/02/2024 00:00,31/03/2024 00:00,P12-2024
P&V,GUNPOWDER PARK,PREMISES RELATED EXPENDITURE,ENERGY COSTS (ELECTRICITY),2332,REF 1055514-CONTAINMENT-ELECT-12/23-02/2,18/03/2024 00:00,283568,164.21,KE0007,KENT COUNTY COUNCIL (KCS),26/02/2024 00:00,31/03/2024 00:00,P12-2024
P&V,RIVER LEE COUNTRY PARK,PREMISES RELATED EXPENDITURE,ENERGY COSTS (ELECTRICITY),2332,REF 1055495-PUBL CONVENIENCE-12/23-02/24,18/03/2024 00:00,283564,155.65,KE0007,KENT COUNTY COUNCIL (KCS),26/02/2024 00:00,31/03/2024 00:00,P12-2024
P&V,RIVER LEE COUNTRY PARK,PREMISES RELATED EXPENDITURE,ENERGY COSTS (ELECTRICITY),2332,REF 1055513-TOILET BLK-12/23-02/24,20/03/2024 00:00,283565,738.86,KE0007,KENT COUNTY COUNCIL (KCS),26/02/2024 00:00,31/03/2024 00:00,P12-2024
P&V,QUEEN ELIZABETH OLYMPIC PARK,PREMISES RELATED EXPENDITURE,ENERGY COSTS (ELECTRICITY),2332,REF 1055537-EATON MANOR-12/23-02/24,18/03/2024 00:00,283578,318.72,KE0007,KENT COUNTY COUNCIL (KCS),26/02/2024 00:00,31/03/2024 00:00,P12-2024
P&V,QUEEN ELIZABETH OLYMPIC PARK,PREMISES RELATED EXPENDITURE,ENERGY COSTS (ELECTRICITY),2332,REF 1055538-BRIDGE WEST E20-12/23-02/24,18/03/2024 00:00,283579,288.08,KE0007,KENT COUNTY COUNCIL (KCS),26/02/2024 00:00,31/03/2024 00:00,P12-2024
P&V,QUEEN ELIZABETH OLYMPIC PARK,PREMISES RELATED EXPENDITURE,ENERGY COSTS (ELECTRICITY),2332,REF 1055541-FEEDER L05 FP1-FEB 24,18/03/2024 00:00,283580,0.95,KE0007,KENT COUNTY COUNCIL (KCS),26/02/2024 00:00,31/03/2024 00:00,P12-2024
P&V,QUEEN ELIZABETH OLYMPIC PARK,PREMISES RELATED EXPENDITURE,ENERGY COSTS (ELECTRICITY),2332,REF 1055541-FEEDER L05 FP1-FEB 24,18/03/2024 00:00,283580,137.58,KE0007,KENT COUNTY COUNCIL (KCS),26/02/2024 00:00,31/03/2024 00:00,P12-2024
P&V,QUEEN ELIZABETH OLYMPIC PARK,PREMISES RELATED EXPENDITURE,ENERGY COSTS (ELECTRICITY),2332,REF 1055536-N/EAST CORNER C/PARK-1223-02,18/03/2024 00:00,283619,2447.74,KE0007,KENT COUNTY COUNCIL (KCS),26/02/2024 00:00,31/03/2024 00:00,P12-2024
P&V,CAR PARK INCOME,PREMISES RELATED EXPENDITURE,ENERGY COSTS (ELECTRICITY),2332,CLAYTON HILL-ELECT-FEB 2024,20/03/2024 00:00,283698,41.52,NP0123,NPOWER LIMITED,26/02/2024 00:00,31/03/2024 00:00,P12-2024
P&V,CAR PARK INCOME,PREMISES RELATED EXPENDITURE,ENERGY COSTS (ELECTRICITY),2332,CORNMILL MEAD-ELECTR- FEB 24,20/03/2024 00:00,283699,55.58,NP0123,NPOWER LIMITED,26/02/2024 00:00,31/03/2024 00:00,P12-2024
P&V,FORMER LV LIDO SITE,PREMISES RELATED EXPENDITURE,ENERGY COSTS (ELECTRICITY),2332,L POOL-ELEC-JUNE 23,18/03/2024 00:00,282529,155.92,KE0007,KENT COUNTY COUNCIL (KCS),26/02/2024 00:00,31/03/2024 00:00,P12-2024
P&V,FORMER LV LIDO SITE,PREMISES RELATED EXPENDITURE,ENERGY COSTS (ELECTRICITY),2332,L POOL-ELEC-JULY23,18/03/2024 00:00,282530,223.79,KE0007,KENT COUNTY COUNCIL (KCS),26/02/2024 00:00,31/03/2024 00:00,P12-2024
P&V,FORMER LV LIDO SITE,PREMISES RELATED EXPENDITURE,ENERGY COSTS (ELECTRICITY),2332,L POOL-ELEC-AUG 23,18/03/2024 00:00,282531,215.92,KE0007,KENT COUNTY COUNCIL (KCS),26/02/2024 00:00,31/03/2024 00:00,P12-2024
P&V,FORMER LV LIDO SITE,PREMISES RELATED EXPENDITURE,ENERGY COSTS (ELECTRICITY),2332,L POOL-ELEC-SEPT 2023,18/03/2024 00:00,282532,208.12,KE0007,KENT COUNTY COUNCIL (KCS),26/02/2024 00:00,31/03/2024 00:00,P12-2024
P&V,FORMER LV LIDO SITE,PREMISES RELATED EXPENDITURE,ENERGY COSTS (ELECTRICITY),2332,L POOL-ELEC-OCT 2023,18/03/2024 00:00,282533,180.12,KE0007,KENT COUNTY COUNCIL (KCS),26/02/2024 00:00,31/03/2024 00:00,P12-2024
P&V,FORMER LV LIDO SITE,PREMISES RELATED EXPENDITURE,ENERGY COSTS (ELECTRICITY),2332,L POOL- ELEC-NOV 2023,18/03/2024 00:00,282534,175.15,KE0007,KENT COUNTY COUNCIL (KCS),26/02/2024 00:00,31/03/2024 00:00,P12-2024
P&V,FORMER LV LIDO SITE,PREMISES RELATED EXPENDITURE,ENERGY COSTS (ELECTRICITY),2332,L POOL-ELEC-DEC 2023,18/03/2024 00:00,282535,179.95,KE0007,KENT COUNTY COUNCIL (KCS),26/02/2024 00:00,31/03/2024 00:00,P12-2024
P&V,FORMER LV LIDO SITE,PREMISES RELATED EXPENDITURE,ENERGY COSTS (ELECTRICITY),2332,LEISURE POOL- ELECTRIC-01/01-31/01/24,18/03/2024 00:00,282870,149.09,KE0007,KENT COUNTY COUNCIL (KCS),26/02/2024 00:00,31/03/2024 00:00,P12-2024
P&V,FORMER LV LIDO SITE,PREMISES RELATED EXPENDITURE,ENERGY COSTS (ELECTRICITY),2332,LEISURE POOL- ELECTRIC-01/01-31/01/24,18/03/2024 00:00,282870,1.02,KE0007,KENT COUNTY COUNCIL (KCS),26/02/2024 00:00,31/03/2024 00:00,P12-2024
P&V,FORMER LV LIDO SITE,PREMISES RELATED EXPENDITURE,ENERGY COSTS (ELECTRICITY),2332,REF 1032606- ELECTRIC-FEB 2024,18/03/2024 00:00,283561,0.95,KE0007,KENT COUNTY COUNCIL (KCS),26/02/2024 00:00,31/03/2024 00:00,P12-2024
P&V,FORMER LV LIDO SITE,PREMISES RELATED EXPENDITURE,ENERGY COSTS (ELECTRICITY),2332,REF 1032606- ELECTRIC-FEB 2024,18/03/2024 00:00,283561,139.17,KE0007,KENT COUNTY COUNCIL (KCS),26/02/2024 00:00,31/03/2024 00:00,P12-2024
,LV LEISURE CENTRE CAMPSITE,PREMISES RELATED EXPENDITURE,ENERGY COSTS (ELECTRICITY),2332,EDM-ELECTR - FEB 2024,20/03/2024 00:00,283701,12419.37,NP0123,NPOWER LIMITED,26/02/2024 00:00,31/03/2024 00:00,P12-2024
,LEE VALLEY MARINA SPRINGFIELD,PREMISES RELATED EXPENDITURE,ENERGY COSTS (GAS),2333,REF 1011097-SPRINGFIELD-FEB24,20/03/2024 00:00,283628,1357.71,KE0007,KENT COUNTY COUNCIL (KCS),26/02/2024 00:00,31/03/2024 00:00,P12-2024
,LEE VALLEY MARINA STANSTEAD,PREMISES RELATED EXPENDITURE,ENERGY COSTS (GAS),2333,REF 1028774-STANSTEAD-FEB24,19/03/2024 00:00,283631,938.32,KE0007,KENT COUNTY COUNCIL (KCS),26/02/2024 00:00,31/03/2024 00:00,P12-2024
,LEE VALLEY MARINA STANSTEAD,PREMISES RELATED EXPENDITURE,ENERGY COSTS (GAS),2333,REF 1028774-SOUTH ST -GAS-FEB 24,26/03/2024 00:00,283767,187.55,KE0007,KENT COUNTY COUNCIL (KCS),26/02/2024 00:00,31/03/2024 00:00,P12-2024
,LEE VALLEY WATERWORKS CENTRE,PREMISES RELATED EXPENDITURE,ENERGY COSTS (GAS),2333,REF 1013373-WATERWORKS-GAS-FEB24,26/03/2024 00:00,283766,961.88,KE0007,KENT COUNTY COUNCIL (KCS),26/02/2024 00:00,31/03/2024 00:00,P12-2024
,LEE VALLEY CAMPSITE,PREMISES RELATED EXPENDITURE,ENERGY COSTS (GAS),2333,REF 1011059-SEWARDSTONE-FEB24,26/03/2024 00:00,283627,1184.85,KE0007,KENT COUNTY COUNCIL (KCS),26/02/2024 00:00,31/03/2024 00:00,P12-2024
,LEE VALLEY CAMPSITE,PREMISES RELATED EXPENDITURE,ENERGY COSTS (GAS),2333,GAS SUPPLY 15/02/24-15/03/24,26/03/2024 00:00,283665,9.89,BR0654,BRITISH GAS ENERGY,26/02/2024 00:00,31/03/2024 00:00,P12-2024
,LEE VALLEY CARAVAN PARK,PREMISES RELATED EXPENDITURE,ENERGY COSTS (GAS),2333,P125743-SERVICE-LPG Gas,31/03/2024 00:00,284352,4131.72,AV0327,AVANTI GAS LIMITED,26/02/2024 00:00,31/03/2024 00:00,P12-2024
,LEE VALLEY CARAVAN PARK,PREMISES RELATED EXPENDITURE,ENERGY COSTS (GAS),2333,P125742-SERVICE-LPG GAS,31/03/2024 00:00,284353,294.16,AV0327,AVANTI GAS LIMITED,26/02/2024 00:00,31/03/2024 00:00,P12-2024
P&V,GUNPOWDER PARK,PREMISES RELATED EXPENDITURE,ENERGY COSTS (GAS),2333,REF 1014008-GUNPOWDER-FEB24,19/03/2024 00:00,283629,74.36,KE0007,KENT COUNTY COUNCIL (KCS),26/02/2024 00:00,31/03/2024 00:00,P12-2024
,LV LEISURE CENTRE CAMPSITE,PREMISES RELATED EXPENDITURE,ENERGY COSTS (GAS),2333,REF 1011119-EDM-FEB24,20/03/2024 00:00,283630,3785.49,KE0007,KENT COUNTY COUNCIL (KCS),26/02/2024 00:00,31/03/2024 00:00,P12-2024
P&V,MYDDELTON HOUSE,PREMISES RELATED EXPENDITURE,ENERGY COSTS (BIOMASS FUEL),2334,P125461-SERVICE-Wood Pellets,26/03/2024 00:00,283673,1532.72,BA0631,BALCAS TIMBER LTD/BALCAS ENERGY,26/02/2024 00:00,31/03/2024 00:00,P12-2024
,LEE VALLEY MARINA SPRINGFIELD,PREMISES RELATED EXPENDITURE,RENT (EXTERNAL),2442,RENT IN ADVANCE-010324-310524,06/03/2024 00:00,282957,2970,TH0020,THAMES WATER UTILITIES LIMITED,26/02/2024 00:00,31/03/2024 00:00,P12-2024
P&V,NORTH AREA RANGERS,PREMISES RELATED EXPENDITURE,RENT (EXTERNAL),2442,JUNE-SEPTEMBER 2022,31/03/2024 00:00,264303,68.75,TH0020,THAMES WATER UTILITIES LIMITED,26/02/2024 00:00,31/03/2024 00:00,P12-2024
P&V,NORTH AREA RANGERS,PREMISES RELATED EXPENDITURE,RENT (EXTERNAL),2442,SEPEMBER-DECEMBER 2022,31/03/2024 00:00,266938,68.75,TH0020,THAMES WATER UTILITIES LIMITED,26/02/2024 00:00,31/03/2024 00:00,P12-2024
P&V,NORTH AREA RANGERS,PREMISES RELATED EXPENDITURE,RENT (EXTERNAL),2442,Rent in Advance-June-Sept 2023,31/03/2024 00:00,274759,68.75,TH0020,THAMES WATER UTILITIES LIMITED,26/02/2024 00:00,31/03/2024 00:00,P12-2024
P&V,NORTH AREA RANGERS,PREMISES RELATED EXPENDITURE,RENT (EXTERNAL),2442,RENT IN ADVANCE-25DEC23 TO 24MAR24,31/03/2024 00:00,280541,68.75,TH0020,THAMES WATER UTILITIES LIMITED,26/02/2024 00:00,31/03/2024 00:00,P12-2024
P&V,RIVER LEE COUNTRY PARK,PREMISES RELATED EXPENDITURE,RENT (EXTERNAL),2442,AGREEMENT 562-25/10/23-24/04/24,26/03/2024 00:00,283761,7.5,BR0036,CANAL & RIVER TRUST,26/02/2024 00:00,31/03/2024 00:00,P12-2024
,LEE VALLEY CAMPSITE,PREMISES RELATED EXPENDITURE,COUNCIL TAX,2445,C/TAX AMENDMENT 2023/24,20/03/2024 00:00,283662,173.65,EP0025,EPPING FOREST DISTRICT COUNCIL,26/02/2024 00:00,31/03/2024 00:00,P12-2024
CEO,RESIDENTIAL ACCOMMODATION,PREMISES RELATED EXPENDITURE,PROPERTY MANAGEMT/LETTING FEES,2447,P125442-SERVICE-1 Bungalow Landlord Warranty,20/03/2024 00:00,283335,193.8,CA0165,CASTLES,26/02/2024 00:00,31/03/2024 00:00,P12-2024
CEO,RESIDENTIAL ACCOMMODATION,PREMISES RELATED EXPENDITURE,PROPERTY MANAGEMT/LETTING FEES,2447,P125443-SERVICE-1 Bungalow Landlord Fees,20/03/2024 00:00,283336,1140,CA0165,CASTLES,26/02/2024 00:00,31/03/2024 00:00,P12-2024
CEO,RESIDENTIAL ACCOMMODATION,PREMISES RELATED EXPENDITURE,PROPERTY MANAGEMT/LETTING FEES,2447,P125443-SERVICE-1 Bungalow Landlord Fees,31/03/2024 00:00,283337,64.6,CA0165,CASTLES,26/02/2024 00:00,31/03/2024 00:00,P12-2024
CEO,RESIDENTIAL ACCOMMODATION,PREMISES RELATED EXPENDITURE,PROPERTY MANAGEMT/LETTING FEES,2447,P125443-SERVICE-1 Bungalow Landlord Fees,31/03/2024 00:00,283338,380,CA0165,CASTLES,26/02/2024 00:00,31/03/2024 00:00,P12-2024
CEO,RESIDENTIAL ACCOMMODATION,PREMISES RELATED EXPENDITURE,PROPERTY MANAGEMT/LETTING FEES,2447,P125445-SERVICE-Aquaside Landlord Warranty,20/03/2024 00:00,283592,178.5,CA0165,CASTLES,26/02/2024 00:00,31/03/2024 00:00,P12-2024
CEO,RESIDENTIAL ACCOMMODATION,PREMISES RELATED EXPENDITURE,PROPERTY MANAGEMT/LETTING FEES,2447,P125446-SERVICE-Aquaside Landlord Fees,20/03/2024 00:00,283593,1050,CA0165,CASTLES,26/02/2024 00:00,31/03/2024 00:00,P12-2024
CEO,RESIDENTIAL ACCOMMODATION,PREMISES RELATED EXPENDITURE,PROPERTY MANAGEMT/LETTING FEES,2447,P125447-SERVICE-Pindar Cottage Landlord Warranty,20/03/2024 00:00,283594,306,CA0165,CASTLES,26/02/2024 00:00,31/03/2024 00:00,P12-2024
CEO,RESIDENTIAL ACCOMMODATION,PREMISES RELATED EXPENDITURE,PROPERTY MANAGEMT/LETTING FEES,2447,P125448-SERVICE-Pindar Cottage Landlord Fees,20/03/2024 00:00,283595,1800,CA0165,CASTLES,26/02/2024 00:00,31/03/2024 00:00,P12-2024
CEO,RESIDENTIAL ACCOMMODATION,PREMISES RELATED EXPENDITURE,PROPERTY MANAGEMT/LETTING FEES,2447,P125443-SERVICE-1 Bungalow Landlord Fees,31/03/2024 00:00,283968,-444.6,CA0165,CASTLES,26/02/2024 00:00,31/03/2024 00:00,P12-2024
CEO,RESIDENTIAL ACCOMMODATION,PREMISES RELATED EXPENDITURE,PROPERTY MANAGEMT/LETTING FEES,2447,P125669-SERVICE-1 Bungalow - Landlord Fee,31/03/2024 00:00,283970,190,CA0165,CASTLES,26/02/2024 00:00,31/03/2024 00:00,P12-2024
CEO,RESIDENTIAL ACCOMMODATION,PREMISES RELATED EXPENDITURE,PROPERTY MANAGEMT/LETTING FEES,2447,P125670-SERVICE-1 Bungalow Landlord Warranty,31/03/2024 00:00,283971,32.3,CA0165,CASTLES,26/02/2024 00:00,31/03/2024 00:00,P12-2024
P&V,MYDDELTON HOUSE,PREMISES RELATED EXPENDITURE,WATER,2555,Feb-24,12/03/2024 00:00,283393,3440.45,CA0625,CASTLE WATER LIMITED,26/02/2024 00:00,31/03/2024 00:00,P12-2024
P&V,MYDDELTON HOUSE,PREMISES RELATED EXPENDITURE,WATER,2555,REFER TO COMP REF 283393,20/03/2024 00:00,283687,-3440.45,CA0625,CASTLE WATER LIMITED,26/02/2024 00:00,31/03/2024 00:00,P12-2024
P&V,MYDDELTON HOUSE,PREMISES RELATED EXPENDITURE,WATER,2555,MD HSE-WATER- FEB 2024,20/03/2024 00:00,283688,2583.67,CA0625,CASTLE WATER LIMITED,26/02/2024 00:00,31/03/2024 00:00,P12-2024
P&V,MYDDELTON HOUSE,PREMISES RELATED EXPENDITURE,WATER,2555,MD HOUSE-WATER-MARCH 24,31/03/2024 00:00,284398,1616.19,CA0625,CASTLE WATER LIMITED,26/02/2024 00:00,31/03/2024 00:00,P12-2024
,LEE VALLEY MARINA SPRINGFIELD,PREMISES RELATED EXPENDITURE,WATER,2555,Feb-24,05/03/2024 00:00,283131,2160.11,CA0625,CASTLE WATER LIMITED,26/02/2024 00:00,31/03/2024 00:00,P12-2024
,LEE VALLEY MARINA SPRINGFIELD,PREMISES RELATED EXPENDITURE,WATER,2555,Feb-24,05/03/2024 00:00,283131,1326.24,CA0625,CASTLE WATER LIMITED,26/02/2024 00:00,31/03/2024 00:00,P12-2024
,LEE VALLEY MARINA SPRINGFIELD,PREMISES RELATED EXPENDITURE,WATER,2555,SPRINGFIELD-ADJUSTMENT-WATER-JAN24-FEB24,31/03/2024 00:00,283867,-43.65,CA0625,CASTLE WATER LIMITED,26/02/2024 00:00,31/03/2024 00:00,P12-2024
,LEE VALLEY MARINA SPRINGFIELD,PREMISES RELATED EXPENDITURE,WATER,2555,SPRINGFIELD-ADJUSTMENT-WATER-JAN24-FEB24,31/03/2024 00:00,283867,-75.68,CA0625,CASTLE WATER LIMITED,26/02/2024 00:00,31/03/2024 00:00,P12-2024
,LEE VALLEY MARINA SPRINGFIELD,PREMISES RELATED EXPENDITURE,WATER,2555,SPRINGFIELD-WATER-MARCH 2024,31/03/2024 00:00,284350,2356.13,CA0625,CASTLE WATER LIMITED,26/02/2024 00:00,31/03/2024 00:00,P12-2024
,LEE VALLEY MARINA SPRINGFIELD,PREMISES RELATED EXPENDITURE,WATER,2555,SPRINGFIELD-WATER-MARCH 2024,31/03/2024 00:00,284350,1444.83,CA0625,CASTLE WATER LIMITED,26/02/2024 00:00,31/03/2024 00:00,P12-2024
,LEE VALLEY MARINA STANSTEAD,PREMISES RELATED EXPENDITURE,WATER,2555,STANSTEAD-ADJ - OCT23-JAN24,05/03/2024 00:00,282736,-273.06,CA0625,CASTLE WATER LIMITED,26/02/2024 00:00,31/03/2024 00:00,P12-2024
,LEE VALLEY MARINA STANSTEAD,PREMISES RELATED EXPENDITURE,WATER,2555,STANSTEAD-ADJ - OCT23-JAN24,05/03/2024 00:00,282736,-283.67,CA0625,CASTLE WATER LIMITED,26/02/2024 00:00,31/03/2024 00:00,P12-2024
,LEE VALLEY MARINA STANSTEAD,PREMISES RELATED EXPENDITURE,WATER,2555,Feb-24,05/03/2024 00:00,283128,177.53,CA0625,CASTLE WATER LIMITED,26/02/2024 00:00,31/03/2024 00:00,P12-2024
,LEE VALLEY MARINA STANSTEAD,PREMISES RELATED EXPENDITURE,WATER,2555,Feb-24,05/03/2024 00:00,283128,172.93,CA0625,CASTLE WATER LIMITED,26/02/2024 00:00,31/03/2024 00:00,P12-2024
,LEE VALLEY MARINA STANSTEAD,PREMISES RELATED EXPENDITURE,WATER,2555,STANSTEAD-WATER -MARCH 2024,31/03/2024 00:00,284174,203.72,CA0625,CASTLE WATER LIMITED,26/02/2024 00:00,31/03/2024 00:00,P12-2024
,LEE VALLEY MARINA STANSTEAD,PREMISES RELATED EXPENDITURE,WATER,2555,STANSTEAD-WATER -MARCH 2024,31/03/2024 00:00,284174,198.3,CA0625,CASTLE WATER LIMITED,26/02/2024 00:00,31/03/2024 00:00,P12-2024
,LEE VALLEY WATERWORKS CENTRE,PREMISES RELATED EXPENDITURE,WATER,2555,WATERWORKS-WATER-FEB 2024,12/03/2024 00:00,283147,72.05,CA0625,CASTLE WATER LIMITED,26/02/2024 00:00,31/03/2024 00:00,P12-2024
P&V,LEE VALLEY FARM HOLYFIELDHALL,PREMISES RELATED EXPENDITURE,WATER,2555,Feb-24,13/03/2024 00:00,283394,215.42,CA0625,CASTLE WATER LIMITED,26/02/2024 00:00,31/03/2024 00:00,P12-2024
,LEE VALLEY CAMPSITE,PREMISES RELATED EXPENDITURE,WATER,2555,SEWARDSTONE-WATER- FEB 2024,12/03/2024 00:00,283146,1921.16,CA0625,CASTLE WATER LIMITED,26/02/2024 00:00,31/03/2024 00:00,P12-2024
,LEE VALLEY CAMPSITE,PREMISES RELATED EXPENDITURE,WATER,2555,SEWARDSTONE-ADJUSTMENTS- FEB2024,26/03/2024 00:00,283728,-939.39,CA0625,CASTLE WATER LIMITED,26/02/2024 00:00,31/03/2024 00:00,P12-2024
,LEE VALLEY CAMPSITE,PREMISES RELATED EXPENDITURE,WATER,2555,SEWARDSTONE-WATER-MARCH 2024,31/03/2024 00:00,284172,2013.03,CA0625,CASTLE WATER LIMITED,26/02/2024 00:00,31/03/2024 00:00,P12-2024
,LEE VALLEY CARAVAN PARK,PREMISES RELATED EXPENDITURE,WATER,2555,Feb-24,06/03/2024 00:00,283133,2478.4,CA0625,CASTLE WATER LIMITED,26/02/2024 00:00,31/03/2024 00:00,P12-2024
,LEE VALLEY CARAVAN PARK,PREMISES RELATED EXPENDITURE,WATER,2555,Feb-24,06/03/2024 00:00,283133,1509.77,CA0625,CASTLE WATER LIMITED,26/02/2024 00:00,31/03/2024 00:00,P12-2024
,LEE VALLEY CARAVAN PARK,PREMISES RELATED EXPENDITURE,WATER,2555,DW-ADJUSTMENTS JAN 24-FEB24,20/03/2024 00:00,283727,-539.41,CA0625,CASTLE WATER LIMITED,26/02/2024 00:00,31/03/2024 00:00,P12-2024
,LEE VALLEY CARAVAN PARK,PREMISES RELATED EXPENDITURE,WATER,2555,DW-ADJUSTMENTS JAN 24-FEB24,20/03/2024 00:00,283727,-935.46,CA0625,CASTLE WATER LIMITED,26/02/2024 00:00,31/03/2024 00:00,P12-2024
P&V,RIVER LEE COUNTRY PARK,PREMISES RELATED EXPENDITURE,WATER,2555,NETHERFIELD-WATER-FEB 24,12/03/2024 00:00,283373,38.89,CA0625,CASTLE WATER LIMITED,26/02/2024 00:00,31/03/2024 00:00,P12-2024
P&V,RIVER LEE COUNTRY PARK,PREMISES RELATED EXPENDITURE,WATER,2555,Feb-24,12/03/2024 00:00,283392,48.52,CA0625,CASTLE WATER LIMITED,26/02/2024 00:00,31/03/2024 00:00,P12-2024
P&V,RIVER LEE COUNTRY PARK,PREMISES RELATED EXPENDITURE,WATER,2555,PUBLIC CONV-FISHERS G- WATER FEB 24,31/03/2024 00:00,284198,-43.67,CA0625,CASTLE WATER LIMITED,26/02/2024 00:00,31/03/2024 00:00,P12-2024
P&V,RIVER LEE COUNTRY PARK,PREMISES RELATED EXPENDITURE,WATER,2555,NETHERFIELD-WATER-MARCH24,31/03/2024 00:00,284465,75.44,CA0625,CASTLE WATER LIMITED,26/02/2024 00:00,31/03/2024 00:00,P12-2024
P&V,FORMER LV LIDO SITE,PREMISES RELATED EXPENDITURE,WATER,2555,BROX- WATER - FEB2024,31/03/2024 00:00,283912,-1084.91,CA0625,CASTLE WATER LIMITED,26/02/2024 00:00,31/03/2024 00:00,P12-2024
P&V,FORMER LV LIDO SITE,PREMISES RELATED EXPENDITURE,WATER,2555,BROX- WATER - FEB2024,31/03/2024 00:00,283912,-443.97,CA0625,CASTLE WATER LIMITED,26/02/2024 00:00,31/03/2024 00:00,P12-2024
P&V,FORMER LV LIDO SITE,PREMISES RELATED EXPENDITURE,WATER,2555,BROX RIVERSIDE-WATER MARCH 24,31/03/2024 00:00,284399,403.29,CA0625,CASTLE WATER LIMITED,26/02/2024 00:00,31/03/2024 00:00,P12-2024
P&V,FORMER LV LIDO SITE,PREMISES RELATED EXPENDITURE,WATER,2555,BROX RIVERSIDE-WATER MARCH 24,31/03/2024 00:00,284399,423.8,CA0625,CASTLE WATER LIMITED,26/02/2024 00:00,31/03/2024 00:00,P12-2024
,LV LEISURE CENTRE CAMPSITE,PREMISES RELATED EXPENDITURE,WATER,2555,PICKETTS LOCK - ADJ - DEC 23,05/03/2024 00:00,282869,-157.21,CA0625,CASTLE WATER LIMITED,26/02/2024 00:00,31/03/2024 00:00,P12-2024
,LV LEISURE CENTRE CAMPSITE,PREMISES RELATED EXPENDITURE,WATER,2555,PICKETTS LOCK - ADJ - DEC 23,05/03/2024 00:00,282869,-90.64,CA0625,CASTLE WATER LIMITED,26/02/2024 00:00,31/03/2024 00:00,P12-2024
,LV LEISURE CENTRE CAMPSITE,PREMISES RELATED EXPENDITURE,WATER,2555,Feb-24,06/03/2024 00:00,283130,461.71,CA0625,CASTLE WATER LIMITED,26/02/2024 00:00,31/03/2024 00:00,P12-2024
,LV LEISURE CENTRE CAMPSITE,PREMISES RELATED EXPENDITURE,WATER,2555,Feb-24,06/03/2024 00:00,283130,240.66,CA0625,CASTLE WATER LIMITED,26/02/2024 00:00,31/03/2024 00:00,P12-2024
,LV LEISURE CENTRE CAMPSITE,PREMISES RELATED EXPENDITURE,WATER,2555,EDM-WATER-FEB 2024,13/03/2024 00:00,283305,40.41,CA0625,CASTLE WATER LIMITED,26/02/2024 00:00,31/03/2024 00:00,P12-2024
,LV LEISURE CENTRE CAMPSITE,PREMISES RELATED EXPENDITURE,WATER,2555,EDM-WATER-FEB 2024,13/03/2024 00:00,283305,34.86,CA0625,CASTLE WATER LIMITED,26/02/2024 00:00,31/03/2024 00:00,P12-2024
,LV LEISURE CENTRE CAMPSITE,PREMISES RELATED EXPENDITURE,WATER,2555,EDM-ADJUSTMENTS-WATER-JAN24-FEB24,31/03/2024 00:00,283866,-55.95,CA0625,CASTLE WATER LIMITED,26/02/2024 00:00,31/03/2024 00:00,P12-2024
,LV LEISURE CENTRE CAMPSITE,PREMISES RELATED EXPENDITURE,WATER,2555,EDM-ADJUSTMENTS-WATER-JAN24-FEB24,31/03/2024 00:00,283866,-97.04,CA0625,CASTLE WATER LIMITED,26/02/2024 00:00,31/03/2024 00:00,P12-2024
,LV LEISURE CENTRE CAMPSITE,PREMISES RELATED EXPENDITURE,WATER,2555,PICKETTS LOCK-WATER-MARCH 2024,31/03/2024 00:00,284349,37.99,CA0625,CASTLE WATER LIMITED,26/02/2024 00:00,31/03/2024 00:00,P12-2024
,LV LEISURE CENTRE CAMPSITE,PREMISES RELATED EXPENDITURE,WATER,2555,PICKETTS LOCK-WATER-MARCH 2024,31/03/2024 00:00,284349,44.48,CA0625,CASTLE WATER LIMITED,26/02/2024 00:00,31/03/2024 00:00,P12-2024
,LV LEISURE CENTRE CAMPSITE,PREMISES RELATED EXPENDITURE,WATER,2555,PICKETTS LOCK-WATER-MARCH 2024,31/03/2024 00:00,284351,504.13,CA0625,CASTLE WATER LIMITED,26/02/2024 00:00,31/03/2024 00:00,P12-2024
,LV LEISURE CENTRE CAMPSITE,PREMISES RELATED EXPENDITURE,WATER,2555,PICKETTS LOCK-WATER-MARCH 2024,31/03/2024 00:00,284351,275.59,CA0625,CASTLE WATER LIMITED,26/02/2024 00:00,31/03/2024 00:00,P12-2024
P&V,MYDDELTON HOUSE,PREMISES RELATED EXPENDITURE,CLEANING & DOMESTIC SUPPLIES,2666,P124012-SERVICE-amazon cleaning supplies,13/03/2024 00:00,283355,19.99,AM0406,AMAZON PAYMENTS UK LIMITED,26/02/2024 00:00,31/03/2024 00:00,P12-2024
,LEE VALLEY MARINA SPRINGFIELD,PREMISES RELATED EXPENDITURE,CLEANING & DOMESTIC SUPPLIES,2666,P124634-SERVICE-Site cleaning December to March,12/03/2024 00:00,283214,1070.52,MA0015,MAYFAIR CLEANING COMPANY LIMITED,26/02/2024 00:00,31/03/2024 00:00,P12-2024
,LEE VALLEY MARINA SPRINGFIELD,PREMISES RELATED EXPENDITURE,CLEANING & DOMESTIC SUPPLIES,2666,P124869-SERVICE-To supply items as requested,19/03/2024 00:00,283371,136.2,HY0043,HYGIENE SYSTEMS LTD,26/02/2024 00:00,31/03/2024 00:00,P12-2024
,LEE VALLEY MARINA SPRINGFIELD,PREMISES RELATED EXPENDITURE,CLEANING & DOMESTIC SUPPLIES,2666,P124634-SERVICE-Site cleaning December to March,31/03/2024 00:00,284371,1070.52,MA0015,MAYFAIR CLEANING COMPANY LIMITED,26/02/2024 00:00,31/03/2024 00:00,P12-2024
,LEE VALLEY MARINA STANSTEAD,PREMISES RELATED EXPENDITURE,CLEANING & DOMESTIC SUPPLIES,2666,P125297-SERVICE-loo rolls,19/03/2024 00:00,283621,108.4,HY0043,HYGIENE SYSTEMS LTD,26/02/2024 00:00,31/03/2024 00:00,P12-2024
,LEE VALLEY CAMPSITE,PREMISES RELATED EXPENDITURE,CLEANING & DOMESTIC SUPPLIES,2666,P124279-SERVICE-incresea value to cover invoice,31/03/2024 00:00,284207,202.46,HY0043,HYGIENE SYSTEMS LTD,26/02/2024 00:00,31/03/2024 00:00,P12-2024
,LEE VALLEY CAMPSITE,PREMISES RELATED EXPENDITURE,CLEANING & DOMESTIC SUPPLIES,2666,P124279-SERVICE-Site cleaning  materials,31/03/2024 00:00,284207,26.25,HY0043,HYGIENE SYSTEMS LTD,26/02/2024 00:00,31/03/2024 00:00,P12-2024
,LEE VALLEY CARAVAN PARK,PREMISES RELATED EXPENDITURE,CLEANING & DOMESTIC SUPPLIES,2666,P125292-SERVICE-Cleaning supplies,26/03/2024 00:00,283620,429.06,HY0043,HYGIENE SYSTEMS LTD,26/02/2024 00:00,31/03/2024 00:00,P12-2024
P&V,RIVER LEE COUNTRY PARK,PREMISES RELATED EXPENDITURE,CLEANING & DOMESTIC SUPPLIES,2666,P125162-SERVICE-1x Vacuum Cleaner Bags For Henry - NU71560,31/03/2024 00:00,283958,12.87,TH0008,JKL SOLUTIONS LTD,26/02/2024 00:00,31/03/2024 00:00,P12-2024
,LV LEISURE CENTRE CAMPSITE,PREMISES RELATED EXPENDITURE,CLEANING & DOMESTIC SUPPLIES,2666,P125097-SERVICE-Cleaning supplies,05/03/2024 00:00,282985,297.24,HY0043,HYGIENE SYSTEMS LTD,26/02/2024 00:00,31/03/2024 00:00,P12-2024
,LV LEISURE CENTRE CAMPSITE,PREMISES RELATED EXPENDITURE,CLEANING & DOMESTIC SUPPLIES,2666,P125137-SERVICE-Mop heads,06/03/2024 00:00,283113,14.84,HY0043,HYGIENE SYSTEMS LTD,26/02/2024 00:00,31/03/2024 00:00,P12-2024
,LV LEISURE CENTRE CAMPSITE,PREMISES RELATED EXPENDITURE,CLEANING & DOMESTIC SUPPLIES,2666,P125229-SERVICE-Black sacks,19/03/2024 00:00,283429,123.6,HY0043,HYGIENE SYSTEMS LTD,26/02/2024 00:00,31/03/2024 00:00,P12-2024
,LV LEISURE CENTRE CAMPSITE,PREMISES RELATED EXPENDITURE,CLEANING & DOMESTIC SUPPLIES,2666,P125396-SERVICE-Hand Sanister,31/03/2024 00:00,283868,41.4,HY0043,HYGIENE SYSTEMS LTD,26/02/2024 00:00,31/03/2024 00:00,P12-2024
CEO,COMMERCIAL ACCOMMODATION,TRANSPORT RELATED EXPENDITURE,TRANSPORT RUNNING EXPENSES,3333,P123754-SERVICE-Standing Charge & Gas LV Forge,12/03/2024 00:00,278402,19.61,CA0006,CALOR GAS LIMITED,26/02/2024 00:00,31/03/2024 00:00,P12-2024
CEO,COMMERCIAL ACCOMMODATION,TRANSPORT RELATED EXPENDITURE,TRANSPORT RUNNING EXPENSES,3333,P123754-SERVICE-Standing Charge & Gas LV Forge,12/03/2024 00:00,282891,-36.89,CA0006,CALOR GAS LIMITED,26/02/2024 00:00,31/03/2024 00:00,P12-2024
P&V,LEE VALLEY FARM HOLYFIELDHALL,TRANSPORT RELATED EXPENDITURE,TRANSPORT RUNNING EXPENSES,3333,P121496-SERVICE-Workshop Sundries,05/03/2024 00:00,283091,21.6,GR0022,GROUP COMPONENTS LIMITED,26/02/2024 00:00,31/03/2024 00:00,P12-2024
P&V,LEE VALLEY FARM HOLYFIELDHALL,TRANSPORT RELATED EXPENDITURE,TRANSPORT RUNNING EXPENSES,3333,P121496-SERVICE-Workshop Sundries,05/03/2024 00:00,283092,64.73,GR0022,GROUP COMPONENTS LIMITED,26/02/2024 00:00,31/03/2024 00:00,P12-2024
P&V,LEE VALLEY FARM HOLYFIELDHALL,TRANSPORT RELATED EXPENDITURE,TRANSPORT RUNNING EXPENSES,3333,P125167-SERVICE-Roller,12/03/2024 00:00,283099,616.55,BO0292,R C BOREHAM & CO LTD,26/02/2024 00:00,31/03/2024 00:00,P12-2024
P&V,LEE VALLEY FARM HOLYFIELDHALL,TRANSPORT RELATED EXPENDITURE,TRANSPORT RUNNING EXPENSES,3333,P125016-SERVICE-Combine Service,12/03/2024 00:00,283100,480,BU0088,BURNELL CONTRACTING,26/02/2024 00:00,31/03/2024 00:00,P12-2024
P&V,LEE VALLEY FARM HOLYFIELDHALL,TRANSPORT RELATED EXPENDITURE,TRANSPORT RUNNING EXPENSES,3333,P125169-SERVICE-Loler Testing,12/03/2024 00:00,283213,140,AC0506,A.C.E. LIFTING LTD,26/02/2024 00:00,31/03/2024 00:00,P12-2024
P&V,LEE VALLEY FARM HOLYFIELDHALL,TRANSPORT RELATED EXPENDITURE,TRANSPORT RUNNING EXPENSES,3333,P121496-SERVICE-Workshop Sundries,19/03/2024 00:00,283422,31.74,GR0022,GROUP COMPONENTS LIMITED,26/02/2024 00:00,31/03/2024 00:00,P12-2024
P&V,LEE VALLEY FARM HOLYFIELDHALL,TRANSPORT RELATED EXPENDITURE,TRANSPORT RUNNING EXPENSES,3333,P125401-SERVICE-20ft Mobile Crush & Holding Pen,26/03/2024 00:00,283742,7393,PA0481,PARRIS TRACTORS LTD,26/02/2024 00:00,31/03/2024 00:00,P12-2024
P&V,LEE VALLEY FARM HOLYFIELDHALL,TRANSPORT RELATED EXPENDITURE,TRANSPORT RUNNING EXPENSES,3333,P121509-SERVICE-Tractor Spares,31/03/2024 00:00,283760,19.48,RW0257,R. W. CRAWFORD AGRICULTURAL MACHINERY LTD,26/02/2024 00:00,31/03/2024 00:00,P12-2024
P&V,LEE VALLEY FARM HOLYFIELDHALL,TRANSPORT RELATED EXPENDITURE,TRANSPORT RUNNING EXPENSES,3333,P121500-SERVICE-Hose Repairs/Sundries,31/03/2024 00:00,283855,60.48,HU0003,ALLIANCE AUTOMOTIVE UK CV LIMITED T/A,26/02/2024 00:00,31/03/2024 00:00,P12-2024
P&V,LEE VALLEY FARM HOLYFIELDHALL,TRANSPORT RELATED EXPENDITURE,TRANSPORT RUNNING EXPENSES,3333,P121509-SERVICE-Tractor Spares,31/03/2024 00:00,283882,104.99,RW0257,R. W. CRAWFORD AGRICULTURAL MACHINERY LTD,26/02/2024 00:00,31/03/2024 00:00,P12-2024
P&V,LEE VALLEY FARM HOLYFIELDHALL,TRANSPORT RELATED EXPENDITURE,TRANSPORT RUNNING EXPENSES,3333,P121500-SERVICE-Hose Repairs/Sundries,31/03/2024 00:00,283891,113.94,HU0003,ALLIANCE AUTOMOTIVE UK CV LIMITED T/A,26/02/2024 00:00,31/03/2024 00:00,P12-2024
P&V,LEE VALLEY FARM HOLYFIELDHALL,TRANSPORT RELATED EXPENDITURE,TRANSPORT RUNNING EXPENSES,3333,P125496-SERVICE-7500ltr Diesel Tank,31/03/2024 00:00,283983,7450,TA0652,THE TANK SHOP LTD,26/02/2024 00:00,31/03/2024 00:00,P12-2024
P&V,LEE VALLEY FARM HOLYFIELDHALL,TRANSPORT RELATED EXPENDITURE,TRANSPORT RUNNING EXPENSES,3333,P125494-SERVICE-3000ltr Red Diesel,31/03/2024 00:00,283984,1945.61,TE0052,CERTAS ENERGY UK LIMITED,26/02/2024 00:00,31/03/2024 00:00,P12-2024
P&V,LEE VALLEY FARM HOLYFIELDHALL,TRANSPORT RELATED EXPENDITURE,TRANSPORT RUNNING EXPENSES,3333,"P125414-SERVICE-Galvanised Lath at Top of Curtain, Refit Curt",31/03/2024 00:00,284012,689,ES0392,ESSEX DOORS & SHUTTERS LTD,26/02/2024 00:00,31/03/2024 00:00,P12-2024
P&V,LEE VALLEY FARM HOLYFIELDHALL,TRANSPORT RELATED EXPENDITURE,TRANSPORT RUNNING EXPENSES,3333,P125625-SERVICE-Additional Charge fro Underprice Invoice,31/03/2024 00:00,284124,133,KB0006,CITY 1ST LTD (frmly KB TYRES LTD),26/02/2024 00:00,31/03/2024 00:00,P12-2024
P&V,LEE VALLEY FARM HOLYFIELDHALL,TRANSPORT RELATED EXPENDITURE,TRANSPORT RUNNING EXPENSES,3333,P123503-SERVICE-Tractor Spares,31/03/2024 00:00,284185,1090.1,OL0001,OLIVER AGRICULTURE LTD,26/02/2024 00:00,31/03/2024 00:00,P12-2024
P&V,LEE VALLEY FARM HOLYFIELDHALL,TRANSPORT RELATED EXPENDITURE,TRANSPORT RUNNING EXPENSES,3333,P125009-SERVICE-Tractor Service & Combine Fault,31/03/2024 00:00,284187,6654.99,RW0257,R. W. CRAWFORD AGRICULTURAL MACHINERY LTD,26/02/2024 00:00,31/03/2024 00:00,P12-2024
P&V,LEE VALLEY FARM HOLYFIELDHALL,TRANSPORT RELATED EXPENDITURE,TRANSPORT RUNNING EXPENSES,3333,P125624-SERVICE-Various Parts,31/03/2024 00:00,284212,531.64,RW0257,R. W. CRAWFORD AGRICULTURAL MACHINERY LTD,26/02/2024 00:00,31/03/2024 00:00,P12-2024
P&V,LEE VALLEY FARM HOLYFIELDHALL,TRANSPORT RELATED EXPENDITURE,TRANSPORT RUNNING EXPENSES,3333,P125495-SERVICE-Battery Powered Blower,31/03/2024 00:00,284214,489.25,DO0027,ERNEST DOE & SONS LTD,26/02/2024 00:00,31/03/2024 00:00,P12-2024
P&V,LEE VALLEY FARM HOLYFIELDHALL,TRANSPORT RELATED EXPENDITURE,TRANSPORT RUNNING EXPENSES,3333,P125729-SERVICE-Loler Test,31/03/2024 00:00,284428,140,AC0506,A.C.E. LIFTING LTD,26/02/2024 00:00,31/03/2024 00:00,P12-2024
P&V,LEE VALLEY FARM HOLYFIELDHALL,TRANSPORT RELATED EXPENDITURE,TRANSPORT RUNNING EXPENSES,3333,P125597-SERVICE-Loler Testing,31/03/2024 00:00,284429,180.56,AC0506,A.C.E. LIFTING LTD,26/02/2024 00:00,31/03/2024 00:00,P12-2024
P&V,FISHERIES MANAGEMENT,TRANSPORT RELATED EXPENDITURE,VEHICLE FUEL,3335,ALLSTAR BUSINESS SOLUTIONS LTD,31/03/2024 00:00,284184,2.49,AR0035,ALLSTAR BUSINESS SOLUTIONS LTD,26/02/2024 00:00,31/03/2024 00:00,P12-2024
,LEE VALLEY MARINA STANSTEAD,TRANSPORT RELATED EXPENDITURE,VEHICLE FUEL,3335,ALLSTAR BUSINESS SOLUTIONS LTD,06/03/2024 00:00,283152,89.28,AR0035,ALLSTAR BUSINESS SOLUTIONS LTD,26/02/2024 00:00,31/03/2024 00:00,P12-2024
,LEE VALLEY MARINA STANSTEAD,TRANSPORT RELATED EXPENDITURE,VEHICLE FUEL,3335,ALLSTAR BUSINESS SOLUTIONS LTD,06/03/2024 00:00,283152,4.98,AR0035,ALLSTAR BUSINESS SOLUTIONS LTD,26/02/2024 00:00,31/03/2024 00:00,P12-2024
,LEE VALLEY MARINA STANSTEAD,TRANSPORT RELATED EXPENDITURE,VEHICLE FUEL,3335,ALLSTAR BUSINESS SOLUTIONS LTD,31/03/2024 00:00,284184,73.77,AR0035,ALLSTAR BUSINESS SOLUTIONS LTD,26/02/2024 00:00,31/03/2024 00:00,P12-2024
,LEE VALLEY MARINA STANSTEAD,TRANSPORT RELATED EXPENDITURE,VEHICLE FUEL,3335,ALLSTAR BUSINESS SOLUTIONS LTD,31/03/2024 00:00,284184,4.98,AR0035,ALLSTAR BUSINESS SOLUTIONS LTD,26/02/2024 00:00,31/03/2024 00:00,P12-2024
,STANSTEAD RECHARGEABLE WORKS,TRANSPORT RELATED EXPENDITURE,VEHICLE FUEL,3335,P125012-SERVICE-white diesel,05/03/2024 00:00,282850,318,SP0543,SPEEDY FUELS LIMITED,26/02/2024 00:00,31/03/2024 00:00,P12-2024
,STANSTEAD RECHARGEABLE WORKS,TRANSPORT RELATED EXPENDITURE,VEHICLE FUEL,3335,P125536-SERVICE-200 ltrs white diesel,31/03/2024 00:00,284115,288.65,SP0543,SPEEDY FUELS LIMITED,26/02/2024 00:00,31/03/2024 00:00,P12-2024
P&V,LEE VALLEY FARM HOLYFIELDHALL,TRANSPORT RELATED EXPENDITURE,VEHICLE FUEL,3335,ALLSTAR BUSINESS SOLUTIONS LTD,06/03/2024 00:00,283152,4.98,AR0035,ALLSTAR BUSINESS SOLUTIONS LTD,26/02/2024 00:00,31/03/2024 00:00,P12-2024
P&V,LEE VALLEY FARM HOLYFIELDHALL,TRANSPORT RELATED EXPENDITURE,VEHICLE FUEL,3335,ALLSTAR BUSINESS SOLUTIONS LTD,06/03/2024 00:00,283152,76.95,AR0035,ALLSTAR BUSINESS SOLUTIONS LTD,26/02/2024 00:00,31/03/2024 00:00,P12-2024
P&V,LEE VALLEY FARM HOLYFIELDHALL,TRANSPORT RELATED EXPENDITURE,VEHICLE FUEL,3335,ALLSTAR BUSINESS SOLUTIONS LTD,31/03/2024 00:00,284184,168.72,AR0035,ALLSTAR BUSINESS SOLUTIONS LTD,26/02/2024 00:00,31/03/2024 00:00,P12-2024
P&V,LEE VALLEY FARM HOLYFIELDHALL,TRANSPORT RELATED EXPENDITURE,VEHICLE FUEL,3335,ALLSTAR BUSINESS SOLUTIONS LTD,31/03/2024 00:00,284184,4.98,AR0035,ALLSTAR BUSINESS SOLUTIONS LTD,26/02/2024 00:00,31/03/2024 00:00,P12-2024
,LEE VALLEY CAMPSITE,TRANSPORT RELATED EXPENDITURE,VEHICLE FUEL,3335,ALLSTAR BUSINESS SOLUTIONS LTD,06/03/2024 00:00,283152,4.98,AR0035,ALLSTAR BUSINESS SOLUTIONS LTD,26/02/2024 00:00,31/03/2024 00:00,P12-2024
,LEE VALLEY CAMPSITE,TRANSPORT RELATED EXPENDITURE,VEHICLE FUEL,3335,ALLSTAR BUSINESS SOLUTIONS LTD,06/03/2024 00:00,283152,48.38,AR0035,ALLSTAR BUSINESS SOLUTIONS LTD,26/02/2024 00:00,31/03/2024 00:00,P12-2024
,LEE VALLEY CAMPSITE,TRANSPORT RELATED EXPENDITURE,VEHICLE FUEL,3335,ALLSTAR BUSINESS SOLUTIONS LTD,31/03/2024 00:00,284184,4.98,AR0035,ALLSTAR BUSINESS SOLUTIONS LTD,26/02/2024 00:00,31/03/2024 00:00,P12-2024
,LEE VALLEY CAMPSITE,TRANSPORT RELATED EXPENDITURE,VEHICLE FUEL,3335,ALLSTAR BUSINESS SOLUTIONS LTD,31/03/2024 00:00,284184,43.72,AR0035,ALLSTAR BUSINESS SOLUTIONS LTD,26/02/2024 00:00,31/03/2024 00:00,P12-2024
,LEE VALLEY CARAVAN PARK,TRANSPORT RELATED EXPENDITURE,VEHICLE FUEL,3335,ALLSTAR BUSINESS SOLUTIONS LTD,06/03/2024 00:00,283152,147.64,AR0035,ALLSTAR BUSINESS SOLUTIONS LTD,26/02/2024 00:00,31/03/2024 00:00,P12-2024
,LEE VALLEY CARAVAN PARK,TRANSPORT RELATED EXPENDITURE,VEHICLE FUEL,3335,ALLSTAR BUSINESS SOLUTIONS LTD,06/03/2024 00:00,283152,4.98,AR0035,ALLSTAR BUSINESS SOLUTIONS LTD,26/02/2024 00:00,31/03/2024 00:00,P12-2024
,LEE VALLEY CARAVAN PARK,TRANSPORT RELATED EXPENDITURE,VEHICLE FUEL,3335,ALLSTAR BUSINESS SOLUTIONS LTD,31/03/2024 00:00,284184,4.98,AR0035,ALLSTAR BUSINESS SOLUTIONS LTD,26/02/2024 00:00,31/03/2024 00:00,P12-2024
,LEE VALLEY CARAVAN PARK,TRANSPORT RELATED EXPENDITURE,VEHICLE FUEL,3335,ALLSTAR BUSINESS SOLUTIONS LTD,31/03/2024 00:00,284184,118.31,AR0035,ALLSTAR BUSINESS SOLUTIONS LTD,26/02/2024 00:00,31/03/2024 00:00,P12-2024
P&V,MYDDELTON HOUSE GARDENS,TRANSPORT RELATED EXPENDITURE,VEHICLE FUEL,3335,ALLSTAR BUSINESS SOLUTIONS LTD,06/03/2024 00:00,283152,2.49,AR0035,ALLSTAR BUSINESS SOLUTIONS LTD,26/02/2024 00:00,31/03/2024 00:00,P12-2024
P&V,MYDDELTON HOUSE GARDENS,TRANSPORT RELATED EXPENDITURE,VEHICLE FUEL,3335,ALLSTAR BUSINESS SOLUTIONS LTD,31/03/2024 00:00,284184,2.49,AR0035,ALLSTAR BUSINESS SOLUTIONS LTD,26/02/2024 00:00,31/03/2024 00:00,P12-2024
P&V,NORTH AREA RANGERS,TRANSPORT RELATED EXPENDITURE,VEHICLE FUEL,3335,ALLSTAR BUSINESS SOLUTIONS LTD,06/03/2024 00:00,283152,109.93,AR0035,ALLSTAR BUSINESS SOLUTIONS LTD,26/02/2024 00:00,31/03/2024 00:00,P12-2024
P&V,NORTH AREA RANGERS,TRANSPORT RELATED EXPENDITURE,VEHICLE FUEL,3335,ALLSTAR BUSINESS SOLUTIONS LTD,06/03/2024 00:00,283152,17.43,AR0035,ALLSTAR BUSINESS SOLUTIONS LTD,26/02/2024 00:00,31/03/2024 00:00,P12-2024
P&V,NORTH AREA RANGERS,TRANSPORT RELATED EXPENDITURE,VEHICLE FUEL,3335,ALLSTAR BUSINESS SOLUTIONS LTD,31/03/2024 00:00,284184,19.92,AR0035,ALLSTAR BUSINESS SOLUTIONS LTD,26/02/2024 00:00,31/03/2024 00:00,P12-2024
P&V,NORTH AREA RANGERS,TRANSPORT RELATED EXPENDITURE,VEHICLE FUEL,3335,ALLSTAR BUSINESS SOLUTIONS LTD,31/03/2024 00:00,284184,154.9,AR0035,ALLSTAR BUSINESS SOLUTIONS LTD,26/02/2024 00:00,31/03/2024 00:00,P12-2024
P&V,SOUTH AREA RANGERS,TRANSPORT RELATED EXPENDITURE,VEHICLE FUEL,3335,ALLSTAR BUSINESS SOLUTIONS LTD,06/03/2024 00:00,283152,148.63,AR0035,ALLSTAR BUSINESS SOLUTIONS LTD,26/02/2024 00:00,31/03/2024 00:00,P12-2024
P&V,SOUTH AREA RANGERS,TRANSPORT RELATED EXPENDITURE,VEHICLE FUEL,3335,ALLSTAR BUSINESS SOLUTIONS LTD,06/03/2024 00:00,283152,12.45,AR0035,ALLSTAR BUSINESS SOLUTIONS LTD,26/02/2024 00:00,31/03/2024 00:00,P12-2024
P&V,SOUTH AREA RANGERS,TRANSPORT RELATED EXPENDITURE,VEHICLE FUEL,3335,ALLSTAR BUSINESS SOLUTIONS LTD,31/03/2024 00:00,284184,454.33,AR0035,ALLSTAR BUSINESS SOLUTIONS LTD,26/02/2024 00:00,31/03/2024 00:00,P12-2024
P&V,SOUTH AREA RANGERS,TRANSPORT RELATED EXPENDITURE,VEHICLE FUEL,3335,ALLSTAR BUSINESS SOLUTIONS LTD,31/03/2024 00:00,284184,12.45,AR0035,ALLSTAR BUSINESS SOLUTIONS LTD,26/02/2024 00:00,31/03/2024 00:00,P12-2024
,LV LEISURE CENTRE CAMPSITE,TRANSPORT RELATED EXPENDITURE,VEHICLE FUEL,3335,ALLSTAR BUSINESS SOLUTIONS LTD,06/03/2024 00:00,283152,2.49,AR0035,ALLSTAR BUSINESS SOLUTIONS LTD,26/02/2024 00:00,31/03/2024 00:00,P12-2024
,LV LEISURE CENTRE CAMPSITE,TRANSPORT RELATED EXPENDITURE,VEHICLE FUEL,3335,ALLSTAR BUSINESS SOLUTIONS LTD,31/03/2024 00:00,284184,2.49,AR0035,ALLSTAR BUSINESS SOLUTIONS LTD,26/02/2024 00:00,31/03/2024 00:00,P12-2024
,LV LEISURE CENTRE CAMPSITE,TRANSPORT RELATED EXPENDITURE,VEHICLE FUEL,3335,ALLSTAR BUSINESS SOLUTIONS LTD,31/03/2024 00:00,284184,17.03,AR0035,ALLSTAR BUSINESS SOLUTIONS LTD,26/02/2024 00:00,31/03/2024 00:00,P12-2024
P&V,NORTH AREA RANGERS,TRANSPORT RELATED EXPENDITURE,VEHICLE REPAIRS & MAINTENANCE,3338,P125163-SERVICE-Collection & Delivery of Vehilce GK65 MRU,12/03/2024 00:00,283291,180,CO0773,COLE GREEN RECOVERY,26/02/2024 00:00,31/03/2024 00:00,P12-2024
P&V,NORTH AREA RANGERS,TRANSPORT RELATED EXPENDITURE,VEHICLE REPAIRS & MAINTENANCE,3338,P125209-SERVICE-1x John Deere gator 855D Transmission Oil,26/03/2024 00:00,283738,40,AB0153,ABBEY SERVICE CENTRE,26/02/2024 00:00,31/03/2024 00:00,P12-2024
P&V,SOUTH AREA RANGERS,TRANSPORT RELATED EXPENDITURE,VEHICLE REPAIRS & MAINTENANCE,3338,P125173-SERVICE-Service Vehicle EY71PJV,05/03/2024 00:00,283107,115.25,DR0326,DRIVING FORCE,26/02/2024 00:00,31/03/2024 00:00,P12-2024
P&V,SOUTH AREA RANGERS,TRANSPORT RELATED EXPENDITURE,VEHICLE REPAIRS & MAINTENANCE,3338,WAVES HAND AR WASH- VEHICLE MAINTENANCE,12/03/2024 00:00,283359,30,FI0001,DIRECTOR OF FINANCE - CASH,26/02/2024 00:00,31/03/2024 00:00,P12-2024
P&V,RIVER LEE COUNTRY PARK,TRANSPORT RELATED EXPENDITURE,VEHICLE REPAIRS & MAINTENANCE,3338,P125042-SERVICE-Vehicle Repairs - AE73ZUA,31/03/2024 00:00,283659,985,LD0487,L D MCBRIDE,26/02/2024 00:00,31/03/2024 00:00,P12-2024
P&V,YOUTH AND SCHOOLS,TRANSPORT RELATED EXPENDITURE,TRAVELLING EXPENSES,3344,TRAVEL,27/03/2024 00:00,283922,18,FI0001,DIRECTOR OF FINANCE - CASH,26/02/2024 00:00,31/03/2024 00:00,P12-2024
P&V,VOLUNTEERS (L&E),TRANSPORT RELATED EXPENDITURE,TRAVELLING EXPENSES,3344,VOLUNTEER-TRAVEL EXP-091223-161223,20/03/2024 00:00,283651,20.6,LI0485,BEN LISH,26/02/2024 00:00,31/03/2024 00:00,P12-2024
P&V,VOLUNTEERS (L&E),TRANSPORT RELATED EXPENDITURE,TRAVELLING EXPENSES,3344,VOLUNTEER EXP-041023-290224,31/03/2024 00:00,283978,153.3,BA0659,ROBERT BATH,26/02/2024 00:00,31/03/2024 00:00,P12-2024
P&V,VOLUNTEERS (L&E),TRANSPORT RELATED EXPENDITURE,TRAVELLING EXPENSES,3344,TRAVEL EXPNSES - 030224-300324,31/03/2024 00:00,284306,126.9,CH0762,MRS BRENDA CHANTER,26/02/2024 00:00,31/03/2024 00:00,P12-2024
P&V,VOLUNTEERS (L&E),TRANSPORT RELATED EXPENDITURE,TRAVELLING EXPENSES,3344,travel expense-020324-300324,31/03/2024 00:00,284437,27.55,LI0485,BEN LISH,26/02/2024 00:00,31/03/2024 00:00,P12-2024
P&V,MYDDELTON HOUSE,SUPPLIES AND SERVICES,EQUIPMENT & MATERIALS,4111,"P125194-SERVICE-Refix Radiator in Billiard Room, Replace Sink",12/03/2024 00:00,283284,118.68,GI0137,R & P GIBBS LIMITED,26/02/2024 00:00,31/03/2024 00:00,P12-2024
R&B,DEMOCRATIC REPRESENTATION & MA,SUPPLIES AND SERVICES,EQUIPMENT & MATERIALS,4111,P125160-SERVICE-Extension Leads for Members,06/03/2024 00:00,283096,22.56,AM0406,AMAZON PAYMENTS UK LIMITED,26/02/2024 00:00,31/03/2024 00:00,P12-2024
,STANSTEAD RECHARGEABLE WORKS,SUPPLIES AND SERVICES,EQUIPMENT & MATERIALS,4111,P125142-SERVICE-blacking,12/03/2024 00:00,283068,452.66,MI0200,MIDLAND CHANDLERS LIMITED,26/02/2024 00:00,31/03/2024 00:00,P12-2024
,STANSTEAD RECHARGEABLE WORKS,SUPPLIES AND SERVICES,EQUIPMENT & MATERIALS,4111,P125142-SERVICE-extra to cover Rytex over Sealex b,19/03/2024 00:00,283215,208.92,MI0200,MIDLAND CHANDLERS LIMITED,26/02/2024 00:00,31/03/2024 00:00,P12-2024
,STANSTEAD RECHARGEABLE WORKS,SUPPLIES AND SERVICES,EQUIPMENT & MATERIALS,4111,P125142-SERVICE-extra to cover Rytex over Sealex b,19/03/2024 00:00,283216,90.57,MI0200,MIDLAND CHANDLERS LIMITED,26/02/2024 00:00,31/03/2024 00:00,P12-2024
,STANSTEAD RECHARGEABLE WORKS,SUPPLIES AND SERVICES,EQUIPMENT & MATERIALS,4111,P125142-SERVICE-blacking,19/03/2024 00:00,283216,222.81,MI0200,MIDLAND CHANDLERS LIMITED,26/02/2024 00:00,31/03/2024 00:00,P12-2024
,STANSTEAD RECHARGEABLE WORKS,SUPPLIES AND SERVICES,EQUIPMENT & MATERIALS,4111,P125142-SERVICE-blacking,26/03/2024 00:00,283217,278.56,MI0200,MIDLAND CHANDLERS LIMITED,26/02/2024 00:00,31/03/2024 00:00,P12-2024
,STANSTEAD RECHARGEABLE WORKS,SUPPLIES AND SERVICES,EQUIPMENT & MATERIALS,4111,P125142-SERVICE-blacking,26/03/2024 00:00,283317,1037.91,MI0200,MIDLAND CHANDLERS LIMITED,26/02/2024 00:00,31/03/2024 00:00,P12-2024
,STANSTEAD RECHARGEABLE WORKS,SUPPLIES AND SERVICES,EQUIPMENT & MATERIALS,4111,P125142-SERVICE-blacking,19/03/2024 00:00,283419,-591.94,MI0200,MIDLAND CHANDLERS LIMITED,26/02/2024 00:00,31/03/2024 00:00,P12-2024
,STANSTEAD RECHARGEABLE WORKS,SUPPLIES AND SERVICES,EQUIPMENT & MATERIALS,4111,P125136-SERVICE-blacking,19/03/2024 00:00,283473,2073,MA0008,AXALTA COATING SYSTEMS HUTHWAITE UK LTD,26/02/2024 00:00,31/03/2024 00:00,P12-2024
,STANSTEAD RECHARGEABLE WORKS,SUPPLIES AND SERVICES,EQUIPMENT & MATERIALS,4111,P125142-SERVICE-blacking,26/03/2024 00:00,283729,-208.92,MI0200,MIDLAND CHANDLERS LIMITED,26/02/2024 00:00,31/03/2024 00:00,P12-2024
,LEE VALLEY WATERWORKS CENTRE,SUPPLIES AND SERVICES,EQUIPMENT & MATERIALS,4111,TIMPSON-KEYS,12/03/2024 00:00,283359,15,FI0001,DIRECTOR OF FINANCE - CASH,26/02/2024 00:00,31/03/2024 00:00,P12-2024
,LEE VALLEY CAMPSITE,SUPPLIES AND SERVICES,EQUIPMENT & MATERIALS,4111,P125115-SERVICE-10 x double mattress protectors,06/03/2024 00:00,282908,88.6,AM0406,AMAZON PAYMENTS UK LIMITED,26/02/2024 00:00,31/03/2024 00:00,P12-2024
,LEE VALLEY CAMPSITE,SUPPLIES AND SERVICES,EQUIPMENT & MATERIALS,4111,P125192-SERVICE-slotted serving spoons x 10,06/03/2024 00:00,282909,3.32,AM0406,AMAZON PAYMENTS UK LIMITED,26/02/2024 00:00,31/03/2024 00:00,P12-2024
,LEE VALLEY CAMPSITE,SUPPLIES AND SERVICES,EQUIPMENT & MATERIALS,4111,P125192-SERVICE-Plate sets x 4,06/03/2024 00:00,282910,53.28,AM0406,AMAZON PAYMENTS UK LIMITED,26/02/2024 00:00,31/03/2024 00:00,P12-2024
,LEE VALLEY CAMPSITE,SUPPLIES AND SERVICES,EQUIPMENT & MATERIALS,4111,P125192-SERVICE-fish slice x10,06/03/2024 00:00,282911,3.32,AM0406,AMAZON PAYMENTS UK LIMITED,26/02/2024 00:00,31/03/2024 00:00,P12-2024
,LEE VALLEY CAMPSITE,SUPPLIES AND SERVICES,EQUIPMENT & MATERIALS,4111,P125192-SERVICE-frying pans x3,06/03/2024 00:00,282911,22.62,AM0406,AMAZON PAYMENTS UK LIMITED,26/02/2024 00:00,31/03/2024 00:00,P12-2024
,LEE VALLEY CAMPSITE,SUPPLIES AND SERVICES,EQUIPMENT & MATERIALS,4111,P125192-SERVICE-slotted serving spoons x 10,06/03/2024 00:00,282911,27.48,AM0406,AMAZON PAYMENTS UK LIMITED,26/02/2024 00:00,31/03/2024 00:00,P12-2024
,LEE VALLEY CAMPSITE,SUPPLIES AND SERVICES,EQUIPMENT & MATERIALS,4111,P125115-SERVICE-10 x single mattress protectors,05/03/2024 00:00,282956,66.2,AM0406,AMAZON PAYMENTS UK LIMITED,26/02/2024 00:00,31/03/2024 00:00,P12-2024
,LEE VALLEY CAMPSITE,SUPPLIES AND SERVICES,EQUIPMENT & MATERIALS,4111,P125251-SERVICE-Replacement microwave Peaky,19/03/2024 00:00,283290,185,SH0693,SH CARAVANS,26/02/2024 00:00,31/03/2024 00:00,P12-2024
,LEE VALLEY CAMPSITE,SUPPLIES AND SERVICES,EQUIPMENT & MATERIALS,4111,SEWARDSTONE-TRENCH WELLIES,26/03/2024 00:00,283634,13.21,SC0057,SCREWFIX DIRECT LTD,26/02/2024 00:00,31/03/2024 00:00,P12-2024
,LEE VALLEY CAMPSITE,SUPPLIES AND SERVICES,EQUIPMENT & MATERIALS,4111,SEWARDSTONE-TRENCH WELLIES,26/03/2024 00:00,283634,45.98,SC0057,SCREWFIX DIRECT LTD,26/02/2024 00:00,31/03/2024 00:00,P12-2024
,LEE VALLEY CAMPSITE,SUPPLIES AND SERVICES,EQUIPMENT & MATERIALS,4111,SEWARDSTONE-TRENCH WELLIES,26/03/2024 00:00,283634,-59.19,SC0057,SCREWFIX DIRECT LTD,26/02/2024 00:00,31/03/2024 00:00,P12-2024
,LEE VALLEY CAMPSITE,SUPPLIES AND SERVICES,EQUIPMENT & MATERIALS,4111,P123909-SERVICE-Site  materials & Equipment,26/03/2024 00:00,283634,59.19,SC0057,SCREWFIX DIRECT LTD,26/02/2024 00:00,31/03/2024 00:00,P12-2024
,LEE VALLEY CAMPSITE,SUPPLIES AND SERVICES,EQUIPMENT & MATERIALS,4111,P124854-SERVICE-Site Materials,26/03/2024 00:00,283635,28.54,BQ0164,TRADE UK ACCOUNT,26/02/2024 00:00,31/03/2024 00:00,P12-2024
,LEE VALLEY CAMPSITE,SUPPLIES AND SERVICES,EQUIPMENT & MATERIALS,4111,P124854-SERVICE-Site Materials,31/03/2024 00:00,284199,85.07,BQ0164,TRADE UK ACCOUNT,26/02/2024 00:00,31/03/2024 00:00,P12-2024
,LV CAMPSITE CARAVAN SALES,SUPPLIES AND SERVICES,EQUIPMENT & MATERIALS,4111,P124850-SERVICE-20 Ton of Topsoil,05/03/2024 00:00,282631,1182.25,TH0051,THOMPSONS OF CREWS HILL LTD,26/02/2024 00:00,31/03/2024 00:00,P12-2024
,LEE VALLEY CARAVAN PARK,SUPPLIES AND SERVICES,EQUIPMENT & MATERIALS,4111,P125202-SERVICE-Replace immersion heater in tunnel,12/03/2024 00:00,283197,425,SO0400,SOUTHERN GREEN SERVICES LIMITED,26/02/2024 00:00,31/03/2024 00:00,P12-2024
,LEE VALLEY CARAVAN PARK,SUPPLIES AND SERVICES,EQUIPMENT & MATERIALS,4111,P125521-SERVICE-Paint,26/03/2024 00:00,283704,78.29,SC0057,SCREWFIX DIRECT LTD,26/02/2024 00:00,31/03/2024 00:00,P12-2024
,LEE VALLEY CARAVAN PARK,SUPPLIES AND SERVICES,EQUIPMENT & MATERIALS,4111,P125561-SERVICE-Toilet seat and paint brushes,31/03/2024 00:00,283853,49.98,SC0057,SCREWFIX DIRECT LTD,26/02/2024 00:00,31/03/2024 00:00,P12-2024
,LEE VALLEY CARAVAN PARK,SUPPLIES AND SERVICES,EQUIPMENT & MATERIALS,4111,DW-WATERPROOF MATTRESS,31/03/2024 00:00,283913,-82.18,AM0406,AMAZON PAYMENTS UK LIMITED,26/02/2024 00:00,31/03/2024 00:00,P12-2024
,LEE VALLEY CARAVAN PARK,SUPPLIES AND SERVICES,EQUIPMENT & MATERIALS,4111,DW-WATERPROOF MATTRESS,31/03/2024 00:00,283913,87.42,AM0406,AMAZON PAYMENTS UK LIMITED,26/02/2024 00:00,31/03/2024 00:00,P12-2024
,LEE VALLEY CARAVAN PARK,SUPPLIES AND SERVICES,EQUIPMENT & MATERIALS,4111,DW-WATERPROOF MATTRESS,31/03/2024 00:00,283913,-5.24,AM0406,AMAZON PAYMENTS UK LIMITED,26/02/2024 00:00,31/03/2024 00:00,P12-2024
,LEE VALLEY CARAVAN PARK,SUPPLIES AND SERVICES,EQUIPMENT & MATERIALS,4111,P125504-SERVICE-matress protectors,31/03/2024 00:00,283913,82.18,AM0406,AMAZON PAYMENTS UK LIMITED,26/02/2024 00:00,31/03/2024 00:00,P12-2024
,LEE VALLEY CARAVAN PARK,SUPPLIES AND SERVICES,EQUIPMENT & MATERIALS,4111,P125564-SERVICE-Numatic vacuum cleaner,31/03/2024 00:00,283948,141.66,SC0057,SCREWFIX DIRECT LTD,26/02/2024 00:00,31/03/2024 00:00,P12-2024
,LEE VALLEY CARAVAN PARK,SUPPLIES AND SERVICES,EQUIPMENT & MATERIALS,4111,P125504-SERVICE-matress protectors,31/03/2024 00:00,283962,50.85,AM0406,AMAZON PAYMENTS UK LIMITED,26/02/2024 00:00,31/03/2024 00:00,P12-2024
,LEE VALLEY CARAVAN PARK,SUPPLIES AND SERVICES,EQUIPMENT & MATERIALS,4111,DW-WATERPROOF MATTRESS,31/03/2024 00:00,283962,54.1,AM0406,AMAZON PAYMENTS UK LIMITED,26/02/2024 00:00,31/03/2024 00:00,P12-2024
,LEE VALLEY CARAVAN PARK,SUPPLIES AND SERVICES,EQUIPMENT & MATERIALS,4111,DW-WATERPROOF MATTRESS,31/03/2024 00:00,283962,-3.25,AM0406,AMAZON PAYMENTS UK LIMITED,26/02/2024 00:00,31/03/2024 00:00,P12-2024
,LEE VALLEY CARAVAN PARK,SUPPLIES AND SERVICES,EQUIPMENT & MATERIALS,4111,DW-WATERPROOF MATTRESS,31/03/2024 00:00,283962,-50.85,AM0406,AMAZON PAYMENTS UK LIMITED,26/02/2024 00:00,31/03/2024 00:00,P12-2024
,LEE VALLEY CARAVAN PARK,SUPPLIES AND SERVICES,EQUIPMENT & MATERIALS,4111,P125557-SERVICE-New pipe boxing in Ladies,31/03/2024 00:00,284135,785,SO0400,SOUTHERN GREEN SERVICES LIMITED,26/02/2024 00:00,31/03/2024 00:00,P12-2024
,LEE VALLEY CARAVAN PARK,SUPPLIES AND SERVICES,EQUIPMENT & MATERIALS,4111,P125558-SERVICE-New pipe boxing in gents,31/03/2024 00:00,284136,720,SO0400,SOUTHERN GREEN SERVICES LIMITED,26/02/2024 00:00,31/03/2024 00:00,P12-2024
P&V,MYDDELTON HOUSE GARDENS,SUPPLIES AND SERVICES,EQUIPMENT & MATERIALS,4111,P125224-SERVICE-new lock gardens,19/03/2024 00:00,283322,180.04,BA0005,BARNET LOCK  & SECURITY LTD,26/02/2024 00:00,31/03/2024 00:00,P12-2024
P&V,MYDDELTON HOUSE GARDENS,SUPPLIES AND SERVICES,EQUIPMENT & MATERIALS,4111,THOMPSONS LINE WIRE,27/03/2024 00:00,284019,13.07,FI0001,DIRECTOR OF FINANCE - CASH,26/02/2024 00:00,31/03/2024 00:00,P12-2024
P&V,MYDDELTON HOUSE GARDENS,SUPPLIES AND SERVICES,EQUIPMENT & MATERIALS,4111,THOMPSONS LINE WIRE,27/03/2024 00:00,284019,7.49,FI0001,DIRECTOR OF FINANCE - CASH,26/02/2024 00:00,31/03/2024 00:00,P12-2024
P&V,MYDDLETON HSE HERITAGE CENTRE,SUPPLIES AND SERVICES,EQUIPMENT & MATERIALS,4111,P125257-SERVICE-KITCHEN UTENSILS,19/03/2024 00:00,283586,17.85,AM0406,AMAZON PAYMENTS UK LIMITED,26/02/2024 00:00,31/03/2024 00:00,P12-2024
P&V,MYDDLETON HSE HERITAGE CENTRE,SUPPLIES AND SERVICES,EQUIPMENT & MATERIALS,4111,P125257-SERVICE-KITCHEN UTENSILS,20/03/2024 00:00,283633,9.16,AM0406,AMAZON PAYMENTS UK LIMITED,26/02/2024 00:00,31/03/2024 00:00,P12-2024
P&V,MYDDLETON HSE HERITAGE CENTRE,SUPPLIES AND SERVICES,EQUIPMENT & MATERIALS,4111,IKEA-OVEN GLOVES/SCISSORS/PASRTY BRUSH,20/03/2024 00:00,283719,5.42,FI0001,DIRECTOR OF FINANCE - CASH,26/02/2024 00:00,31/03/2024 00:00,P12-2024
P&V,SOUTH AREA RANGERS,SUPPLIES AND SERVICES,EQUIPMENT & MATERIALS,4111,P125122-SERVICE-1x 100 Oil Absorbent Pads,05/03/2024 00:00,282955,25.83,AM0406,AMAZON PAYMENTS UK LIMITED,26/02/2024 00:00,31/03/2024 00:00,P12-2024
P&V,SOUTH AREA RANGERS,SUPPLIES AND SERVICES,EQUIPMENT & MATERIALS,4111,P125220-SERVICE-1x Silver Screws 4 x 20mm Pk200,12/03/2024 00:00,283104,2.33,SC0057,SCREWFIX DIRECT LTD,26/02/2024 00:00,31/03/2024 00:00,P12-2024
P&V,SOUTH AREA RANGERS,SUPPLIES AND SERVICES,EQUIPMENT & MATERIALS,4111,P125220-SERVICE-10x Hi-Viz Waistcoats,12/03/2024 00:00,283104,29.86,SC0057,SCREWFIX DIRECT LTD,26/02/2024 00:00,31/03/2024 00:00,P12-2024
P&V,SOUTH AREA RANGERS,SUPPLIES AND SERVICES,EQUIPMENT & MATERIALS,4111,P125220-SERVICE-1x Gold Screws 4.5 x 40mm Pk200,12/03/2024 00:00,283105,4.16,SC0057,SCREWFIX DIRECT LTD,26/02/2024 00:00,31/03/2024 00:00,P12-2024
P&V,SOUTH AREA RANGERS,SUPPLIES AND SERVICES,EQUIPMENT & MATERIALS,4111,P125277-SERVICE-Postfix 20Kg,12/03/2024 00:00,283188,5.41,SC0057,SCREWFIX DIRECT LTD,26/02/2024 00:00,31/03/2024 00:00,P12-2024
P&V,SOUTH AREA RANGERS,SUPPLIES AND SERVICES,EQUIPMENT & MATERIALS,4111,P125296-SERVICE-Gate Latch,12/03/2024 00:00,283294,5,BQ0164,TRADE UK ACCOUNT,26/02/2024 00:00,31/03/2024 00:00,P12-2024
P&V,SOUTH AREA RANGERS,SUPPLIES AND SERVICES,EQUIPMENT & MATERIALS,4111,P125295-SERVICE-Gate Latch,12/03/2024 00:00,283297,4.34,SC0057,SCREWFIX DIRECT LTD,26/02/2024 00:00,31/03/2024 00:00,P12-2024
P&V,SOUTH AREA RANGERS,SUPPLIES AND SERVICES,EQUIPMENT & MATERIALS,4111,TESCO-RAID,12/03/2024 00:00,283359,3.5,FI0001,DIRECTOR OF FINANCE - CASH,26/02/2024 00:00,31/03/2024 00:00,P12-2024
P&V,SOUTH AREA RANGERS,SUPPLIES AND SERVICES,EQUIPMENT & MATERIALS,4111,P125305-SERVICE-2x Woodstain 5L - (240PC),19/03/2024 00:00,283467,46.65,SC0057,SCREWFIX DIRECT LTD,26/02/2024 00:00,31/03/2024 00:00,P12-2024
P&V,SOUTH AREA RANGERS,SUPPLIES AND SERVICES,EQUIPMENT & MATERIALS,4111,"P125305-SERVICE-3x Stanley Tool Boxes 19"" 2 Pieces - (1605P)",19/03/2024 00:00,283467,42.48,SC0057,SCREWFIX DIRECT LTD,26/02/2024 00:00,31/03/2024 00:00,P12-2024
P&V,SOUTH AREA RANGERS,SUPPLIES AND SERVICES,EQUIPMENT & MATERIALS,4111,"P125306-SERVICE-3x Tool Boxes 13"" - (B0B1MMHZ8W)",20/03/2024 00:00,283590,24.98,AM0406,AMAZON PAYMENTS UK LIMITED,26/02/2024 00:00,31/03/2024 00:00,P12-2024
P&V,SOUTH AREA RANGERS,SUPPLIES AND SERVICES,EQUIPMENT & MATERIALS,4111,P125305-SERVICE-2x Woodstain 5L - (240PC),19/03/2024 00:00,283596,-28.32,SC0057,SCREWFIX DIRECT LTD,26/02/2024 00:00,31/03/2024 00:00,P12-2024
P&V,SOUTH AREA RANGERS,SUPPLIES AND SERVICES,EQUIPMENT & MATERIALS,4111,P125527-SERVICE-2x Dampstick 8 Pack,27/03/2024 00:00,283986,282.6,PR0413,PROTECTIVE PACKAGING LIMITED,26/02/2024 00:00,31/03/2024 00:00,P12-2024
P&V,SOUTH AREA RANGERS,SUPPLIES AND SERVICES,EQUIPMENT & MATERIALS,4111,P125550-SERVICE-White Vinegar for Cleaning,31/03/2024 00:00,284120,8.37,AM0406,AMAZON PAYMENTS UK LIMITED,26/02/2024 00:00,31/03/2024 00:00,P12-2024
P&V,SOUTH AREA RANGERS,SUPPLIES AND SERVICES,EQUIPMENT & MATERIALS,4111,VAT ONLY- SEE COMP REF 283986,31/03/2024 00:00,284159,0,PR0413,PROTECTIVE PACKAGING LIMITED,26/02/2024 00:00,31/03/2024 00:00,P12-2024
P&V,ABBEY GARDENS,SUPPLIES AND SERVICES,EQUIPMENT & MATERIALS,4111,P125381-SERVICE-Top Soil - WAG,19/03/2024 00:00,283475,59.95,JE0011,SAINT-GOBAIN BUILDING DISTRIBUTION,26/02/2024 00:00,31/03/2024 00:00,P12-2024
P&V,RIVER LEE COUNTRY PARK,SUPPLIES AND SERVICES,EQUIPMENT & MATERIALS,4111,P121655-SERVICE-Materials & Equipment as required,27/03/2024 00:00,282113,12.16,JE0011,SAINT-GOBAIN BUILDING DISTRIBUTION,26/02/2024 00:00,31/03/2024 00:00,P12-2024
P&V,RIVER LEE COUNTRY PARK,SUPPLIES AND SERVICES,EQUIPMENT & MATERIALS,4111,P121655-SERVICE-Materials & Equipment as required,27/03/2024 00:00,282113,4.44,JE0011,SAINT-GOBAIN BUILDING DISTRIBUTION,26/02/2024 00:00,31/03/2024 00:00,P12-2024
P&V,RIVER LEE COUNTRY PARK,SUPPLIES AND SERVICES,EQUIPMENT & MATERIALS,4111,P125080-SERVICE-16x Timber 'Character Oak',05/03/2024 00:00,283077,960,TI0164,414 TIMBER & FENCING,26/02/2024 00:00,31/03/2024 00:00,P12-2024
P&V,RIVER LEE COUNTRY PARK,SUPPLIES AND SERVICES,EQUIPMENT & MATERIALS,4111,P125166-SERVICE-25x Sawn Pointed Peg Treated Greem Timber,05/03/2024 00:00,283093,98.75,JE0011,SAINT-GOBAIN BUILDING DISTRIBUTION,26/02/2024 00:00,31/03/2024 00:00,P12-2024
P&V,RIVER LEE COUNTRY PARK,SUPPLIES AND SERVICES,EQUIPMENT & MATERIALS,4111,P125164-SERVICE-5x Open Water Throw Bags - SKU:LE12273,19/03/2024 00:00,283599,187.5,RL0103,RLSS UK ENTERPRISES LTD,26/02/2024 00:00,31/03/2024 00:00,P12-2024
P&V,RIVER LEE COUNTRY PARK,SUPPLIES AND SERVICES,EQUIPMENT & MATERIALS,4111,P125377-SERVICE-Boat Engine Honda BF10 LHSU,18/03/2024 00:00,283622,2387.5,RI0361,RIB SHOP LTD,26/02/2024 00:00,31/03/2024 00:00,P12-2024
P&V,RIVER LEE COUNTRY PARK,SUPPLIES AND SERVICES,EQUIPMENT & MATERIALS,4111,P125406-SERVICE-2x 4Litres Paraffin,26/03/2024 00:00,283695,24,AM0406,AMAZON PAYMENTS UK LIMITED,26/02/2024 00:00,31/03/2024 00:00,P12-2024
P&V,RIVER LEE COUNTRY PARK,SUPPLIES AND SERVICES,EQUIPMENT & MATERIALS,4111,P125429-SERVICE-Mid Link Chain,26/03/2024 00:00,283702,12.47,JE0011,SAINT-GOBAIN BUILDING DISTRIBUTION,26/02/2024 00:00,31/03/2024 00:00,P12-2024
P&V,RIVER LEE COUNTRY PARK,SUPPLIES AND SERVICES,EQUIPMENT & MATERIALS,4111,P125429-SERVICE-Steel Wool,26/03/2024 00:00,283702,6.41,JE0011,SAINT-GOBAIN BUILDING DISTRIBUTION,26/02/2024 00:00,31/03/2024 00:00,P12-2024
P&V,RIVER LEE COUNTRY PARK,SUPPLIES AND SERVICES,EQUIPMENT & MATERIALS,4111,P125431-SERVICE-4x Liquid Paraffin 5Lt,31/03/2024 00:00,283765,119.96,AM0406,AMAZON PAYMENTS UK LIMITED,26/02/2024 00:00,31/03/2024 00:00,P12-2024
P&V,RIVER LEE COUNTRY PARK,SUPPLIES AND SERVICES,EQUIPMENT & MATERIALS,4111,P125406-SERVICE-2x 4Litres Paraffin,26/03/2024 00:00,283852,-24,AM0406,AMAZON PAYMENTS UK LIMITED,26/02/2024 00:00,31/03/2024 00:00,P12-2024
P&V,RIVER LEE COUNTRY PARK,SUPPLIES AND SERVICES,EQUIPMENT & MATERIALS,4111,P125158-SERVICE-Delivery to address below,27/03/2024 00:00,283964,12.5,AP0245,APS LIMITED,26/02/2024 00:00,31/03/2024 00:00,P12-2024
P&V,RIVER LEE COUNTRY PARK,SUPPLIES AND SERVICES,EQUIPMENT & MATERIALS,4111,P125158-SERVICE-1x Sthil Chainsaw Gloves,27/03/2024 00:00,283964,31.79,AP0245,APS LIMITED,26/02/2024 00:00,31/03/2024 00:00,P12-2024
P&V,RIVER LEE COUNTRY PARK,SUPPLIES AND SERVICES,EQUIPMENT & MATERIALS,4111,P125158-SERVICE-8x Chainsaw Semi Chisel Chains,27/03/2024 00:00,283964,179.04,AP0245,APS LIMITED,26/02/2024 00:00,31/03/2024 00:00,P12-2024
P&V,RIVER LEE COUNTRY PARK,SUPPLIES AND SERVICES,EQUIPMENT & MATERIALS,4111,P125431-SERVICE-4x Liquid Paraffin 5Lt,31/03/2024 00:00,284119,-29.99,AM0406,AMAZON PAYMENTS UK LIMITED,26/02/2024 00:00,31/03/2024 00:00,P12-2024
P&V,RIVER LEE COUNTRY PARK,SUPPLIES AND SERVICES,EQUIPMENT & MATERIALS,4111,P125573-SERVICE-Brush Pack 3,31/03/2024 00:00,284141,6.61,JE0011,SAINT-GOBAIN BUILDING DISTRIBUTION,26/02/2024 00:00,31/03/2024 00:00,P12-2024
P&V,RIVER LEE COUNTRY PARK,SUPPLIES AND SERVICES,EQUIPMENT & MATERIALS,4111,P125573-SERVICE-Screw Driver Pack 3,31/03/2024 00:00,284141,6.15,JE0011,SAINT-GOBAIN BUILDING DISTRIBUTION,26/02/2024 00:00,31/03/2024 00:00,P12-2024
P&V,RIVER LEE COUNTRY PARK,SUPPLIES AND SERVICES,EQUIPMENT & MATERIALS,4111,P125573-SERVICE-Dril/Driver Set 34 Pieces,31/03/2024 00:00,284141,23.35,JE0011,SAINT-GOBAIN BUILDING DISTRIBUTION,26/02/2024 00:00,31/03/2024 00:00,P12-2024
P&V,RIVER LEE COUNTRY PARK,SUPPLIES AND SERVICES,EQUIPMENT & MATERIALS,4111,P125573-SERVICE-Goves x 2,31/03/2024 00:00,284141,8.38,JE0011,SAINT-GOBAIN BUILDING DISTRIBUTION,26/02/2024 00:00,31/03/2024 00:00,P12-2024
P&V,RIVER LEE COUNTRY PARK,SUPPLIES AND SERVICES,EQUIPMENT & MATERIALS,4111,P125573-SERVICE-Teak Oil,31/03/2024 00:00,284141,7.35,JE0011,SAINT-GOBAIN BUILDING DISTRIBUTION,26/02/2024 00:00,31/03/2024 00:00,P12-2024
P&V,RIVER LEE COUNTRY PARK,SUPPLIES AND SERVICES,EQUIPMENT & MATERIALS,4111,P125573-SERVICE-Speed Drive Screws,31/03/2024 00:00,284141,13.15,JE0011,SAINT-GOBAIN BUILDING DISTRIBUTION,26/02/2024 00:00,31/03/2024 00:00,P12-2024
P&V,BIODIVERSITY ACTION PLAN,SUPPLIES AND SERVICES,EQUIPMENT & MATERIALS,4111,"P125150-SERVICE-Delivery to Holyfield Hall Farm, Stubbins Hal",31/03/2024 00:00,284233,29.95,EN0170,WILDCARE LTD,26/02/2024 00:00,31/03/2024 00:00,P12-2024
P&V,BIODIVERSITY ACTION PLAN,SUPPLIES AND SERVICES,EQUIPMENT & MATERIALS,4111,P125150-SERVICE-Corrugated Reptile Survey Sheet (SKU11270) x,31/03/2024 00:00,284233,104.7,EN0170,WILDCARE LTD,26/02/2024 00:00,31/03/2024 00:00,P12-2024
P&V,ALMOST WILD CAMPSITE,SUPPLIES AND SERVICES,EQUIPMENT & MATERIALS,4111,P125370-SERVICE-Sharp Sand/Waterproofer,26/03/2024 00:00,283737,88.82,LE0012,LEASIDE TIMBER & BUILDERS MERCHANTS LTD,26/02/2024 00:00,31/03/2024 00:00,P12-2024
P&V,VOLUNTEERS (L&E),SUPPLIES AND SERVICES,EQUIPMENT & MATERIALS,4111,P125018-SERVICE-9 x (Pack of 100 Assorted Sizes St John Ambul,05/03/2024 00:00,282982,37.8,ST0038,ST JOHN AMBULANCE,26/02/2024 00:00,31/03/2024 00:00,P12-2024
P&V,VOLUNTEERS (L&E),SUPPLIES AND SERVICES,EQUIPMENT & MATERIALS,4111,P125018-SERVICE-3 x (First Aid in an Emergency Booklet),05/03/2024 00:00,282982,1.05,ST0038,ST JOHN AMBULANCE,26/02/2024 00:00,31/03/2024 00:00,P12-2024
P&V,VOLUNTEERS (L&E),SUPPLIES AND SERVICES,EQUIPMENT & MATERIALS,4111,P125018-SERVICE-10 x (10cm x 10cm Burnshield Burn Dressing),05/03/2024 00:00,282982,40,ST0038,ST JOHN AMBULANCE,26/02/2024 00:00,31/03/2024 00:00,P12-2024
P&V,VOLUNTEERS (L&E),SUPPLIES AND SERVICES,EQUIPMENT & MATERIALS,4111,P125018-SERVICE-15 x (3.5cm x 3.5cm St John Ambulance First A,05/03/2024 00:00,282982,8.78,ST0038,ST JOHN AMBULANCE,26/02/2024 00:00,31/03/2024 00:00,P12-2024
P&V,VOLUNTEERS (L&E),SUPPLIES AND SERVICES,EQUIPMENT & MATERIALS,4111,P125018-SERVICE-1 x Pair of Large Blue St John Ambulance Nitr,05/03/2024 00:00,282982,0.99,ST0038,ST JOHN AMBULANCE,26/02/2024 00:00,31/03/2024 00:00,P12-2024
P&V,VOLUNTEERS (L&E),SUPPLIES AND SERVICES,EQUIPMENT & MATERIALS,4111,P125018-SERVICE-5 x (Pack of 100 St John Ambulance Sterile Cl,05/03/2024 00:00,282982,26.5,ST0038,ST JOHN AMBULANCE,26/02/2024 00:00,31/03/2024 00:00,P12-2024
P&V,VOLUNTEERS (L&E),SUPPLIES AND SERVICES,EQUIPMENT & MATERIALS,4111,P125018-SERVICE-15 x (No. 16 St John Ambulance Eye Pad Dressi,05/03/2024 00:00,282982,7.56,ST0038,ST JOHN AMBULANCE,26/02/2024 00:00,31/03/2024 00:00,P12-2024
P&V,VOLUNTEERS (L&E),SUPPLIES AND SERVICES,EQUIPMENT & MATERIALS,4111,P125018-SERVICE-Postage,05/03/2024 00:00,282982,4.95,ST0038,ST JOHN AMBULANCE,26/02/2024 00:00,31/03/2024 00:00,P12-2024
P&V,VOLUNTEERS (L&E),SUPPLIES AND SERVICES,EQUIPMENT & MATERIALS,4111,P125018-SERVICE-3 x (First Aid in an Emergency Booklet),05/03/2024 00:00,282983,2.1,ST0038,ST JOHN AMBULANCE,26/02/2024 00:00,31/03/2024 00:00,P12-2024
,LV LEISURE CENTRE CAMPSITE,SUPPLIES AND SERVICES,EQUIPMENT & MATERIALS,4111,P125181-SERVICE-lubricant,05/03/2024 00:00,282761,11.05,SC0057,SCREWFIX DIRECT LTD,26/02/2024 00:00,31/03/2024 00:00,P12-2024
,LV LEISURE CENTRE CAMPSITE,SUPPLIES AND SERVICES,EQUIPMENT & MATERIALS,4111,"P125182-SERVICE-sealer, silicone, polyfilla",05/03/2024 00:00,282762,96.68,SC0057,SCREWFIX DIRECT LTD,26/02/2024 00:00,31/03/2024 00:00,P12-2024
,LV LEISURE CENTRE CAMPSITE,SUPPLIES AND SERVICES,EQUIPMENT & MATERIALS,4111,P125180-SERVICE-door lock,05/03/2024 00:00,282921,20.83,BQ0164,TRADE UK ACCOUNT,26/02/2024 00:00,31/03/2024 00:00,P12-2024
,LV LEISURE CENTRE CAMPSITE,SUPPLIES AND SERVICES,EQUIPMENT & MATERIALS,4111,P125183-SERVICE-cloth tape,05/03/2024 00:00,282935,5.16,SC0057,SCREWFIX DIRECT LTD,26/02/2024 00:00,31/03/2024 00:00,P12-2024
,LV LEISURE CENTRE CAMPSITE,SUPPLIES AND SERVICES,EQUIPMENT & MATERIALS,4111,P125180-SERVICE-door lock,13/03/2024 00:00,283293,-20.83,BQ0164,TRADE UK ACCOUNT,26/02/2024 00:00,31/03/2024 00:00,P12-2024
,LV LEISURE CENTRE CAMPSITE,SUPPLIES AND SERVICES,EQUIPMENT & MATERIALS,4111,P125328-SERVICE-wire brush for cleaning fire pits,19/03/2024 00:00,283296,3.33,SC0057,SCREWFIX DIRECT LTD,26/02/2024 00:00,31/03/2024 00:00,P12-2024
,LV LEISURE CENTRE CAMPSITE,SUPPLIES AND SERVICES,EQUIPMENT & MATERIALS,4111,P125343-SERVICE-hose set up for motorhomes,19/03/2024 00:00,283435,61.67,BQ0164,TRADE UK ACCOUNT,26/02/2024 00:00,31/03/2024 00:00,P12-2024
,LV LEISURE CENTRE CAMPSITE,SUPPLIES AND SERVICES,EQUIPMENT & MATERIALS,4111,P125369-SERVICE-keypad,20/03/2024 00:00,283437,29.16,SC0057,SCREWFIX DIRECT LTD,26/02/2024 00:00,31/03/2024 00:00,P12-2024
,LV LEISURE CENTRE CAMPSITE,SUPPLIES AND SERVICES,EQUIPMENT & MATERIALS,4111,P125351-SERVICE-Cushman tyre,19/03/2024 00:00,283609,75,FA0294,FARM TYRE SERVICES,26/02/2024 00:00,31/03/2024 00:00,P12-2024
,LV LEISURE CENTRE CAMPSITE,SUPPLIES AND SERVICES,EQUIPMENT & MATERIALS,4111,P125460-SERVICE-Paint for toilets,26/03/2024 00:00,283636,62.49,BQ0164,TRADE UK ACCOUNT,26/02/2024 00:00,31/03/2024 00:00,P12-2024
,LV LEISURE CENTRE CAMPSITE,SUPPLIES AND SERVICES,EQUIPMENT & MATERIALS,4111,P125376-SERVICE-Cabin/cocoon chairs,20/03/2024 00:00,283642,102.2,TO0079,TOWSURE PRODUCTS LIMITED,26/02/2024 00:00,31/03/2024 00:00,P12-2024
,LV LEISURE CENTRE CAMPSITE,SUPPLIES AND SERVICES,EQUIPMENT & MATERIALS,4111,P125374-SERVICE-Cabin supplies,20/03/2024 00:00,283643,128.2,TO0079,TOWSURE PRODUCTS LIMITED,26/02/2024 00:00,31/03/2024 00:00,P12-2024
,LV LEISURE CENTRE CAMPSITE,SUPPLIES AND SERVICES,EQUIPMENT & MATERIALS,4111,"P125576-SERVICE-paint,gloves,brushes",31/03/2024 00:00,283895,148.34,BQ0164,TRADE UK ACCOUNT,26/02/2024 00:00,31/03/2024 00:00,P12-2024
,LV LEISURE CENTRE CAMPSITE,SUPPLIES AND SERVICES,EQUIPMENT & MATERIALS,4111,P125213-SERVICE-Repair Cushman Utility Vehicle,31/03/2024 00:00,284009,963.45,CA0698,CAMBRIDGE GOLF COMPANY,26/02/2024 00:00,31/03/2024 00:00,P12-2024
,LV LEISURE CENTRE CAMPSITE,SUPPLIES AND SERVICES,EQUIPMENT & MATERIALS,4111,P125620-SERVICE-sealant and removal,31/03/2024 00:00,284211,8.77,SC0057,SCREWFIX DIRECT LTD,26/02/2024 00:00,31/03/2024 00:00,P12-2024
,LV LEISURE CENTRE GOLF COURSE,SUPPLIES AND SERVICES,EQUIPMENT & MATERIALS,4111,P125599-SERVICE-GY Security Torch,31/03/2024 00:00,283357,20.67,TH0008,JKL SOLUTIONS LTD,26/02/2024 00:00,31/03/2024 00:00,P12-2024
,LV LEISURE CENTRE GOLF COURSE,SUPPLIES AND SERVICES,EQUIPMENT & MATERIALS,4111,P125488-SERVICE-Water Heater,26/03/2024 00:00,283709,515,SO0400,SOUTHERN GREEN SERVICES LIMITED,26/02/2024 00:00,31/03/2024 00:00,P12-2024
CEO,RESIDENTIAL ACCOMMODATION,SUPPLIES AND SERVICES,EQUIPMENT MAINTENANCE,4112,P124776-SERVICE-5 x Chimney Sweeps at Residential Properties,19/03/2024 00:00,283360,110,ES0397,ESSEX STOVES AND CHIMNEYS,26/02/2024 00:00,31/03/2024 00:00,P12-2024
CEO,RESIDENTIAL ACCOMMODATION,SUPPLIES AND SERVICES,EQUIPMENT MAINTENANCE,4112,P125667-SERVICE-Gas Certificate - Springfield Bungalow,31/03/2024 00:00,283969,82.5,CA0165,CASTLES,26/02/2024 00:00,31/03/2024 00:00,P12-2024
CEO,RESIDENTIAL ACCOMMODATION,SUPPLIES AND SERVICES,EQUIPMENT MAINTENANCE,4112,P125671-SERVICE-1 Picketts Lock Lane Electrical Certificate,31/03/2024 00:00,283972,150,CA0165,CASTLES,26/02/2024 00:00,31/03/2024 00:00,P12-2024
CEO,RESIDENTIAL ACCOMMODATION,SUPPLIES AND SERVICES,EQUIPMENT MAINTENANCE,4112,P125672-SERVICE-Springfield Bungalow Electrical Certificate,31/03/2024 00:00,283973,150,CA0165,CASTLES,26/02/2024 00:00,31/03/2024 00:00,P12-2024
CEO,RESIDENTIAL ACCOMMODATION,SUPPLIES AND SERVICES,EQUIPMENT MAINTENANCE,4112,P125674-SERVICE-Pindar Cottage Electrical Certificate,31/03/2024 00:00,283974,100,CA0165,CASTLES,26/02/2024 00:00,31/03/2024 00:00,P12-2024
CEO,RESIDENTIAL ACCOMMODATION,SUPPLIES AND SERVICES,EQUIPMENT MAINTENANCE,4112,P125675-SERVICE-1 Bungalow Electrical Certificate,31/03/2024 00:00,283975,150,CA0165,CASTLES,26/02/2024 00:00,31/03/2024 00:00,P12-2024
,LEE VALLEY CAMPSITE,SUPPLIES AND SERVICES,EQUIPMENT MAINTENANCE,4112,P125192-SERVICE-10 x serving trays for  tea coffee milk,06/03/2024 00:00,282912,52.1,AM0406,AMAZON PAYMENTS UK LIMITED,26/02/2024 00:00,31/03/2024 00:00,P12-2024
,LEE VALLEY CAMPSITE,SUPPLIES AND SERVICES,EQUIPMENT MAINTENANCE,4112,P124259-SERVICE-Shower repairs Staff Static,12/03/2024 00:00,283192,2435,SO0400,SOUTHERN GREEN SERVICES LIMITED,26/02/2024 00:00,31/03/2024 00:00,P12-2024
,LEE VALLEY CAMPSITE,SUPPLIES AND SERVICES,EQUIPMENT MAINTENANCE,4112,P125193-SERVICE-Repair leak to Shower block A,12/03/2024 00:00,283193,610,SO0400,SOUTHERN GREEN SERVICES LIMITED,26/02/2024 00:00,31/03/2024 00:00,P12-2024
,LEE VALLEY CAMPSITE,SUPPLIES AND SERVICES,EQUIPMENT MAINTENANCE,4112,P125247-SERVICE-B Block Chlorination,19/03/2024 00:00,283469,905,SO0400,SOUTHERN GREEN SERVICES LIMITED,26/02/2024 00:00,31/03/2024 00:00,P12-2024
,LEE VALLEY CAMPSITE,SUPPLIES AND SERVICES,EQUIPMENT MAINTENANCE,4112,P125247-SERVICE-descale A Block water heater,19/03/2024 00:00,283469,285,SO0400,SOUTHERN GREEN SERVICES LIMITED,26/02/2024 00:00,31/03/2024 00:00,P12-2024
,LEE VALLEY CAMPSITE,SUPPLIES AND SERVICES,EQUIPMENT MAINTENANCE,4112,P125247-SERVICE-A Block chlorination,19/03/2024 00:00,283469,560,SO0400,SOUTHERN GREEN SERVICES LIMITED,26/02/2024 00:00,31/03/2024 00:00,P12-2024
,LEE VALLEY CAMPSITE,SUPPLIES AND SERVICES,EQUIPMENT MAINTENANCE,4112,P125247-SERVICE-descale &SERVICE reception water heater,19/03/2024 00:00,283469,130,SO0400,SOUTHERN GREEN SERVICES LIMITED,26/02/2024 00:00,31/03/2024 00:00,P12-2024
,LEE VALLEY CAMPSITE,SUPPLIES AND SERVICES,EQUIPMENT MAINTENANCE,4112,P125247-SERVICE-descale and service Peaky pod water heaters,19/03/2024 00:00,283469,340,SO0400,SOUTHERN GREEN SERVICES LIMITED,26/02/2024 00:00,31/03/2024 00:00,P12-2024
,LEE VALLEY CAMPSITE,SUPPLIES AND SERVICES,EQUIPMENT MAINTENANCE,4112,P125249-SERVICE-Supply & replace TMV B block,19/03/2024 00:00,283470,430,SO0400,SOUTHERN GREEN SERVICES LIMITED,26/02/2024 00:00,31/03/2024 00:00,P12-2024
,LEE VALLEY CAMPSITE,SUPPLIES AND SERVICES,EQUIPMENT MAINTENANCE,4112,"P125249-SERVICE-TMV Descales A&B Blocks, replace broken valve",19/03/2024 00:00,283470,905,SO0400,SOUTHERN GREEN SERVICES LIMITED,26/02/2024 00:00,31/03/2024 00:00,P12-2024
,LEE VALLEY CAMPSITE,SUPPLIES AND SERVICES,EQUIPMENT MAINTENANCE,4112,P125249-SERVICE-gas safety inspection block A,19/03/2024 00:00,283470,440,SO0400,SOUTHERN GREEN SERVICES LIMITED,26/02/2024 00:00,31/03/2024 00:00,P12-2024
,LEE VALLEY CAMPSITE,SUPPLIES AND SERVICES,EQUIPMENT MAINTENANCE,4112,P125249-SERVICE-gas safety inspection and bolier service Hous,19/03/2024 00:00,283470,165,SO0400,SOUTHERN GREEN SERVICES LIMITED,26/02/2024 00:00,31/03/2024 00:00,P12-2024
,LEE VALLEY CAMPSITE,SUPPLIES AND SERVICES,EQUIPMENT MAINTENANCE,4112,P125249-SERVICE-gas safety inspection block B,19/03/2024 00:00,283470,620,SO0400,SOUTHERN GREEN SERVICES LIMITED,26/02/2024 00:00,31/03/2024 00:00,P12-2024
,LEE VALLEY CAMPSITE,SUPPLIES AND SERVICES,EQUIPMENT MAINTENANCE,4112,P125250-SERVICE-leak through celiing into service tunnel,19/03/2024 00:00,283471,190,SO0400,SOUTHERN GREEN SERVICES LIMITED,26/02/2024 00:00,31/03/2024 00:00,P12-2024
,LEE VALLEY CAMPSITE,SUPPLIES AND SERVICES,EQUIPMENT MAINTENANCE,4112,P125250-SERVICE-supply & fit new lever valves Ballcock & over,19/03/2024 00:00,283471,315,SO0400,SOUTHERN GREEN SERVICES LIMITED,26/02/2024 00:00,31/03/2024 00:00,P12-2024
,LEE VALLEY CAMPSITE,SUPPLIES AND SERVICES,EQUIPMENT MAINTENANCE,4112,P125250-SERVICE-toilet leak,19/03/2024 00:00,283471,175,SO0400,SOUTHERN GREEN SERVICES LIMITED,26/02/2024 00:00,31/03/2024 00:00,P12-2024
,LEE VALLEY CAMPSITE,SUPPLIES AND SERVICES,EQUIPMENT MAINTENANCE,4112,P125246-SERVICE-Repair to leaking water main in bathroom,19/03/2024 00:00,283472,100,SO0400,SOUTHERN GREEN SERVICES LIMITED,26/02/2024 00:00,31/03/2024 00:00,P12-2024
,LEE VALLEY CAMPSITE,SUPPLIES AND SERVICES,EQUIPMENT MAINTENANCE,4112,P125246-SERVICE-Staff static van shower works,19/03/2024 00:00,283472,460,SO0400,SOUTHERN GREEN SERVICES LIMITED,26/02/2024 00:00,31/03/2024 00:00,P12-2024
,LEE VALLEY CAMPSITE,SUPPLIES AND SERVICES,EQUIPMENT MAINTENANCE,4112,P125507-SERVICE-Cabin - Folding chairs x6,27/03/2024 00:00,283696,62.5,AM0406,AMAZON PAYMENTS UK LIMITED,26/02/2024 00:00,31/03/2024 00:00,P12-2024
,LEE VALLEY CAMPSITE,SUPPLIES AND SERVICES,EQUIPMENT MAINTENANCE,4112,P125508-SERVICE-Touring P22 no Electric,27/03/2024 00:00,283753,176.25,BR0018,BRADSHAW ELECTRICAL LIMITED,26/02/2024 00:00,31/03/2024 00:00,P12-2024
,LEE VALLEY CAMPSITE,SUPPLIES AND SERVICES,EQUIPMENT MAINTENANCE,4112,P125244-SERVICE-DISABLED TOILET ALARM FITTING,26/03/2024 00:00,283764,745,RV0035,RVTV SECURITY GROUP LTD,26/02/2024 00:00,31/03/2024 00:00,P12-2024
,LEE VALLEY CAMPSITE,SUPPLIES AND SERVICES,EQUIPMENT MAINTENANCE,4112,P125279-SERVICE-Emergency light & extractor fans,31/03/2024 00:00,284021,430,BR0018,BRADSHAW ELECTRICAL LIMITED,26/02/2024 00:00,31/03/2024 00:00,P12-2024
,LEE VALLEY CARAVAN PARK,SUPPLIES AND SERVICES,EQUIPMENT MAINTENANCE,4112,P125091-SERVICE-Fit new light Pecky bollard and HH9,05/03/2024 00:00,282722,135,BR0018,BRADSHAW ELECTRICAL LIMITED,26/02/2024 00:00,31/03/2024 00:00,P12-2024
,LEE VALLEY CARAVAN PARK,SUPPLIES AND SERVICES,EQUIPMENT MAINTENANCE,4112,P123495-SERVICE-Annual Fee for Monthly Hot Tub testing,05/03/2024 00:00,282933,133.77,KI0090,KINGFISHER ENVIRONMENTAL SERVICES LTD,26/02/2024 00:00,31/03/2024 00:00,P12-2024
,LEE VALLEY CARAVAN PARK,SUPPLIES AND SERVICES,EQUIPMENT MAINTENANCE,4112,"P125196-SERVICE-Fire blanket, smoke alarm",05/03/2024 00:00,282965,103.48,SC0057,SCREWFIX DIRECT LTD,26/02/2024 00:00,31/03/2024 00:00,P12-2024
,LEE VALLEY CARAVAN PARK,SUPPLIES AND SERVICES,EQUIPMENT MAINTENANCE,4112,P125283-SERVICE-Expanding foam filler,12/03/2024 00:00,283187,34.95,SC0057,SCREWFIX DIRECT LTD,26/02/2024 00:00,31/03/2024 00:00,P12-2024
,LEE VALLEY CARAVAN PARK,SUPPLIES AND SERVICES,EQUIPMENT MAINTENANCE,4112,P125201-SERVICE-Pipe work gents WC,12/03/2024 00:00,283196,175,SO0400,SOUTHERN GREEN SERVICES LIMITED,26/02/2024 00:00,31/03/2024 00:00,P12-2024
,LEE VALLEY CARAVAN PARK,SUPPLIES AND SERVICES,EQUIPMENT MAINTENANCE,4112,P125284-SERVICE-Cycle services,12/03/2024 00:00,283325,697.38,HA0457,HANCOCKS CYCLES LTD,26/02/2024 00:00,31/03/2024 00:00,P12-2024
,LEE VALLEY CARAVAN PARK,SUPPLIES AND SERVICES,EQUIPMENT MAINTENANCE,4112,P125309-SERVICE-Staples and netting,13/03/2024 00:00,283340,34.98,SC0057,SCREWFIX DIRECT LTD,26/02/2024 00:00,31/03/2024 00:00,P12-2024
,LEE VALLEY CARAVAN PARK,SUPPLIES AND SERVICES,EQUIPMENT MAINTENANCE,4112,P125310-SERVICE-Gate latch,13/03/2024 00:00,283341,4.16,SC0057,SCREWFIX DIRECT LTD,26/02/2024 00:00,31/03/2024 00:00,P12-2024
,LEE VALLEY CARAVAN PARK,SUPPLIES AND SERVICES,EQUIPMENT MAINTENANCE,4112,P125518-SERVICE-Punture repair,27/03/2024 00:00,283436,19.73,SC0057,SCREWFIX DIRECT LTD,26/02/2024 00:00,31/03/2024 00:00,P12-2024
,LEE VALLEY CARAVAN PARK,SUPPLIES AND SERVICES,EQUIPMENT MAINTENANCE,4112,P125424-SERVICE-supply lamps,26/03/2024 00:00,283618,58,BR0018,BRADSHAW ELECTRICAL LIMITED,26/02/2024 00:00,31/03/2024 00:00,P12-2024
,LEE VALLEY CARAVAN PARK,SUPPLIES AND SERVICES,EQUIPMENT MAINTENANCE,4112,P125425-SERVICE-Code 2,26/03/2024 00:00,283667,5330,BR0018,BRADSHAW ELECTRICAL LIMITED,26/02/2024 00:00,31/03/2024 00:00,P12-2024
,LEE VALLEY CARAVAN PARK,SUPPLIES AND SERVICES,EQUIPMENT MAINTENANCE,4112,P125427-SERVICE-pad testing,26/03/2024 00:00,283668,590.2,BR0018,BRADSHAW ELECTRICAL LIMITED,26/02/2024 00:00,31/03/2024 00:00,P12-2024
,LEE VALLEY CARAVAN PARK,SUPPLIES AND SERVICES,EQUIPMENT MAINTENANCE,4112,P125433-SERVICE-3 YEARLY  ABLUSION BLOCKS AND COMPOUND,26/03/2024 00:00,283669,1485,BR0018,BRADSHAW ELECTRICAL LIMITED,26/02/2024 00:00,31/03/2024 00:00,P12-2024
,LEE VALLEY CARAVAN PARK,SUPPLIES AND SERVICES,EQUIPMENT MAINTENANCE,4112,P125430-SERVICE-REPLACE HH POLE RCD,26/03/2024 00:00,283672,435,BR0018,BRADSHAW ELECTRICAL LIMITED,26/02/2024 00:00,31/03/2024 00:00,P12-2024
,LEE VALLEY CARAVAN PARK,SUPPLIES AND SERVICES,EQUIPMENT MAINTENANCE,4112,"P125520-SERVICE-Toilet seat, glue",26/03/2024 00:00,283703,31.66,SC0057,SCREWFIX DIRECT LTD,26/02/2024 00:00,31/03/2024 00:00,P12-2024
,LEE VALLEY CARAVAN PARK,SUPPLIES AND SERVICES,EQUIPMENT MAINTENANCE,4112,P123495-SERVICE-Annual Fee for Monthly Hot Tub testing,31/03/2024 00:00,283938,133.77,KI0090,KINGFISHER ENVIRONMENTAL SERVICES LTD,26/02/2024 00:00,31/03/2024 00:00,P12-2024
,LEE VALLEY CARAVAN PARK,SUPPLIES AND SERVICES,EQUIPMENT MAINTENANCE,4112,P125483-SERVICE-3 tonne top soil,31/03/2024 00:00,283954,204.64,TH0051,THOMPSONS OF CREWS HILL LTD,26/02/2024 00:00,31/03/2024 00:00,P12-2024
,LEE VALLEY CARAVAN PARK,SUPPLIES AND SERVICES,EQUIPMENT MAINTENANCE,4112,P125529-SERVICE-GROUND SHEETS AND MEMBRAIN,31/03/2024 00:00,284025,183.8,LE0012,LEASIDE TIMBER & BUILDERS MERCHANTS LTD,26/02/2024 00:00,31/03/2024 00:00,P12-2024
,LEE VALLEY CARAVAN PARK,SUPPLIES AND SERVICES,EQUIPMENT MAINTENANCE,4112,P125574-SERVICE-Hot tub testing,31/03/2024 00:00,284122,57.23,KI0090,KINGFISHER ENVIRONMENTAL SERVICES LTD,26/02/2024 00:00,31/03/2024 00:00,P12-2024
,LEE VALLEY CARAVAN PARK,SUPPLIES AND SERVICES,EQUIPMENT MAINTENANCE,4112,P125555-SERVICE-HH52 leak on regulator,31/03/2024 00:00,284138,245,SO0400,SOUTHERN GREEN SERVICES LIMITED,26/02/2024 00:00,31/03/2024 00:00,P12-2024
,LEE VALLEY CARAVAN PARK,SUPPLIES AND SERVICES,EQUIPMENT MAINTENANCE,4112,P125556-SERVICE-HH17 Fault on regulator,31/03/2024 00:00,284139,340,SO0400,SOUTHERN GREEN SERVICES LIMITED,26/02/2024 00:00,31/03/2024 00:00,P12-2024
P&V,NORTH AREA RANGERS,SUPPLIES AND SERVICES,EQUIPMENT MAINTENANCE,4112,P125294-SERVICE-3x Copper Shim Part No. 57158640,19/03/2024 00:00,283654,17.5,TR0039,TRACMASTER LTD,26/02/2024 00:00,31/03/2024 00:00,P12-2024
P&V,NORTH AREA RANGERS,SUPPLIES AND SERVICES,EQUIPMENT MAINTENANCE,4112,P125294-SERVICE-7x Copper Shim Part No. 57158640,31/03/2024 00:00,284337,26.95,TR0039,TRACMASTER LTD,26/02/2024 00:00,31/03/2024 00:00,P12-2024
P&V,SOUTH AREA RANGERS,SUPPLIES AND SERVICES,EQUIPMENT MAINTENANCE,4112,P125022-SERVICE-Brush Cutter Repairs - 0010,12/03/2024 00:00,283211,76.2,AP0245,APS LIMITED,26/02/2024 00:00,31/03/2024 00:00,P12-2024
P&V,SOUTH AREA RANGERS,SUPPLIES AND SERVICES,EQUIPMENT MAINTENANCE,4112,P125548-SERVICE-Repairs to Hedge Cutter,31/03/2024 00:00,284213,97.5,AP0245,APS LIMITED,26/02/2024 00:00,31/03/2024 00:00,P12-2024
,LV LEISURE CENTRE CAMPSITE,SUPPLIES AND SERVICES,EQUIPMENT MAINTENANCE,4112,P125235-SERVICE-repair damage socket,12/03/2024 00:00,282650,120,BR0018,BRADSHAW ELECTRICAL LIMITED,26/02/2024 00:00,31/03/2024 00:00,P12-2024
,LV LEISURE CENTRE CAMPSITE,SUPPLIES AND SERVICES,EQUIPMENT MAINTENANCE,4112,P125382-SERVICE-Electrical works,19/03/2024 00:00,283617,1120,BR0018,BRADSHAW ELECTRICAL LIMITED,26/02/2024 00:00,31/03/2024 00:00,P12-2024
,LV LEISURE CENTRE CAMPSITE,SUPPLIES AND SERVICES,EQUIPMENT MAINTENANCE,4112,P125466-SERVICE-fitted matting in cleaners cupboard,26/03/2024 00:00,283752,110,BR0018,BRADSHAW ELECTRICAL LIMITED,26/02/2024 00:00,31/03/2024 00:00,P12-2024
,LV LEISURE CENTRE CAMPSITE,SUPPLIES AND SERVICES,EQUIPMENT MAINTENANCE,4112,P125213-SERVICE-Service & Repair IgnitionSystem Bombardier Qu,31/03/2024 00:00,284009,415.12,CA0698,CAMBRIDGE GOLF COMPANY,26/02/2024 00:00,31/03/2024 00:00,P12-2024
,LV LEISURE CENTRE GOLF COURSE,SUPPLIES AND SERVICES,EQUIPMENT MAINTENANCE,4112,P124811-SERVICE-Cushman repair,05/03/2024 00:00,282377,415,GE0440,GTEC'S,26/02/2024 00:00,31/03/2024 00:00,P12-2024
,LV LEISURE CENTRE GOLF COURSE,SUPPLIES AND SERVICES,EQUIPMENT MAINTENANCE,4112,P124987-SERVICE-Golf Machine Parts,26/03/2024 00:00,283212,588.4,LE0279,REESINK TURFCARE UK LIMITED,26/02/2024 00:00,31/03/2024 00:00,P12-2024
,LV LEISURE CENTRE GOLF COURSE,SUPPLIES AND SERVICES,EQUIPMENT MAINTENANCE,4112,P125385-SERVICE-Machine Repair,26/03/2024 00:00,283697,521.98,LE0279,REESINK TURFCARE UK LIMITED,26/02/2024 00:00,31/03/2024 00:00,P12-2024
R&B,INFORMATION TECHNOLOGY,SUPPLIES AND SERVICES,IT CORE SYSTEMS,4113,P125212-SERVICE-P11D's Service 2023-24,12/03/2024 00:00,282923,790,CI0721,CIPHR,26/02/2024 00:00,31/03/2024 00:00,P12-2024
R&B,INFORMATION TECHNOLOGY,SUPPLIES AND SERVICES,IT CORE SYSTEMS,4113,P125195-SERVICE-CIPHR Payroll Apr 2024 - Mar 2024 @ 598 per,05/03/2024 00:00,283070,598,CI0721,CIPHR,26/02/2024 00:00,31/03/2024 00:00,P12-2024
R&B,INFORMATION TECHNOLOGY,SUPPLIES AND SERVICES,IT CORE SYSTEMS,4113,P125211-SERVICE-eFin Managed Service Fee @,06/03/2024 00:00,283073,1466.82,CE0021,ADVANCED BUSINESS SOLUTIONS,26/02/2024 00:00,31/03/2024 00:00,P12-2024
R&B,INFORMATION TECHNOLOGY,SUPPLIES AND SERVICES,IT CORE SYSTEMS,4113,P125319-SERVICE-Anuual Services 2024-25,19/03/2024 00:00,283482,5473.7,CR0526,CREATIVE LEARNING SYSTEMS,26/02/2024 00:00,31/03/2024 00:00,P12-2024
R&B,INFORMATION TECHNOLOGY,SUPPLIES AND SERVICES,IT NETWORK & TELECOMS COSTS,4114,IT-MONTHLY UNLIMITED ZEN FIBRE,05/03/2024 00:00,282922,29.5,ZE0007,ZEN INTERNET LTD,26/02/2024 00:00,31/03/2024 00:00,P12-2024
R&B,INFORMATION TECHNOLOGY,SUPPLIES AND SERVICES,IT NETWORK & TELECOMS COSTS,4114,P121559-SERVICE-Campsites Circuits 1GB for Public WiFi - Apri,12/03/2024 00:00,283299,835,PP0200,PPSNET LIMITED,26/02/2024 00:00,31/03/2024 00:00,P12-2024
R&B,INFORMATION TECHNOLOGY,SUPPLIES AND SERVICES,IT NETWORK & TELECOMS COSTS,4114,P123560-SERVICE-MPLS for all sites October 23 - March 24,12/03/2024 00:00,283300,5978.74,PP0200,PPSNET LIMITED,26/02/2024 00:00,31/03/2024 00:00,P12-2024
R&B,INFORMATION TECHNOLOGY,SUPPLIES AND SERVICES,IT NETWORK & TELECOMS COSTS,4114,P125259-SERVICE-MPLS for all sites,12/03/2024 00:00,283300,4167.93,PP0200,PPSNET LIMITED,26/02/2024 00:00,31/03/2024 00:00,P12-2024
R&B,INFORMATION TECHNOLOGY,SUPPLIES AND SERVICES,IT NETWORK & TELECOMS COSTS,4114,IT- ZEN FIBER PRO MONTH CHARGE,13/03/2024 00:00,283418,38,ZE0007,ZEN INTERNET LTD,26/02/2024 00:00,31/03/2024 00:00,P12-2024
R&B,INFORMATION TECHNOLOGY,SUPPLIES AND SERVICES,IT NETWORK & TELECOMS COSTS,4114,STANSTEAD- MONTHLY SERVICE CHARGE,18/03/2024 00:00,283466,31.32,ZE0007,ZEN INTERNET LTD,26/02/2024 00:00,31/03/2024 00:00,P12-2024
R&B,INFORMATION TECHNOLOGY,SUPPLIES AND SERVICES,IT HARDWARE & SOFTWARE COSTS,4116,P125102-SERVICE-Hikvision DS-2CD2347G2-LSU/SL Pro EasyIP 4.0,05/03/2024 00:00,283089,268.94,BR0650,BROADBANDBUYER.COM,26/02/2024 00:00,31/03/2024 00:00,P12-2024
R&B,INFORMATION TECHNOLOGY,SUPPLIES AND SERVICES,IT HARDWARE & SOFTWARE COSTS,4116,P125102-SERVICE-Hikvision DS-7616NXI-K2/16P AcuSense 2-Bay,05/03/2024 00:00,283089,220.99,BR0650,BROADBANDBUYER.COM,26/02/2024 00:00,31/03/2024 00:00,P12-2024
R&B,INFORMATION TECHNOLOGY,SUPPLIES AND SERVICES,IT HARDWARE & SOFTWARE COSTS,4116,P125215-SERVICE-TV & Bracket for Stanstead Marina,12/03/2024 00:00,283165,84.29,AM0406,AMAZON PAYMENTS UK LIMITED,26/02/2024 00:00,31/03/2024 00:00,P12-2024
R&B,INFORMATION TECHNOLOGY,SUPPLIES AND SERVICES,IT HARDWARE & SOFTWARE COSTS,4116,P125215-SERVICE-TV & Bracket for Stanstead Marina,12/03/2024 00:00,283166,17.91,AM0406,AMAZON PAYMENTS UK LIMITED,26/02/2024 00:00,31/03/2024 00:00,P12-2024
R&B,INFORMATION TECHNOLOGY,SUPPLIES AND SERVICES,IT HARDWARE & SOFTWARE COSTS,4116,"P122462-SERVICE-Maintenance, Support and Managed Service Cont",12/03/2024 00:00,283201,742.29,WI0209,WIFI SPARK LIMITED,26/02/2024 00:00,31/03/2024 00:00,P12-2024
R&B,INFORMATION TECHNOLOGY,SUPPLIES AND SERVICES,IT HARDWARE & SOFTWARE COSTS,4116,P124648-SERVICE-Annual renewal 2024-25,13/03/2024 00:00,283410,6000,DO0319,DOTDIGITAL EMEA LIMITED,26/02/2024 00:00,31/03/2024 00:00,P12-2024
R&B,INFORMATION TECHNOLOGY,SUPPLIES AND SERVICES,IT HARDWARE & SOFTWARE COSTS,4116,P124003-SERVICE-Mimecast S1 remaining 6 months payment includ,13/03/2024 00:00,283416,1516.55,IQ0022,IQUAL,26/02/2024 00:00,31/03/2024 00:00,P12-2024
R&B,INFORMATION TECHNOLOGY,SUPPLIES AND SERVICES,IT HARDWARE & SOFTWARE COSTS,4116,"P125398-SERVICE-VCE GDMI Female to Female 4K @60Hz, HDMI Coup",26/03/2024 00:00,283691,7.82,AM0406,AMAZON PAYMENTS UK LIMITED,26/02/2024 00:00,31/03/2024 00:00,P12-2024
R&B,INFORMATION TECHNOLOGY,SUPPLIES AND SERVICES,IT HARDWARE & SOFTWARE COSTS,4116,IT-IPHONE CASES,26/03/2024 00:00,283845,36.64,AM0406,AMAZON PAYMENTS UK LIMITED,26/02/2024 00:00,31/03/2024 00:00,P12-2024
R&B,INFORMATION TECHNOLOGY,SUPPLIES AND SERVICES,IT HARDWARE & SOFTWARE COSTS,4116,IT-IPHONE CASES,26/03/2024 00:00,283845,-36.64,AM0406,AMAZON PAYMENTS UK LIMITED,26/02/2024 00:00,31/03/2024 00:00,P12-2024
R&B,INFORMATION TECHNOLOGY,SUPPLIES AND SERVICES,IT HARDWARE & SOFTWARE COSTS,4116,IT-IPHONE CASES,26/03/2024 00:00,283845,-2.2,AM0406,AMAZON PAYMENTS UK LIMITED,26/02/2024 00:00,31/03/2024 00:00,P12-2024
R&B,INFORMATION TECHNOLOGY,SUPPLIES AND SERVICES,IT HARDWARE & SOFTWARE COSTS,4116,"P125459-SERVICE-Dell Keyboards Standard, Wired, USB @ 18.74",26/03/2024 00:00,283845,36.64,AM0406,AMAZON PAYMENTS UK LIMITED,26/02/2024 00:00,31/03/2024 00:00,P12-2024
R&B,INFORMATION TECHNOLOGY,SUPPLIES AND SERVICES,IT HARDWARE & SOFTWARE COSTS,4116,"P125459-SERVICE-Dell Keyboards Standard, Wired, USB @ 18.74",26/03/2024 00:00,283846,51.95,AM0406,AMAZON PAYMENTS UK LIMITED,26/02/2024 00:00,31/03/2024 00:00,P12-2024
R&B,INFORMATION TECHNOLOGY,SUPPLIES AND SERVICES,IT HARDWARE & SOFTWARE COSTS,4116,"P125459-SERVICE-Dell Keyboards Standard, Wired, USB @ 18.74",26/03/2024 00:00,283847,5.11,AM0406,AMAZON PAYMENTS UK LIMITED,26/02/2024 00:00,31/03/2024 00:00,P12-2024
R&B,INFORMATION TECHNOLOGY,SUPPLIES AND SERVICES,IT HARDWARE & SOFTWARE COSTS,4116,"P125459-SERVICE-iPhone 12 Case, Hard Carbon Fibre Shockproof",26/03/2024 00:00,283847,36.64,AM0406,AMAZON PAYMENTS UK LIMITED,26/02/2024 00:00,31/03/2024 00:00,P12-2024
R&B,INFORMATION TECHNOLOGY,SUPPLIES AND SERVICES,IT HARDWARE & SOFTWARE COSTS,4116,P125459-SERVICE-Dell Mouse black - Optical - 2 buttons - wire,26/03/2024 00:00,283847,51.95,AM0406,AMAZON PAYMENTS UK LIMITED,26/02/2024 00:00,31/03/2024 00:00,P12-2024
R&B,INFORMATION TECHNOLOGY,SUPPLIES AND SERVICES,IT MAINTENANCE AGREEMENTS,4119,P121793-SERVICE-Digiticket monthly ticketing service,06/03/2024 00:00,283140,589.8,DI0304,DIGITAL TICKETING SYSTEMS LTD (DIGITICKETS),26/02/2024 00:00,31/03/2024 00:00,P12-2024
R&B,INFORMATION TECHNOLOGY,SUPPLIES AND SERVICES,IT MAINTENANCE AGREEMENTS,4119,P123928-SERVICE-Support & Data Oct 23 - Mar24,12/03/2024 00:00,283285,171.29,CY0653,CYBERTILL,26/02/2024 00:00,31/03/2024 00:00,P12-2024
R&B,INFORMATION TECHNOLOGY,SUPPLIES AND SERVICES,IT MAINTENANCE AGREEMENTS,4119,P125248-SERVICE-Eaton battery replacement,26/03/2024 00:00,283763,2005,UP0091,UPS POWER SERVICES LTD,26/02/2024 00:00,31/03/2024 00:00,P12-2024
R&B,INFORMATION TECHNOLOGY,SUPPLIES AND SERVICES,IT MAINTENANCE AGREEMENTS,4119,P121793-SERVICE-Digiticket monthly ticketing service,31/03/2024 00:00,284202,640.2,DI0304,DIGITAL TICKETING SYSTEMS LTD (DIGITICKETS),26/02/2024 00:00,31/03/2024 00:00,P12-2024
P&V,SOUTH AREA RANGERS,SUPPLIES AND SERVICES,MATERIALS (LOCKS),4124,P125121-SERVICE-4x Combi Locks 50mm,05/03/2024 00:00,282966,83.3,SC0057,SCREWFIX DIRECT LTD,26/02/2024 00:00,31/03/2024 00:00,P12-2024
P&V,SOUTH AREA RANGERS,SUPPLIES AND SERVICES,MATERIALS (LOCKS),4124,TIMPSON-GROUND MAINTENANCE LOCK,12/03/2024 00:00,283359,25,FI0001,DIRECTOR OF FINANCE - CASH,26/02/2024 00:00,31/03/2024 00:00,P12-2024
P&V,SOUTH AREA RANGERS,SUPPLIES AND SERVICES,MATERIALS (LOCKS),4124,P125582-SERVICE-4x Squire Padlocks,31/03/2024 00:00,283988,85.3,SC0057,SCREWFIX DIRECT LTD,26/02/2024 00:00,31/03/2024 00:00,P12-2024
P&V,SOUTH AREA RANGERS,SUPPLIES AND SERVICES,MATERIALS (LOCKS),4124,P124929-SERVICE-Delivery to Myddelton House,31/03/2024 00:00,284209,12,LO0020,LOCK AND KEY SERVICES,26/02/2024 00:00,31/03/2024 00:00,P12-2024
P&V,SOUTH AREA RANGERS,SUPPLIES AND SERVICES,MATERIALS (LOCKS),4124,P124929-SERVICE-25 x ASSA Shackles 10mm,31/03/2024 00:00,284209,435.8,LO0020,LOCK AND KEY SERVICES,26/02/2024 00:00,31/03/2024 00:00,P12-2024
P&V,SOUTH AREA RANGERS,SUPPLIES AND SERVICES,MATERIALS (LOCKS),4124,P124929-SERVICE-25x ASSA Standard Bodies,31/03/2024 00:00,284209,1064.25,LO0020,LOCK AND KEY SERVICES,26/02/2024 00:00,31/03/2024 00:00,P12-2024
P&V,RIVER LEE COUNTRY PARK,SUPPLIES AND SERVICES,MATERIALS (LOCKS),4124,P125267-SERVICE-3x ASSA Lock Keys,31/03/2024 00:00,284208,29.22,LO0020,LOCK AND KEY SERVICES,26/02/2024 00:00,31/03/2024 00:00,P12-2024
P&V,RIVER LEE COUNTRY PARK,SUPPLIES AND SERVICES,MATERIALS (LOCKS),4124,P125267-SERVICE-2x Long Shackles only,31/03/2024 00:00,284208,124.98,LO0020,LOCK AND KEY SERVICES,26/02/2024 00:00,31/03/2024 00:00,P12-2024
P&V,RIVER LEE COUNTRY PARK,SUPPLIES AND SERVICES,MATERIALS (LOCKS),4124,P125267-SERVICE-5x ASSA Barrels,31/03/2024 00:00,284208,248,LO0020,LOCK AND KEY SERVICES,26/02/2024 00:00,31/03/2024 00:00,P12-2024
P&V,RIVER LEE COUNTRY PARK,SUPPLIES AND SERVICES,MATERIALS (LOCKS),4124,P125267-SERVICE-2x 10mm Shackles only,31/03/2024 00:00,284208,87.2,LO0020,LOCK AND KEY SERVICES,26/02/2024 00:00,31/03/2024 00:00,P12-2024
,LEE VALLEY CAMPSITE,SUPPLIES AND SERVICES,MATERIALS (GROUNDS MAINT),4125,P125066-SERVICE-Extra funds to cover invoice,06/03/2024 00:00,282894,5.93,LE0279,REESINK TURFCARE UK LIMITED,26/02/2024 00:00,31/03/2024 00:00,P12-2024
,LEE VALLEY CAMPSITE,SUPPLIES AND SERVICES,MATERIALS (GROUNDS MAINT),4125,P125066-SERVICE-SC Mower Parts,06/03/2024 00:00,282894,174.68,LE0279,REESINK TURFCARE UK LIMITED,26/02/2024 00:00,31/03/2024 00:00,P12-2024
,LEE VALLEY CAMPSITE,SUPPLIES AND SERVICES,MATERIALS (GROUNDS MAINT),4125,P125560-SERVICE-Exrtra funds for mower parts & Repair,31/03/2024 00:00,283078,193.1,LE0279,REESINK TURFCARE UK LIMITED,26/02/2024 00:00,31/03/2024 00:00,P12-2024
,LEE VALLEY CAMPSITE,SUPPLIES AND SERVICES,MATERIALS (GROUNDS MAINT),4125,P124793-SERVICE-SC Tree Survey Woodland Walk,26/03/2024 00:00,283860,1440,DO0328,DOWN TO EARTH TREES LTD,26/02/2024 00:00,31/03/2024 00:00,P12-2024
,LV CAMPSITE CARAVAN SALES,SUPPLIES AND SERVICES,MATERIALS (GROUNDS MAINT),4125,DW-PARKING BAYS,31/03/2024 00:00,283902,-725,MO0041,CAPSER,26/02/2024 00:00,31/03/2024 00:00,P12-2024
,LV CAMPSITE CARAVAN SALES,SUPPLIES AND SERVICES,MATERIALS (GROUNDS MAINT),4125,DW-PARKING BAYS,31/03/2024 00:00,283902,600,MO0041,CAPSER,26/02/2024 00:00,31/03/2024 00:00,P12-2024
,LV CAMPSITE CARAVAN SALES,SUPPLIES AND SERVICES,MATERIALS (GROUNDS MAINT),4125,P125492-SERVICE-DW Parking Bays,31/03/2024 00:00,283902,725,MO0041,CAPSER,26/02/2024 00:00,31/03/2024 00:00,P12-2024
,LV CAMPSITE CARAVAN SALES,SUPPLIES AND SERVICES,MATERIALS (GROUNDS MAINT),4125,DW-PARKING BAYS,31/03/2024 00:00,283902,125,MO0041,CAPSER,26/02/2024 00:00,31/03/2024 00:00,P12-2024
,LEE VALLEY CARAVAN PARK,SUPPLIES AND SERVICES,MATERIALS (GROUNDS MAINT),4125,P125146-SERVICE-Various Tree works on site,05/03/2024 00:00,283103,985,MU0030,P J MUSK TREES,26/02/2024 00:00,31/03/2024 00:00,P12-2024
,LEE VALLEY CARAVAN PARK,SUPPLIES AND SERVICES,MATERIALS (GROUNDS MAINT),4125,DW-GROUNDS WORKS AND BAYS,26/03/2024 00:00,283900,-4800,MO0041,CAPSER,26/02/2024 00:00,31/03/2024 00:00,P12-2024
,LEE VALLEY CARAVAN PARK,SUPPLIES AND SERVICES,MATERIALS (GROUNDS MAINT),4125,P125491-SERVICE-Dw Ground Work & Bay,26/03/2024 00:00,283900,4800,MO0041,CAPSER,26/02/2024 00:00,31/03/2024 00:00,P12-2024
,LEE VALLEY CARAVAN PARK,SUPPLIES AND SERVICES,MATERIALS (GROUNDS MAINT),4125,DW-GROUNDS WORKS AND BAYS,26/03/2024 00:00,283900,1000,MO0041,CAPSER,26/02/2024 00:00,31/03/2024 00:00,P12-2024
,LEE VALLEY CARAVAN PARK,SUPPLIES AND SERVICES,MATERIALS (GROUNDS MAINT),4125,DW-GROUNDS WORKS AND BAYS,26/03/2024 00:00,283900,3800,MO0041,CAPSER,26/02/2024 00:00,31/03/2024 00:00,P12-2024
P&V,MYDDELTON HOUSE GARDENS,SUPPLIES AND SERVICES,MATERIALS (GROUNDS MAINT),4125,P124602-SERVICE-gardens equipment 2024,28/02/2024 00:00,282672,21.66,AM0406,AMAZON PAYMENTS UK LIMITED,26/02/2024 00:00,31/03/2024 00:00,P12-2024
P&V,MYDDELTON HOUSE GARDENS,SUPPLIES AND SERVICES,MATERIALS (GROUNDS MAINT),4125,P124951-SERVICE-ash tree works gardens feb 24,05/03/2024 00:00,282753,925,PA0222,PARKIN & PARKER TREE SPECIALISTS,26/02/2024 00:00,31/03/2024 00:00,P12-2024
P&V,MYDDELTON HOUSE GARDENS,SUPPLIES AND SERVICES,MATERIALS (GROUNDS MAINT),4125,P124602-SERVICE-gardens equipment 2024,06/03/2024 00:00,283063,26.49,AM0406,AMAZON PAYMENTS UK LIMITED,26/02/2024 00:00,31/03/2024 00:00,P12-2024
P&V,MYDDELTON HOUSE GARDENS,SUPPLIES AND SERVICES,MATERIALS (GROUNDS MAINT),4125,P124602-SERVICE-gardens equipment 2024,06/03/2024 00:00,283064,11.98,AM0406,AMAZON PAYMENTS UK LIMITED,26/02/2024 00:00,31/03/2024 00:00,P12-2024
P&V,MYDDELTON HOUSE GARDENS,SUPPLIES AND SERVICES,MATERIALS (GROUNDS MAINT),4125,P124602-SERVICE-gardens equipment 2024,06/03/2024 00:00,283065,35.84,AM0406,AMAZON PAYMENTS UK LIMITED,26/02/2024 00:00,31/03/2024 00:00,P12-2024
P&V,MYDDELTON HOUSE GARDENS,SUPPLIES AND SERVICES,MATERIALS (GROUNDS MAINT),4125,P124602-SERVICE-gardens equipment 2024,13/03/2024 00:00,283310,9.16,AM0406,AMAZON PAYMENTS UK LIMITED,26/02/2024 00:00,31/03/2024 00:00,P12-2024
P&V,MYDDELTON HOUSE GARDENS,SUPPLIES AND SERVICES,MATERIALS (GROUNDS MAINT),4125,P124602-SERVICE-gardens equipment 2024,20/03/2024 00:00,283692,7.63,AM0406,AMAZON PAYMENTS UK LIMITED,26/02/2024 00:00,31/03/2024 00:00,P12-2024
P&V,MYDDELTON HOUSE GARDENS,SUPPLIES AND SERVICES,MATERIALS (GROUNDS MAINT),4125,P124602-SERVICE-gardens equipment 2024,20/03/2024 00:00,283693,6.84,AM0406,AMAZON PAYMENTS UK LIMITED,26/02/2024 00:00,31/03/2024 00:00,P12-2024
P&V,MYDDELTON HOUSE GARDENS,SUPPLIES AND SERVICES,MATERIALS (GROUNDS MAINT),4125,P124602-SERVICE-gardens equipment 2024,20/03/2024 00:00,283694,5.82,AM0406,AMAZON PAYMENTS UK LIMITED,26/02/2024 00:00,31/03/2024 00:00,P12-2024
P&V,MYDDELTON HOUSE GARDENS,SUPPLIES AND SERVICES,MATERIALS (GROUNDS MAINT),4125,P124602-SERVICE-gardens equipment 2024,31/03/2024 00:00,284117,22.94,AM0406,AMAZON PAYMENTS UK LIMITED,26/02/2024 00:00,31/03/2024 00:00,P12-2024
P&V,MYDDELTON HOUSE GARDENS,SUPPLIES AND SERVICES,MATERIALS (GROUNDS MAINT),4125,P124602-SERVICE-gardens equipment 2024,31/03/2024 00:00,284118,15.99,AM0406,AMAZON PAYMENTS UK LIMITED,26/02/2024 00:00,31/03/2024 00:00,P12-2024
P&V,MYDDELTON HOUSE GARDENS,SUPPLIES AND SERVICES,MATERIALS (GROUNDS MAINT),4125,P124602-SERVICE-gardens equipment 2024,31/03/2024 00:00,284146,11.64,AM0406,AMAZON PAYMENTS UK LIMITED,26/02/2024 00:00,31/03/2024 00:00,P12-2024
P&V,MYDDELTON HOUSE GARDENS,SUPPLIES AND SERVICES,MATERIALS (GROUNDS MAINT),4125,P124602-SERVICE-gardens equipment 2024,31/03/2024 00:00,284364,109.59,AM0406,AMAZON PAYMENTS UK LIMITED,26/02/2024 00:00,31/03/2024 00:00,P12-2024
,LV LEISURE CENTRE GOLF COURSE,SUPPLIES AND SERVICES,MATERIALS (GROUNDS MAINT),4125,P124775-SERVICE-3 x STIHL Strimmer Service,05/03/2024 00:00,282109,120.6,AP0245,APS LIMITED,26/02/2024 00:00,31/03/2024 00:00,P12-2024
,LV LEISURE CENTRE GOLF COURSE,SUPPLIES AND SERVICES,MATERIALS (GROUNDS MAINT),4125,P124775-SERVICE-3 x STIHL Strimmer Service,05/03/2024 00:00,282116,120.79,AP0245,APS LIMITED,26/02/2024 00:00,31/03/2024 00:00,P12-2024
,LV LEISURE CENTRE GOLF COURSE,SUPPLIES AND SERVICES,MATERIALS (GROUNDS MAINT),4125,P124775-SERVICE-3 x STIHL Strimmer Service,05/03/2024 00:00,282117,120.79,AP0245,APS LIMITED,26/02/2024 00:00,31/03/2024 00:00,P12-2024
,LV LEISURE CENTRE GOLF COURSE,SUPPLIES AND SERVICES,MATERIALS (GROUNDS MAINT),4125,P124775-SERVICE-Extra Funds To Cover Invoice,05/03/2024 00:00,282117,6.5,AP0245,APS LIMITED,26/02/2024 00:00,31/03/2024 00:00,P12-2024
P&V,MYDDELTON HOUSE GARDENS,SUPPLIES AND SERVICES,MATERIALS (PLANTS & SHRUBS),4126,P125324-SERVICE-gardens seeds order mar 24,26/03/2024 00:00,283720,220.61,CH0298,CHILTERN SEEDS,26/02/2024 00:00,31/03/2024 00:00,P12-2024
P&V,MYDDELTON HOUSE GARDENS,SUPPLIES AND SERVICES,MATERIALS (PLANTS & SHRUBS),4126,MD GARDENS- GARDEN SEEDS,26/03/2024 00:00,283720,11.61,CH0298,CHILTERN SEEDS,26/02/2024 00:00,31/03/2024 00:00,P12-2024
P&V,MYDDELTON HOUSE GARDENS,SUPPLIES AND SERVICES,MATERIALS (PLANTS & SHRUBS),4126,MD GARDENS- GARDEN SEEDS,26/03/2024 00:00,283720,209,CH0298,CHILTERN SEEDS,26/02/2024 00:00,31/03/2024 00:00,P12-2024
P&V,MYDDELTON HOUSE GARDENS,SUPPLIES AND SERVICES,MATERIALS (PLANTS & SHRUBS),4126,MD GARDENS- GARDEN SEEDS,26/03/2024 00:00,283720,-220.61,CH0298,CHILTERN SEEDS,26/02/2024 00:00,31/03/2024 00:00,P12-2024
P&V,MYDDELTON HOUSE GARDENS,SUPPLIES AND SERVICES,MATERIALS (PLANTS & SHRUBS),4126,MD GARDENS-GARDEN SEEDS,26/03/2024 00:00,283854,4.42,CH0298,CHILTERN SEEDS,26/02/2024 00:00,31/03/2024 00:00,P12-2024
P&V,MYDDELTON HOUSE GARDENS,SUPPLIES AND SERVICES,MATERIALS (PLANTS & SHRUBS),4126,P125410-SERVICE-gardens seed order 24,26/03/2024 00:00,283854,75.87,CH0298,CHILTERN SEEDS,26/02/2024 00:00,31/03/2024 00:00,P12-2024
P&V,MYDDELTON HOUSE GARDENS,SUPPLIES AND SERVICES,MATERIALS (PLANTS & SHRUBS),4126,MD GARDENS-GARDEN SEEDS,26/03/2024 00:00,283854,71.45,CH0298,CHILTERN SEEDS,26/02/2024 00:00,31/03/2024 00:00,P12-2024
P&V,MYDDELTON HOUSE GARDENS,SUPPLIES AND SERVICES,MATERIALS (PLANTS & SHRUBS),4126,MD GARDENS-GARDEN SEEDS,26/03/2024 00:00,283854,-75.87,CH0298,CHILTERN SEEDS,26/02/2024 00:00,31/03/2024 00:00,P12-2024
,STANSTEAD RECHARGEABLE WORKS,SUPPLIES AND SERVICES,MATERIALS (TOOLS & PLANT),4127,P125481-SERVICE-anodes,27/03/2024 00:00,283892,1011.25,MI0200,MIDLAND CHANDLERS LIMITED,26/02/2024 00:00,31/03/2024 00:00,P12-2024
,STANSTEAD RECHARGEABLE WORKS,SUPPLIES AND SERVICES,MATERIALS (TOOLS & PLANT),4127,P124688-SERVICE-zoomlion windscreen,31/03/2024 00:00,283977,2066.26,TM0644,T.M.C. LIFTING AND ENGINEERING SUPPLIES,26/02/2024 00:00,31/03/2024 00:00,P12-2024
,LEE VALLEY MARINA STANSTEAD,SUPPLIES AND SERVICES,MATERIALS (ENG OTHER),4130,P125602-SERVICE-SAFETY CHECK - CP47,31/03/2024 00:00,283963,52,BO0015,BOC LTD,26/02/2024 00:00,31/03/2024 00:00,P12-2024
,STANSTEAD RECHARGEABLE WORKS,SUPPLIES AND SERVICES,MATERIALS (ENG OTHER),4130,P123940-SERVICE-hometrend spend Nov-Apr24,19/03/2024 00:00,283369,5.86,HO0349,HOMETREND SUPPLIES LTD,26/02/2024 00:00,31/03/2024 00:00,P12-2024
,STANSTEAD RECHARGEABLE WORKS,SUPPLIES AND SERVICES,MATERIALS (ENG OTHER),4130,P123940-SERVICE-hometrend spend Nov-Apr24,19/03/2024 00:00,283370,32.43,HO0349,HOMETREND SUPPLIES LTD,26/02/2024 00:00,31/03/2024 00:00,P12-2024
,STANSTEAD RECHARGEABLE WORKS,SUPPLIES AND SERVICES,MATERIALS (ENG OTHER),4130,P125298-SERVICE-paint roller frame with wire cage,19/03/2024 00:00,283403,9.93,AM0406,AMAZON PAYMENTS UK LIMITED,26/02/2024 00:00,31/03/2024 00:00,P12-2024
,STANSTEAD RECHARGEABLE WORKS,SUPPLIES AND SERVICES,MATERIALS (ENG OTHER),4130,"P125299-SERVICE-paint roller tray, inserts & poles",19/03/2024 00:00,283468,156.35,SC0057,SCREWFIX DIRECT LTD,26/02/2024 00:00,31/03/2024 00:00,P12-2024
,STANSTEAD RECHARGEABLE WORKS,SUPPLIES AND SERVICES,MATERIALS (ENG OTHER),4130,P125394-SERVICE-crane windscreen transport,19/03/2024 00:00,283666,240,JA0191,J & AL SHELTON TRANSPORT,26/02/2024 00:00,31/03/2024 00:00,P12-2024
,STANSTEAD RECHARGEABLE WORKS,SUPPLIES AND SERVICES,MATERIALS (ENG OTHER),4130,"P125509-SERVICE-travel , remove bolts, weld holes, weld 6mm",31/03/2024 00:00,284134,500,EN0309,PRH ENGINEERING LIMITED,26/02/2024 00:00,31/03/2024 00:00,P12-2024
,LEE VALLEY CAMPSITE,SUPPLIES AND SERVICES,MATERIALS (ENG OTHER),4130,P125213-SERVICE-Repairs Kubota Mower,31/03/2024 00:00,284008,1495.6,CA0698,CAMBRIDGE GOLF COMPANY,26/02/2024 00:00,31/03/2024 00:00,P12-2024
,LV LEISURE CENTRE GOLF COURSE,SUPPLIES AND SERVICES,MATERIALS (ENG OTHER),4130,P124099-SERVICE-Streering Cylinder Toro 4500D,26/03/2024 00:00,283386,451.5,CA0698,CAMBRIDGE GOLF COMPANY,26/02/2024 00:00,31/03/2024 00:00,P12-2024
P&V,LEE VALLEY FARM HOLYFIELDHALL,SUPPLIES AND SERVICES,FEED,4133,P125450-SERVICE-Nutrimol,31/03/2024 00:00,283896,2236.52,BO0246,FOR FARMERS UK LTD,26/02/2024 00:00,31/03/2024 00:00,P12-2024
P&V,LEE VALLEY FARM HOLYFIELDHALL,SUPPLIES AND SERVICES,FEED,4133,P125598-SERVICE-Topgrass,31/03/2024 00:00,283987,800,BO0246,FOR FARMERS UK LTD,26/02/2024 00:00,31/03/2024 00:00,P12-2024
P&V,LEE VALLEY FARM HOLYFIELDHALL,SUPPLIES AND SERVICES,BEDDING,4134,P125546-SERVICE-Cultivation Spares,31/03/2024 00:00,283997,819.42,AG0440,AGRI-LINC LIMITED,26/02/2024 00:00,31/03/2024 00:00,P12-2024
P&V,LEE VALLEY FARM HOLYFIELDHALL,SUPPLIES AND SERVICES,BEDDING,4134,P125546-SERVICE-Cultivation Spares,31/03/2024 00:00,283998,169.42,AG0440,AGRI-LINC LIMITED,26/02/2024 00:00,31/03/2024 00:00,P12-2024
P&V,LEE VALLEY FARM HOLYFIELDHALL,SUPPLIES AND SERVICES,BEDDING,4134,P125543-SERVICE-Bales - Sileage,31/03/2024 00:00,284318,3000,BU0088,BURNELL CONTRACTING,26/02/2024 00:00,31/03/2024 00:00,P12-2024
P&V,LEE VALLEY FARM HOLYFIELDHALL,SUPPLIES AND SERVICES,SPRAYS,4136,P125451-SERVICE-T1 Sprays,31/03/2024 00:00,283999,2477.2,HA0013,HARLOW AGRICULTURAL MERCHANTS,26/02/2024 00:00,31/03/2024 00:00,P12-2024
P&V,LEE VALLEY FARM HOLYFIELDHALL,SUPPLIES AND SERVICES,DAIRY SUNDRIES,4138,P121502-SERVICE-Farm Sundries,12/03/2024 00:00,282924,437.8,FA0099,FARM & COUNTRY SUPPLIES LTD,26/02/2024 00:00,31/03/2024 00:00,P12-2024
P&V,LEE VALLEY FARM HOLYFIELDHALL,SUPPLIES AND SERVICES,DAIRY SUNDRIES,4138,P122011-SERVICE-Liquid Nitrogen,12/03/2024 00:00,283301,82,GE0005,GENUS BREEDING LTD,26/02/2024 00:00,31/03/2024 00:00,P12-2024
P&V,LEE VALLEY FARM HOLYFIELDHALL,SUPPLIES AND SERVICES,DAIRY SUNDRIES,4138,P125274-SERVICE-Milk Tank Works,13/03/2024 00:00,283372,541.09,BE0669,BEELINE REFRIGERATION LTD,26/02/2024 00:00,31/03/2024 00:00,P12-2024
P&V,LEE VALLEY FARM HOLYFIELDHALL,SUPPLIES AND SERVICES,DAIRY SUNDRIES,4138,P125449-SERVICE-Posts & Rails,31/03/2024 00:00,284023,769.2,FA0099,FARM & COUNTRY SUPPLIES LTD,26/02/2024 00:00,31/03/2024 00:00,P12-2024
P&V,LEE VALLEY FARM HOLYFIELDHALL,SUPPLIES AND SERVICES,DAIRY SUNDRIES,4138,P121601-SERVICE-Dairy Sundries,31/03/2024 00:00,284221,48.21,MI0023,MILL DAIRY SERVICES,26/02/2024 00:00,31/03/2024 00:00,P12-2024
,LEE VALLEY CAMPSITE,SUPPLIES AND SERVICES,DECKING PURCHASES,4173,"P123480-SERVICE-3, 5, 45 SC Decking Skirt Repairs",31/03/2024 00:00,284224,225,WI0352,WILDWOOD OF MAYFIELD LTD,26/02/2024 00:00,31/03/2024 00:00,P12-2024
,LV CAMPSITE CARAVAN SALES,SUPPLIES AND SERVICES,DECKING PURCHASES,4173,P124741-SERVICE-125 DW Decking,28/02/2024 00:00,282648,6944,WI0352,WILDWOOD OF MAYFIELD LTD,26/02/2024 00:00,31/03/2024 00:00,P12-2024
,LV CAMPSITE CARAVAN SALES,SUPPLIES AND SERVICES,DECKING PURCHASES,4173,P124337-SERVICE-Extra Gate 127 DW,31/03/2024 00:00,284225,175,WI0352,WILDWOOD OF MAYFIELD LTD,26/02/2024 00:00,31/03/2024 00:00,P12-2024
,LEE VALLEY CARAVAN PARK,SUPPLIES AND SERVICES,DECKING PURCHASES,4173,P125143-SERVICE-DW Amelia Decking,28/02/2024 00:00,282471,7366,WI0352,WILDWOOD OF MAYFIELD LTD,26/02/2024 00:00,31/03/2024 00:00,P12-2024
,LV CAMPSITE CARAVAN SALES,SUPPLIES AND SERVICES,MISCELLANEOUS CARAVAN COSTS,4174,P125214-SERVICE-DW125 Connections & GAs Works,26/03/2024 00:00,283191,1735,SO0400,SOUTHERN GREEN SERVICES LIMITED,26/02/2024 00:00,31/03/2024 00:00,P12-2024
,LEE VALLEY CARAVAN PARK,SUPPLIES AND SERVICES,MISCELLANEOUS CARAVAN COSTS,4174,P125204-SERVICE-Gas safety check The country,12/03/2024 00:00,283198,70,SO0400,SOUTHERN GREEN SERVICES LIMITED,26/02/2024 00:00,31/03/2024 00:00,P12-2024
,LEE VALLEY CARAVAN PARK,SUPPLIES AND SERVICES,MISCELLANEOUS CARAVAN COSTS,4174,P125206-SERVICE-Boiler repairs The Country,12/03/2024 00:00,283199,335,SO0400,SOUTHERN GREEN SERVICES LIMITED,26/02/2024 00:00,31/03/2024 00:00,P12-2024
,LEE VALLEY CARAVAN PARK,SUPPLIES AND SERVICES,MISCELLANEOUS CARAVAN COSTS,4174,P125252-SERVICE- Tv's + brackets in Amelia & aerial in HH125,13/03/2024 00:00,283307,376.99,AS0343,ASCENT AERIALS,26/02/2024 00:00,31/03/2024 00:00,P12-2024
,LEE VALLEY CARAVAN PARK,SUPPLIES AND SERVICES,MISCELLANEOUS CARAVAN COSTS,4174,P125554-SERVICE-Replace shower in the Country,31/03/2024 00:00,284137,455,SO0400,SOUTHERN GREEN SERVICES LIMITED,26/02/2024 00:00,31/03/2024 00:00,P12-2024
,LEE VALLEY CARAVAN PARK,SUPPLIES AND SERVICES,CONSUMABLES - LODGES,4181,P125100-SERVICE-Replacement Items for Rental Units,05/03/2024 00:00,282913,92.06,AM0406,AMAZON PAYMENTS UK LIMITED,26/02/2024 00:00,31/03/2024 00:00,P12-2024
,LEE VALLEY CARAVAN PARK,SUPPLIES AND SERVICES,CONSUMABLES - LODGES,4181,P125100-SERVICE-Replacement Items for Rental Units,05/03/2024 00:00,282914,38.68,AM0406,AMAZON PAYMENTS UK LIMITED,26/02/2024 00:00,31/03/2024 00:00,P12-2024
,LEE VALLEY CARAVAN PARK,SUPPLIES AND SERVICES,CONSUMABLES - LODGES,4181,P125100-SERVICE-Replacement Items for Rental Units,05/03/2024 00:00,282915,30,AM0406,AMAZON PAYMENTS UK LIMITED,26/02/2024 00:00,31/03/2024 00:00,P12-2024
,LEE VALLEY CARAVAN PARK,SUPPLIES AND SERVICES,CONSUMABLES - LODGES,4181,P125100-SERVICE-Replacement Items for Rental Units,05/03/2024 00:00,282916,48.81,AM0406,AMAZON PAYMENTS UK LIMITED,26/02/2024 00:00,31/03/2024 00:00,P12-2024
,LEE VALLEY CARAVAN PARK,SUPPLIES AND SERVICES,CONSUMABLES - LODGES,4181,P125100-SERVICE-Replacement Items for Rental Units,05/03/2024 00:00,282917,29.12,AM0406,AMAZON PAYMENTS UK LIMITED,26/02/2024 00:00,31/03/2024 00:00,P12-2024
,LEE VALLEY CARAVAN PARK,SUPPLIES AND SERVICES,CONSUMABLES - LODGES,4181,P125100-SERVICE-Replacement Items for Rental Units,05/03/2024 00:00,282918,33.32,AM0406,AMAZON PAYMENTS UK LIMITED,26/02/2024 00:00,31/03/2024 00:00,P12-2024
,LEE VALLEY CARAVAN PARK,SUPPLIES AND SERVICES,CONSUMABLES - LODGES,4181,P125154-SERVICE-Outside table set and Speical Teas for Lodgge,05/03/2024 00:00,283094,40,AM0406,AMAZON PAYMENTS UK LIMITED,26/02/2024 00:00,31/03/2024 00:00,P12-2024
,LEE VALLEY CARAVAN PARK,SUPPLIES AND SERVICES,CONSUMABLES - LODGES,4181,P125154-SERVICE-Outside table set and Speical Teas for Lodgge,05/03/2024 00:00,283095,315.82,AM0406,AMAZON PAYMENTS UK LIMITED,26/02/2024 00:00,31/03/2024 00:00,P12-2024
,LEE VALLEY CARAVAN PARK,SUPPLIES AND SERVICES,CONSUMABLES - LODGES,4181,P125154-SERVICE-Outside table set and Speical Teas for Lodgge,05/03/2024 00:00,283134,23.56,AM0406,AMAZON PAYMENTS UK LIMITED,26/02/2024 00:00,31/03/2024 00:00,P12-2024
,LEE VALLEY CARAVAN PARK,SUPPLIES AND SERVICES,CONSUMABLES - LODGES,4181,"P125095-SERVICE-Plates, Cups, Bowels, Cutlery, Pots & Pans",13/03/2024 00:00,283353,265.12,PA0415,PATTERSONS,26/02/2024 00:00,31/03/2024 00:00,P12-2024
CEO,PR/COMMUNICATIONS,SUPPLIES AND SERVICES,CLOTHING & UNIFORMS,4225,P125347-SERVICE-LVRPA name badges x 22,26/03/2024 00:00,283734,195.9,RE0055,RECOGNITION EXPRESS THAMES VALLEY,26/02/2024 00:00,31/03/2024 00:00,P12-2024
,LEE VALLEY CARAVAN PARK,SUPPLIES AND SERVICES,CLOTHING & UNIFORMS,4225,DW-COLLANT; TROUSERS. ETC,12/03/2024 00:00,283186,117.98,SC0057,SCREWFIX DIRECT LTD,26/02/2024 00:00,31/03/2024 00:00,P12-2024
,LEE VALLEY CARAVAN PARK,SUPPLIES AND SERVICES,CLOTHING & UNIFORMS,4225,DW-COLLANT; TROUSERS. ETC,12/03/2024 00:00,283186,110.8,SC0057,SCREWFIX DIRECT LTD,26/02/2024 00:00,31/03/2024 00:00,P12-2024
,LEE VALLEY CARAVAN PARK,SUPPLIES AND SERVICES,CLOTHING & UNIFORMS,4225,DW-COLLANT; TROUSERS. ETC,12/03/2024 00:00,283186,-228.78,SC0057,SCREWFIX DIRECT LTD,26/02/2024 00:00,31/03/2024 00:00,P12-2024
,LEE VALLEY CARAVAN PARK,SUPPLIES AND SERVICES,CLOTHING & UNIFORMS,4225,"P125282-SERVICE-Trousers, boots etc",12/03/2024 00:00,283186,228.78,SC0057,SCREWFIX DIRECT LTD,26/02/2024 00:00,31/03/2024 00:00,P12-2024
P&V,MYDDELTON HOUSE GARDENS,SUPPLIES AND SERVICES,CLOTHING & UNIFORMS,4225,P125408-SERVICE-satefy boots gardens 24,26/03/2024 00:00,283733,62.95,DI0017,DIRECT BOOT & SHOE SUPPLIES,26/02/2024 00:00,31/03/2024 00:00,P12-2024
P&V,MYDDELTON HOUSE GARDENS,SUPPLIES AND SERVICES,CLOTHING & UNIFORMS,4225,P124875-SERVICE-volunteers work boots,26/03/2024 00:00,283856,25.95,DI0017,DIRECT BOOT & SHOE SUPPLIES,26/02/2024 00:00,31/03/2024 00:00,P12-2024
P&V,SOUTH AREA RANGERS,SUPPLIES AND SERVICES,CLOTHING & UNIFORMS,4225,438-BOOTS- D BAXTER,19/03/2024 00:00,283597,4.95,SA0008,SAFETEC DIRECT LTD,26/02/2024 00:00,31/03/2024 00:00,P12-2024
P&V,SOUTH AREA RANGERS,SUPPLIES AND SERVICES,CLOTHING & UNIFORMS,4225,438-BOOTS- D BAXTER,19/03/2024 00:00,283597,-44.94,SA0008,SAFETEC DIRECT LTD,26/02/2024 00:00,31/03/2024 00:00,P12-2024
P&V,SOUTH AREA RANGERS,SUPPLIES AND SERVICES,CLOTHING & UNIFORMS,4225,438-BOOTS- D BAXTER,19/03/2024 00:00,283597,39.99,SA0008,SAFETEC DIRECT LTD,26/02/2024 00:00,31/03/2024 00:00,P12-2024
P&V,SOUTH AREA RANGERS,SUPPLIES AND SERVICES,CLOTHING & UNIFORMS,4225,P124285-SERVICE-1x Safety Boots,19/03/2024 00:00,283597,44.94,SA0008,SAFETEC DIRECT LTD,26/02/2024 00:00,31/03/2024 00:00,P12-2024
CEO,PROPERTY,SUPPLIES AND SERVICES,OFFICE EXPENSES,4311,P125085-SERVICE-C4 White Peal & Seal Window Envelopes (KS0329,19/03/2024 00:00,282943,26.96,TH0008,JKL SOLUTIONS LTD,26/02/2024 00:00,31/03/2024 00:00,P12-2024
R&B,FINANCE,SUPPLIES AND SERVICES,OFFICE EXPENSES,4311,P125263-SERVICE-Q-connect multipurpose labels Kf26051 65X38mm,19/03/2024 00:00,283602,15.33,TH0008,JKL SOLUTIONS LTD,26/02/2024 00:00,31/03/2024 00:00,P12-2024
R&B,FINANCE,SUPPLIES AND SERVICES,OFFICE EXPENSES,4311,P125323-SERVICE-COLOP S220 Green Line Date Stamp 15520050,19/03/2024 00:00,283648,15.15,TH0008,JKL SOLUTIONS LTD,26/02/2024 00:00,31/03/2024 00:00,P12-2024
R&B,INFORMATION TECHNOLOGY,SUPPLIES AND SERVICES,OFFICE EXPENSES,4311,P125240-SERVICE-Solaris mesh back operator chair black,31/03/2024 00:00,283957,177.48,TH0008,JKL SOLUTIONS LTD,26/02/2024 00:00,31/03/2024 00:00,P12-2024
,LEE VALLEY MARINA STANSTEAD,SUPPLIES AND SERVICES,OFFICE EXPENSES,4311,P125087-SERVICE-2 lable maker tapes,12/03/2024 00:00,282944,31.26,TH0008,JKL SOLUTIONS LTD,26/02/2024 00:00,31/03/2024 00:00,P12-2024
,LEE VALLEY MARINA STANSTEAD,SUPPLIES AND SERVICES,OFFICE EXPENSES,4311,"P125114-SERVICE-till rolls, green paper, bics",12/03/2024 00:00,282970,115.98,TH0008,JKL SOLUTIONS LTD,26/02/2024 00:00,31/03/2024 00:00,P12-2024
,LEE VALLEY MARINA STANSTEAD,SUPPLIES AND SERVICES,OFFICE EXPENSES,4311,P125129-SERVICE-desk expander and tipp ex,12/03/2024 00:00,283075,43.2,TH0008,JKL SOLUTIONS LTD,26/02/2024 00:00,31/03/2024 00:00,P12-2024
,LEE VALLEY MARINA STANSTEAD,SUPPLIES AND SERVICES,OFFICE EXPENSES,4311,"P125191-SERVICE-sealant gun, phone wifi headset, 1st aid bag",12/03/2024 00:00,283148,29.74,AM0406,AMAZON PAYMENTS UK LIMITED,26/02/2024 00:00,31/03/2024 00:00,P12-2024
,LEE VALLEY MARINA STANSTEAD,SUPPLIES AND SERVICES,OFFICE EXPENSES,4311,"P125191-SERVICE-sealant gun, phone wifi headset, 1st aid bag",12/03/2024 00:00,283149,49.99,AM0406,AMAZON PAYMENTS UK LIMITED,26/02/2024 00:00,31/03/2024 00:00,P12-2024
,LEE VALLEY MARINA STANSTEAD,SUPPLIES AND SERVICES,OFFICE EXPENSES,4311,"P125191-SERVICE-sealant gun, phone wifi headset, 1st aid bag",12/03/2024 00:00,283150,38.32,AM0406,AMAZON PAYMENTS UK LIMITED,26/02/2024 00:00,31/03/2024 00:00,P12-2024
,LEE VALLEY CAMPSITE,SUPPLIES AND SERVICES,OFFICE EXPENSES,4311,P124979-SERVICE-Pens,05/03/2024 00:00,282515,5,TH0008,JKL SOLUTIONS LTD,26/02/2024 00:00,31/03/2024 00:00,P12-2024
,LEE VALLEY CAMPSITE,SUPPLIES AND SERVICES,OFFICE EXPENSES,4311,P124979-SERVICE-A4 Clipboards x4,05/03/2024 00:00,282515,5.04,TH0008,JKL SOLUTIONS LTD,26/02/2024 00:00,31/03/2024 00:00,P12-2024
,LEE VALLEY CAMPSITE,SUPPLIES AND SERVICES,OFFICE EXPENSES,4311,P124979-SERVICE-A4 Over clip boards x2,05/03/2024 00:00,282515,3.82,TH0008,JKL SOLUTIONS LTD,26/02/2024 00:00,31/03/2024 00:00,P12-2024
,LEE VALLEY CAMPSITE,SUPPLIES AND SERVICES,OFFICE EXPENSES,4311,P124979-SERVICE-Pens,05/03/2024 00:00,282515,2.46,TH0008,JKL SOLUTIONS LTD,26/02/2024 00:00,31/03/2024 00:00,P12-2024
,LEE VALLEY CAMPSITE,SUPPLIES AND SERVICES,OFFICE EXPENSES,4311,P124979-SERVICE-1x mesh pen pot,05/03/2024 00:00,282515,3.11,TH0008,JKL SOLUTIONS LTD,26/02/2024 00:00,31/03/2024 00:00,P12-2024
,LEE VALLEY CAMPSITE,SUPPLIES AND SERVICES,OFFICE EXPENSES,4311,P124979-SERVICE-Photcopier paperx3 boxes,05/03/2024 00:00,282515,68.25,TH0008,JKL SOLUTIONS LTD,26/02/2024 00:00,31/03/2024 00:00,P12-2024
,LEE VALLEY CAMPSITE,SUPPLIES AND SERVICES,OFFICE EXPENSES,4311,P124979-SERVICE-Laminate pouches x100,05/03/2024 00:00,282515,22.83,TH0008,JKL SOLUTIONS LTD,26/02/2024 00:00,31/03/2024 00:00,P12-2024
,LEE VALLEY CAMPSITE,SUPPLIES AND SERVICES,OFFICE EXPENSES,4311,P124979-SERVICE-3x packs of 5 notebooks,05/03/2024 00:00,282515,34.29,TH0008,JKL SOLUTIONS LTD,26/02/2024 00:00,31/03/2024 00:00,P12-2024
,LEE VALLEY CAMPSITE,SUPPLIES AND SERVICES,OFFICE EXPENSES,4311,P124979-SERVICE-post it notes x 2 packs,05/03/2024 00:00,282515,37.92,TH0008,JKL SOLUTIONS LTD,26/02/2024 00:00,31/03/2024 00:00,P12-2024
,LEE VALLEY CAMPSITE,SUPPLIES AND SERVICES,OFFICE EXPENSES,4311,P124979-SERVICE-a4 card holder x100,05/03/2024 00:00,282515,24.43,TH0008,JKL SOLUTIONS LTD,26/02/2024 00:00,31/03/2024 00:00,P12-2024
,LEE VALLEY CAMPSITE,SUPPLIES AND SERVICES,OFFICE EXPENSES,4311,P124979-SERVICE-1x mesh pen pot,05/03/2024 00:00,282945,-3.11,TH0008,JKL SOLUTIONS LTD,26/02/2024 00:00,31/03/2024 00:00,P12-2024
,LEE VALLEY CAMPSITE,SUPPLIES AND SERVICES,OFFICE EXPENSES,4311,P124979-SERVICE-a4 card holder x100,05/03/2024 00:00,282946,-24.43,TH0008,JKL SOLUTIONS LTD,26/02/2024 00:00,31/03/2024 00:00,P12-2024
,LEE VALLEY CAMPSITE,SUPPLIES AND SERVICES,OFFICE EXPENSES,4311,P124979-SERVICE-1x mesh pen pot,05/03/2024 00:00,282971,3.11,TH0008,JKL SOLUTIONS LTD,26/02/2024 00:00,31/03/2024 00:00,P12-2024
,LEE VALLEY CARAVAN PARK,SUPPLIES AND SERVICES,OFFICE EXPENSES,4311,P125522-SERVICE-Stocktake,26/03/2024 00:00,283736,175,VE0038,VENNERS LTD,26/02/2024 00:00,31/03/2024 00:00,P12-2024
,LEE VALLEY CARAVAN PARK,SUPPLIES AND SERVICES,OFFICE EXPENSES,4311,P125423-SERVICE-Stationary supplies,26/03/2024 00:00,283757,66.39,TH0008,JKL SOLUTIONS LTD,26/02/2024 00:00,31/03/2024 00:00,P12-2024
,LEE VALLEY CARAVAN PARK,SUPPLIES AND SERVICES,OFFICE EXPENSES,4311,P125502-SERVICE-campsite stationary,31/03/2024 00:00,283960,120.44,TH0008,JKL SOLUTIONS LTD,26/02/2024 00:00,31/03/2024 00:00,P12-2024
P&V,MYDDLETON HSE HERITAGE CENTRE,SUPPLIES AND SERVICES,OFFICE EXPENSES,4311,P125221-SERVICE-STATIONARY /TILL ROLL,19/03/2024 00:00,283453,10.48,AM0406,AMAZON PAYMENTS UK LIMITED,26/02/2024 00:00,31/03/2024 00:00,P12-2024
P&V,MYDDLETON HSE HERITAGE CENTRE,SUPPLIES AND SERVICES,OFFICE EXPENSES,4311,P125221-SERVICE-STATIONARY /TILL ROLL,19/03/2024 00:00,283457,13.57,AM0406,AMAZON PAYMENTS UK LIMITED,26/02/2024 00:00,31/03/2024 00:00,P12-2024
P&V,MYDDLETON HSE HERITAGE CENTRE,SUPPLIES AND SERVICES,OFFICE EXPENSES,4311,P125221-SERVICE-STATIONARY /TILL ROLL,19/03/2024 00:00,283587,6.11,AM0406,AMAZON PAYMENTS UK LIMITED,26/02/2024 00:00,31/03/2024 00:00,P12-2024
P&V,MYDDLETON HSE HERITAGE CENTRE,SUPPLIES AND SERVICES,OFFICE EXPENSES,4311,P125221-SERVICE-STATIONARY /TILL ROLL,19/03/2024 00:00,283588,4.85,AM0406,AMAZON PAYMENTS UK LIMITED,26/02/2024 00:00,31/03/2024 00:00,P12-2024
P&V,SOUTH AREA RANGERS,SUPPLIES AND SERVICES,OFFICE EXPENSES,4311,P125133-SERVICE-6x Invisible Tape - KF02164,12/03/2024 00:00,283220,3.12,TH0008,JKL SOLUTIONS LTD,26/02/2024 00:00,31/03/2024 00:00,P12-2024
P&V,SOUTH AREA RANGERS,SUPPLIES AND SERVICES,OFFICE EXPENSES,4311,P125133-SERVICE-10x A5 Notebooks - EN08050,12/03/2024 00:00,283220,15.8,TH0008,JKL SOLUTIONS LTD,26/02/2024 00:00,31/03/2024 00:00,P12-2024
P&V,SOUTH AREA RANGERS,SUPPLIES AND SERVICES,OFFICE EXPENSES,4311,P125133-SERVICE-1x Sticky Tack - SE05680,12/03/2024 00:00,283220,2.03,TH0008,JKL SOLUTIONS LTD,26/02/2024 00:00,31/03/2024 00:00,P12-2024
P&V,SOUTH AREA RANGERS,SUPPLIES AND SERVICES,OFFICE EXPENSES,4311,P125133-SERVICE-1x Black Ball Point Pens - KF26040,12/03/2024 00:00,283220,3.45,TH0008,JKL SOLUTIONS LTD,26/02/2024 00:00,31/03/2024 00:00,P12-2024
P&V,SOUTH AREA RANGERS,SUPPLIES AND SERVICES,OFFICE EXPENSES,4311,P125133-SERVICE-1x A3 Copier Paper (Pack 500) - MO08330,12/03/2024 00:00,283220,9.9,TH0008,JKL SOLUTIONS LTD,26/02/2024 00:00,31/03/2024 00:00,P12-2024
P&V,SOUTH AREA RANGERS,SUPPLIES AND SERVICES,OFFICE EXPENSES,4311,P125133-SERVICE-3x A3 Laminating Pouches - KF04123,12/03/2024 00:00,283220,90.06,TH0008,JKL SOLUTIONS LTD,26/02/2024 00:00,31/03/2024 00:00,P12-2024
P&V,SOUTH AREA RANGERS,SUPPLIES AND SERVICES,OFFICE EXPENSES,4311,P125133-SERVICE-1x A4 Copier Paper (Pack 2500) - KF01087,12/03/2024 00:00,283220,22.75,TH0008,JKL SOLUTIONS LTD,26/02/2024 00:00,31/03/2024 00:00,P12-2024
P&V,WILDLIFE DISCOVERY CENTRE,SUPPLIES AND SERVICES,OFFICE EXPENSES,4311,P125301-SERVICE-5x Office A4 Card White Pk 20 - R121010,26/03/2024 00:00,283603,13.3,TH0008,JKL SOLUTIONS LTD,26/02/2024 00:00,31/03/2024 00:00,P12-2024
P&V,RIVER LEE COUNTRY PARK,SUPPLIES AND SERVICES,OFFICE EXPENSES,4311,P125162-SERVICE-1x Foolscap Box Files - Red - KF20016,31/03/2024 00:00,283958,24.26,TH0008,JKL SOLUTIONS LTD,26/02/2024 00:00,31/03/2024 00:00,P12-2024
P&V,RIVER LEE COUNTRY PARK,SUPPLIES AND SERVICES,OFFICE EXPENSES,4311,P125162-SERVICE-1x Dual Tip Marker Pens - Black - KF11343,31/03/2024 00:00,283958,5.24,TH0008,JKL SOLUTIONS LTD,26/02/2024 00:00,31/03/2024 00:00,P12-2024
,LV LEISURE CENTRE CAMPSITE,SUPPLIES AND SERVICES,OFFICE EXPENSES,4311,P125168-SERVICE-Stationary,12/03/2024 00:00,283219,153.07,TH0008,JKL SOLUTIONS LTD,26/02/2024 00:00,31/03/2024 00:00,P12-2024
,LV LEISURE CENTRE CAMPSITE,SUPPLIES AND SERVICES,OFFICE EXPENSES,4311,P125333-SERVICE-laminating pouches,19/03/2024 00:00,283356,62.37,TH0008,JKL SOLUTIONS LTD,26/02/2024 00:00,31/03/2024 00:00,P12-2024
,LV LEISURE CENTRE CAMPSITE,SUPPLIES AND SERVICES,OFFICE EXPENSES,4311,P125334-SERVICE-snap frames velcro laminator,19/03/2024 00:00,283358,131.38,TH0008,JKL SOLUTIONS LTD,26/02/2024 00:00,31/03/2024 00:00,P12-2024
,LV LEISURE CENTRE CAMPSITE,SUPPLIES AND SERVICES,OFFICE EXPENSES,4311,P125350-SERVICE-stock take,19/03/2024 00:00,283484,175,VE0038,VENNERS LTD,26/02/2024 00:00,31/03/2024 00:00,P12-2024
,LV LEISURE CENTRE CAMPSITE,SUPPLIES AND SERVICES,OFFICE EXPENSES,4311,EDM-COFFEE/CHOC/SUGAR STICKS,26/03/2024 00:00,283647,205.64,RI0176,RIJO 42 INGREDIENTS LIMITED,26/02/2024 00:00,31/03/2024 00:00,P12-2024
,LV LEISURE CENTRE CAMPSITE,SUPPLIES AND SERVICES,OFFICE EXPENSES,4311,EDM-COFFEE/CHOC/SUGAR STICKS,26/03/2024 00:00,283647,-212.14,RI0176,RIJO 42 INGREDIENTS LIMITED,26/02/2024 00:00,31/03/2024 00:00,P12-2024
,LV LEISURE CENTRE CAMPSITE,SUPPLIES AND SERVICES,OFFICE EXPENSES,4311,P125458-SERVICE-coffee supplies,26/03/2024 00:00,283647,212.14,RI0176,RIJO 42 INGREDIENTS LIMITED,26/02/2024 00:00,31/03/2024 00:00,P12-2024
,LV LEISURE CENTRE CAMPSITE,SUPPLIES AND SERVICES,OFFICE EXPENSES,4311,EDM-COFFEE/CHOC/SUGAR STICKS,26/03/2024 00:00,283647,6.5,RI0176,RIJO 42 INGREDIENTS LIMITED,26/02/2024 00:00,31/03/2024 00:00,P12-2024
,LV LEISURE CENTRE CAMPSITE,SUPPLIES AND SERVICES,OFFICE EXPENSES,4311,P125578-SERVICE-office stationary,31/03/2024 00:00,283959,104.95,TH0008,JKL SOLUTIONS LTD,26/02/2024 00:00,31/03/2024 00:00,P12-2024
R&B,INFORMATION TECHNOLOGY,SUPPLIES AND SERVICES,PHOTOCOPYING,4314,IT-QUARTERLY CHARGE-0403-0306/24,12/03/2024 00:00,283167,1566.78,KO0071,KONICA MINOLTA BUSINESS SOLUTIONS ( UK) LTD,26/02/2024 00:00,31/03/2024 00:00,P12-2024
R&B,INFORMATION TECHNOLOGY,SUPPLIES AND SERVICES,PHOTOCOPYING,4314,IT - QUARTERLY - 041223-030324,26/03/2024 00:00,283721,512.62,KO0071,KONICA MINOLTA BUSINESS SOLUTIONS ( UK) LTD,26/02/2024 00:00,31/03/2024 00:00,P12-2024
CEO,PR/COMMUNICATIONS,SUPPLIES AND SERVICES,PRINTING CORPORATE BROCHURES,4321,P124993-SERVICE-100 copies of 32pp full colour A4 perfect bou,19/03/2024 00:00,283286,252.57,SO0582,SOLOPRESS,26/02/2024 00:00,31/03/2024 00:00,P12-2024
R&B,FINANCE,SUPPLIES AND SERVICES,SUBSCRIPTIONS,4334,P124672-SERVICE-LGA WORKFORCE SUBSCRIPTION 2024/2025,12/03/2024 00:00,283209,468,LO0323,LOCAL GOVERNMENT IMPROVEMENT & DEVELOPMENT,26/02/2024 00:00,31/03/2024 00:00,P12-2024
P&V,MYDDELTON HOUSE,SUPPLIES AND SERVICES,POSTAGE & MAILING,4445,MD HOUSE-METER RE-SET,18/03/2024 00:00,283485,14.25,PI0021,PITNEY BOWES PURCHASE POWER,26/02/2024 00:00,31/03/2024 00:00,P12-2024
P&V,MYDDELTON HOUSE,SUPPLIES AND SERVICES,POSTAGE & MAILING,4445,MD HOUSE-METER RE-SET,18/03/2024 00:00,283485,1000,PI0021,PITNEY BOWES PURCHASE POWER,26/02/2024 00:00,31/03/2024 00:00,P12-2024
R&B,INFORMATION TECHNOLOGY,SUPPLIES AND SERVICES,TELEPHONES (OFFICE),4481,P123882-SERVICE-Monthly SIP - Oct 23 - Mar 24,12/03/2024 00:00,283222,126.2,FR0131,VOICEFLEX LTD,26/02/2024 00:00,31/03/2024 00:00,P12-2024
R&B,INFORMATION TECHNOLOGY,SUPPLIES AND SERVICES,TELEPHONES (OFFICE),4481,IT-TELEPHONE CHG-MARCH 2024,12/03/2024 00:00,283314,1345.71,ID0002,DAISY COMMUNICATIONS LTD,26/02/2024 00:00,31/03/2024 00:00,P12-2024
R&B,INFORMATION TECHNOLOGY,SUPPLIES AND SERVICES,TELEPHONES (OFFICE),4481,"P125290-SERVICE-CallSwitch Licence & Calls Jan, Feb & Mar 202",13/03/2024 00:00,283417,875.82,IQ0022,IQUAL,26/02/2024 00:00,31/03/2024 00:00,P12-2024
R&B,INFORMATION TECHNOLOGY,SUPPLIES AND SERVICES,TELEPHONES (MOBILE),4484,IT-MONTHLY MOBILE CHARGE,31/03/2024 00:00,283916,12.5,VO0010,VODAFONE  LIMITED (CORPORATE),26/02/2024 00:00,31/03/2024 00:00,P12-2024
R&B,INFORMATION TECHNOLOGY,SUPPLIES AND SERVICES,TELEPHONES (MOBILE),4484,IT-MONTHLY MOBILE CHARGE,31/03/2024 00:00,283916,961.28,VO0010,VODAFONE  LIMITED (CORPORATE),26/02/2024 00:00,31/03/2024 00:00,P12-2024
R&B,DEMOCRATIC REPRESENTATION & MA,SUPPLIES AND SERVICES,MEMBERS EXPENSES,4502,"P125099-SERVICE-Catering on 29/02/24 for 20 People, Delivery",12/03/2024 00:00,283203,149,SH0256,SHARRONS EVENT CATERING COMPANY LTD,26/02/2024 00:00,31/03/2024 00:00,P12-2024
P&V,VOLUNTEERS (L&E),SUPPLIES AND SERVICES,HOSPITALITY,4505,P125101-SERVICE-Food for 50 people at 7.45 per head plus VAT,31/03/2024 00:00,284145,372.5,SH0256,SHARRONS EVENT CATERING COMPANY LTD,26/02/2024 00:00,31/03/2024 00:00,P12-2024
P&V,ACTIVE COMMUNTIES PROJECTS,SUPPLIES AND SERVICES,HOSPITALITY,4505,P125480-SERVICE-Refreshments Wheelcahir tennis event,31/03/2024 00:00,284204,26.6,GR0097,GREENWICH LEISURE LTD,26/02/2024 00:00,31/03/2024 00:00,P12-2024
P&V,SOUTH AREA RANGERS,SUPPLIES AND SERVICES,VOLUNTEERS EXPENSES,4506,TESCO-MILK,12/03/2024 00:00,283359,7.2,FI0001,DIRECTOR OF FINANCE - CASH,26/02/2024 00:00,31/03/2024 00:00,P12-2024
P&V,SOUTH AREA RANGERS,SUPPLIES AND SERVICES,VOLUNTEERS EXPENSES,4506,LDL-VOLUNTEERS-MILK,12/03/2024 00:00,283359,1.55,FI0001,DIRECTOR OF FINANCE - CASH,26/02/2024 00:00,31/03/2024 00:00,P12-2024
P&V,SOUTH AREA RANGERS,SUPPLIES AND SERVICES,VOLUNTEERS EXPENSES,4506,TESCO-SUGAR,12/03/2024 00:00,283359,4.75,FI0001,DIRECTOR OF FINANCE - CASH,26/02/2024 00:00,31/03/2024 00:00,P12-2024
,LEE VALLEY MARINA STANSTEAD,INTERNAL HOSPITALITY,INTERNAL HOSPITALITY,4507,P123533-SERVICE-milk covering oct23-apr 24,12/03/2024 00:00,283210,22.4,HA0259,STUART BARTON-HAGGER LIMITED,26/02/2024 00:00,31/03/2024 00:00,P12-2024
,LEE VALLEY MARINA STANSTEAD,INTERNAL HOSPITALITY,INTERNAL HOSPITALITY,4507,P125611-SERVICE-milkman  11/3-6/4,31/03/2024 00:00,284231,20.8,HA0259,STUART BARTON-HAGGER LIMITED,26/02/2024 00:00,31/03/2024 00:00,P12-2024
,LEE VALLEY CAMPSITE,SUPPLIES AND SERVICES,MARKETING,4603,P125148-SERVICE-SC Annual Subscription Renewal,06/03/2024 00:00,282286,89.99,UK0025,UK CAMPSITE CO UK,26/02/2024 00:00,31/03/2024 00:00,P12-2024
,LEE VALLEY CARAVAN PARK,SUPPLIES AND SERVICES,MARKETING,4603,P125148-SERVICE-DW Annual Subscription Renewal,06/03/2024 00:00,282286,89.99,UK0025,UK CAMPSITE CO UK,26/02/2024 00:00,31/03/2024 00:00,P12-2024
,LEE VALLEY CARAVAN PARK,SUPPLIES AND SERVICES,MARKETING,4603,P125147-SERVICE-Amelia photo shoot,05/03/2024 00:00,282968,270,ON0139,ONE VISON PHOTOS,26/02/2024 00:00,31/03/2024 00:00,P12-2024
,LEE VALLEY CARAVAN PARK,SUPPLIES AND SERVICES,MARKETING,4603,P125304-SERVICE-Marketing,12/03/2024 00:00,283382,89.99,UK0025,UK CAMPSITE CO UK,26/02/2024 00:00,31/03/2024 00:00,P12-2024
P&V,MYDDELTON HOUSE GARDENS,SUPPLIES AND SERVICES,MARKETING,4603,P124984-SERVICE-gardens leaflet 2024,05/03/2024 00:00,282873,395,PR0293,ELLE MEDIA GROUP,26/02/2024 00:00,31/03/2024 00:00,P12-2024
,LV LEISURE CENTRE GOLF COURSE,SUPPLIES AND SERVICES,MARKETING,4603,P124986-SERVICE-Golf Loyalty Cards,26/03/2024 00:00,283289,45.25,SO0582,SOLOPRESS,26/02/2024 00:00,31/03/2024 00:00,P12-2024
P&V,LEE VALLEY FARM HOLYFIELDHALL,SUPPLIES AND SERVICES,PEST CONTROL,4625,P123697-SERVICE-Rats & Mice Control,13/03/2024 00:00,283367,125,VE0006,VERMINATE CITY & RURAL PEST CONTROL LTD,26/02/2024 00:00,31/03/2024 00:00,P12-2024
P&V,NORTH AREA RANGERS,SUPPLIES AND SERVICES,PEST CONTROL,4625,P122082-SERVICE-Pest Control - North Sites - Dec,19/03/2024 00:00,283362,73.33,VE0006,VERMINATE CITY & RURAL PEST CONTROL LTD,26/02/2024 00:00,31/03/2024 00:00,P12-2024
P&V,NORTH AREA RANGERS,SUPPLIES AND SERVICES,PEST CONTROL,4625,P122060-SERVICE-Pest Control - Ware Town Centre - Mar,19/03/2024 00:00,283363,70,VE0006,VERMINATE CITY & RURAL PEST CONTROL LTD,26/02/2024 00:00,31/03/2024 00:00,P12-2024
P&V,SOUTH AREA RANGERS,SUPPLIES AND SERVICES,PEST CONTROL,4625,P122058-SERVICE-Pest Control - Tottenham Marshes - Mar,19/03/2024 00:00,283366,70,VE0006,VERMINATE CITY & RURAL PEST CONTROL LTD,26/02/2024 00:00,31/03/2024 00:00,P12-2024
P&V,ABBEY GARDENS,SUPPLIES AND SERVICES,PEST CONTROL,4625,P122082-SERVICE-Pest Control - North Sites - Dec,19/03/2024 00:00,283362,36.67,VE0006,VERMINATE CITY & RURAL PEST CONTROL LTD,26/02/2024 00:00,31/03/2024 00:00,P12-2024
P&V,FORMER LV LIDO SITE,SUPPLIES AND SERVICES,PEST CONTROL,4625,P122082-SERVICE-Pest Control - North Sites - Mar,19/03/2024 00:00,283362,36.67,VE0006,VERMINATE CITY & RURAL PEST CONTROL LTD,26/02/2024 00:00,31/03/2024 00:00,P12-2024
P&V,FORMER LV LIDO SITE,SUPPLIES AND SERVICES,PEST CONTROL,4625,P122082-SERVICE-Pest Control - North Sites - Dec,19/03/2024 00:00,283362,36.67,VE0006,VERMINATE CITY & RURAL PEST CONTROL LTD,26/02/2024 00:00,31/03/2024 00:00,P12-2024
P&V,FORMER LV LIDO SITE,SUPPLIES AND SERVICES,PEST CONTROL,4625,P122082-SERVICE-Pest Control - North Sites - Nov,19/03/2024 00:00,283362,36.66,VE0006,VERMINATE CITY & RURAL PEST CONTROL LTD,26/02/2024 00:00,31/03/2024 00:00,P12-2024
,LEE VALLEY MARINA SPRINGFIELD,SUPPLIES AND SERVICES,MERCHANT PROCESSING CHARGES,4641,MONTHLY FEE,05/03/2024 00:00,282967,30,WO0338,WORLDPAY,26/02/2024 00:00,31/03/2024 00:00,P12-2024
,LEE VALLEY MARINA SPRINGFIELD,SUPPLIES AND SERVICES,MERCHANT PROCESSING CHARGES,4641,MONTHLY FEE,31/03/2024 00:00,284218,30,WO0338,WORLDPAY,26/02/2024 00:00,31/03/2024 00:00,P12-2024
,LEE VALLEY MARINA STANSTEAD,SUPPLIES AND SERVICES,MERCHANT PROCESSING CHARGES,4641,MONTHLY FEE,05/03/2024 00:00,282967,30,WO0338,WORLDPAY,26/02/2024 00:00,31/03/2024 00:00,P12-2024
,LEE VALLEY MARINA STANSTEAD,SUPPLIES AND SERVICES,MERCHANT PROCESSING CHARGES,4641,MONTHLY FEE,31/03/2024 00:00,284218,30,WO0338,WORLDPAY,26/02/2024 00:00,31/03/2024 00:00,P12-2024
P&V,MYDDELTON HOUSE,SUPPLIES AND SERVICES,CASH COLLECTIONS,4642,CASH COLLECTION -FEB2024,20/03/2024 00:00,283374,-24.86,SE0692,SECURITY PLUS LTD,26/02/2024 00:00,31/03/2024 00:00,P12-2024
P&V,MYDDELTON HOUSE,SUPPLIES AND SERVICES,CASH COLLECTIONS,4642,P125428-SERVICE-Myddelton House,20/03/2024 00:00,283374,24.86,SE0692,SECURITY PLUS LTD,26/02/2024 00:00,31/03/2024 00:00,P12-2024
,LEE VALLEY MARINA SPRINGFIELD,SUPPLIES AND SERVICES,CASH COLLECTIONS,4642,P125428-SERVICE-Springfield Marina,20/03/2024 00:00,283374,24.86,SE0692,SECURITY PLUS LTD,26/02/2024 00:00,31/03/2024 00:00,P12-2024
,LEE VALLEY MARINA STANSTEAD,SUPPLIES AND SERVICES,CASH COLLECTIONS,4642,P125428-SERVICE-Stanstead marina,20/03/2024 00:00,283374,24.86,SE0692,SECURITY PLUS LTD,26/02/2024 00:00,31/03/2024 00:00,P12-2024
,LEE VALLEY CAMPSITE,SUPPLIES AND SERVICES,CASH COLLECTIONS,4642,P125428-SERVICE-Sewardstone Campsite,20/03/2024 00:00,283374,24.86,SE0692,SECURITY PLUS LTD,26/02/2024 00:00,31/03/2024 00:00,P12-2024
,LEE VALLEY CARAVAN PARK,SUPPLIES AND SERVICES,CASH COLLECTIONS,4642,P125428-SERVICE-Dobbs Weir campsite,20/03/2024 00:00,283374,12.43,SE0692,SECURITY PLUS LTD,26/02/2024 00:00,31/03/2024 00:00,P12-2024
P&V,MYDDELTON HOUSE GARDENS,SUPPLIES AND SERVICES,CASH COLLECTIONS,4642,CASH COLLECTION -FEB2024,20/03/2024 00:00,283374,12.43,SE0692,SECURITY PLUS LTD,26/02/2024 00:00,31/03/2024 00:00,P12-2024
P&V,MYDDLETON HSE HERITAGE CENTRE,SUPPLIES AND SERVICES,CASH COLLECTIONS,4642,CASH COLLECTION -FEB2024,20/03/2024 00:00,283374,12.43,SE0692,SECURITY PLUS LTD,26/02/2024 00:00,31/03/2024 00:00,P12-2024
,LV LEISURE CENTRE CAMPSITE,SUPPLIES AND SERVICES,CASH COLLECTIONS,4642,P125428-SERVICE-Edmonton Campsite,20/03/2024 00:00,283374,49.72,SE0692,SECURITY PLUS LTD,26/02/2024 00:00,31/03/2024 00:00,P12-2024
R&B,FINANCE & RESOURCES MANAGEMENT,SUPPLIES AND SERVICES,DEBT RECOVERY FEES,4646,DEBT RECOVERY FEE,20/03/2024 00:00,283686,520.36,LE0069,LEGAL RECOVERIES AND COLLECTIONS LIMITED,26/02/2024 00:00,31/03/2024 00:00,P12-2024
R&B,FINANCE & RESOURCES MANAGEMENT,SUPPLIES AND SERVICES,DEBT RECOVERY FEES,4646,DEBT RECOVERY FEE,20/03/2024 00:00,283686,70,LE0069,LEGAL RECOVERIES AND COLLECTIONS LIMITED,26/02/2024 00:00,31/03/2024 00:00,P12-2024
R&B,FINANCE & RESOURCES MANAGEMENT,SUPPLIES AND SERVICES,DEBT RECOVERY FEES,4646,DEBT RECOVERY FEE,20/03/2024 00:00,283686,-590.36,LE0069,LEGAL RECOVERIES AND COLLECTIONS LIMITED,26/02/2024 00:00,31/03/2024 00:00,P12-2024
R&B,FINANCE & RESOURCES MANAGEMENT,SUPPLIES AND SERVICES,DEBT RECOVERY FEES,4646,P121343-SERVICE-DEBT RECOVERY FEES 2023/2024,20/03/2024 00:00,283686,590.36,LE0069,LEGAL RECOVERIES AND COLLECTIONS LIMITED,26/02/2024 00:00,31/03/2024 00:00,P12-2024
,LEE VALLEY CARAVAN PARK,SUPPLIES AND SERVICES,SECURITY,4650,P125002-SERVICE-Call Out Charge For Second Barrier Issue,05/03/2024 00:00,282679,345,AU0245,AUTO-MATE SYSTEMS LIMITED,26/02/2024 00:00,31/03/2024 00:00,P12-2024
P&V,NORTH AREA RANGERS,SUPPLIES AND SERVICES,SECURITY,4650,P125314-SERVICE-Security - North of Park,19/03/2024 00:00,283427,473.58,PA0059,PARKGUARD LTD,26/02/2024 00:00,31/03/2024 00:00,P12-2024
P&V,NORTH AREA RANGERS,SUPPLIES AND SERVICES,SECURITY,4650,P124148-SERVICE-Security - North of Park,19/03/2024 00:00,283427,5000,PA0059,PARKGUARD LTD,26/02/2024 00:00,31/03/2024 00:00,P12-2024
P&V,NORTH AREA RANGERS,SUPPLIES AND SERVICES,SECURITY,4650,P124148-SERVICE-Security - North of Park,19/03/2024 00:00,283427,2227.66,PA0059,PARKGUARD LTD,26/02/2024 00:00,31/03/2024 00:00,P12-2024
P&V,SOUTH AREA RANGERS,SUPPLIES AND SERVICES,SECURITY,4650,P124149-SERVICE-Security - South of Park,19/03/2024 00:00,283426,1795.11,PA0059,PARKGUARD LTD,26/02/2024 00:00,31/03/2024 00:00,P12-2024
P&V,SOUTH AREA RANGERS,SUPPLIES AND SERVICES,SECURITY,4650,P125313-SERVICE-Security - South of Park,19/03/2024 00:00,283426,9241.89,PA0059,PARKGUARD LTD,26/02/2024 00:00,31/03/2024 00:00,P12-2024
CEO,PR/COMMUNICATIONS,SUPPLIES AND SERVICES,SPECIAL MARKETING PROJECTS,4652,P123553-SERVICE-Lee Valley VeloPark track barrier graphics,26/03/2024 00:00,283754,455,LT0386,LTD LTD,26/02/2024 00:00,31/03/2024 00:00,P12-2024
CEO,PR/COMMUNICATIONS,SUPPLIES AND SERVICES,ADVERTISING - AWARENESS,4656,P125419-SERVICE-DAX advert with Global - 25 March 2024,31/03/2024 00:00,284379,400,ES0268,ESSEX COUNTY COUNCIL,26/02/2024 00:00,31/03/2024 00:00,P12-2024
CEO,PR/COMMUNICATIONS,SUPPLIES AND SERVICES,ONLINE ADVERTISING,4657,P125034-SERVICE-Renewal and maintenance of access guides - en,26/03/2024 00:00,283870,400,AC0479,DISABLED ENABLED LIMITED t/a ACCESS ABLE,26/02/2024 00:00,31/03/2024 00:00,P12-2024
CEO,PR/COMMUNICATIONS,SUPPLIES AND SERVICES,ARTWORK,4664,P124905-SERVICE-Celebrating 10 years logo,26/03/2024 00:00,283741,684,BL0393,BLUE SEA DESIGN,26/02/2024 00:00,31/03/2024 00:00,P12-2024
CEO,PR/COMMUNICATIONS,SUPPLIES AND SERVICES,ARTWORK,4664,P125217-SERVICE-Additonal cost for infographics,31/03/2024 00:00,284455,500,ID0174,IDEAS LIBRARY LTD,26/02/2024 00:00,31/03/2024 00:00,P12-2024
CEO,PR/COMMUNICATIONS,SUPPLIES AND SERVICES,ARTWORK,4664,P125217-SERVICE-10 Year Anniversary Campaign Assets,31/03/2024 00:00,284455,1450,ID0174,IDEAS LIBRARY LTD,26/02/2024 00:00,31/03/2024 00:00,P12-2024
CEO,PR/COMMUNICATIONS,SUPPLIES AND SERVICES,PHOTOGRAPHY,4665,P125421-SERVICE-Timeline showreel - animation,31/03/2024 00:00,284458,600,ID0174,IDEAS LIBRARY LTD,26/02/2024 00:00,31/03/2024 00:00,P12-2024
CEO,LEGAL SERVICES,SUPPLIES AND SERVICES,OFFSITE ARCHIVED STORAGE,4667,P125317-SERVICE-Off site storage February 2024,13/03/2024 00:00,283309,511.27,DA0154,RESTORE PLC,26/02/2024 00:00,31/03/2024 00:00,P12-2024
CEO,LEGAL SERVICES,SUPPLIES AND SERVICES,OFFSITE ARCHIVED STORAGE,4667,P125706-SERVICE-Off Site sorage March  2024,31/03/2024 00:00,284436,418.28,DA0154,RESTORE PLC,26/02/2024 00:00,31/03/2024 00:00,P12-2024
,LEE VALLEY CAMPSITE,SUPPLIES AND SERVICES,ENTERTAINMENT & OTHER LICENCES,4711,P124568-SERVICE-SC Survey,26/03/2024 00:00,283200,1300,SI0674,SITE ANALYTICAL SERVICES LIMITED,26/02/2024 00:00,31/03/2024 00:00,P12-2024
P&V,LEE VALLEY FARM HOLYFIELDHALL,THIRD PARTY PAYMENTS,VETERINARY SERVICES,4718,P125271-SERVICE-Vets,12/03/2024 00:00,283334,547.11,HA0443,HAMPDEN VETERINARY HOSPITAL,26/02/2024 00:00,31/03/2024 00:00,P12-2024
P&V,YOUTH AND SCHOOLS,SUPPLIES AND SERVICES,ACTIVITIES (SCHOOLS),4725,P124911-SERVICE-90 Orienteering maps RLCP,12/03/2024 00:00,283132,100,CH0294,CHIGWELL & EPPING FOREST ORIENTEERING CLUB,26/02/2024 00:00,31/03/2024 00:00,P12-2024
P&V,YOUTH AND SCHOOLS,SUPPLIES AND SERVICES,ACTIVITIES (SCHOOLS),4725,VEG FOR SCHOOL CLASS,27/03/2024 00:00,283922,5.08,FI0001,DIRECTOR OF FINANCE - CASH,26/02/2024 00:00,31/03/2024 00:00,P12-2024
P&V,YOUTH AND SCHOOLS,SUPPLIES AND SERVICES,FACILITIES HIRE,4752,P125628-SERVICE-Abbey Farmhouse room hire Jan- Mar 2024,31/03/2024 00:00,284235,293.04,WA0108,WALTHAM ABBEY PAROCHIAL CHURCH COUNCIL,26/02/2024 00:00,31/03/2024 00:00,P12-2024
P&V,MYDDLETON HSE HERITAGE CENTRE,SUPPLIES AND SERVICES,NET CATERING PURCHASES,4777,"LIDL-HAM, CHEESE, BUNS & MUFFINS",05/03/2024 00:00,282969,20.74,FI0001,DIRECTOR OF FINANCE - CASH,26/02/2024 00:00,31/03/2024 00:00,P12-2024
P&V,MYDDLETON HSE HERITAGE CENTRE,SUPPLIES AND SERVICES,NET CATERING PURCHASES,4777,HUXLEY MINI MARKET-MILK,05/03/2024 00:00,282969,3.98,FI0001,DIRECTOR OF FINANCE - CASH,26/02/2024 00:00,31/03/2024 00:00,P12-2024
P&V,MYDDLETON HSE HERITAGE CENTRE,SUPPLIES AND SERVICES,NET CATERING PURCHASES,4777,HUXLEY MINI MARKET-MILK,05/03/2024 00:00,282969,5.97,FI0001,DIRECTOR OF FINANCE - CASH,26/02/2024 00:00,31/03/2024 00:00,P12-2024
P&V,MYDDLETON HSE HERITAGE CENTRE,SUPPLIES AND SERVICES,NET CATERING PURCHASES,4777,"TESCO-FRUIT, YOGHURT, BREAD",05/03/2024 00:00,282969,15.39,FI0001,DIRECTOR OF FINANCE - CASH,26/02/2024 00:00,31/03/2024 00:00,P12-2024
P&V,MYDDLETON HSE HERITAGE CENTRE,SUPPLIES AND SERVICES,NET CATERING PURCHASES,4777,P125019-SERVICE-catering goods,05/03/2024 00:00,282979,-302.85,360001,BIDFOOD,26/02/2024 00:00,31/03/2024 00:00,P12-2024
P&V,MYDDLETON HSE HERITAGE CENTRE,SUPPLIES AND SERVICES,NET CATERING PURCHASES,4777,BTR-FOOD & DRINKS,05/03/2024 00:00,282981,216.85,360001,BIDFOOD,26/02/2024 00:00,31/03/2024 00:00,P12-2024
P&V,MYDDLETON HSE HERITAGE CENTRE,SUPPLIES AND SERVICES,NET CATERING PURCHASES,4777,BTR-FOOD & DRINKS,05/03/2024 00:00,282981,-248.45,360001,BIDFOOD,26/02/2024 00:00,31/03/2024 00:00,P12-2024
P&V,MYDDLETON HSE HERITAGE CENTRE,SUPPLIES AND SERVICES,NET CATERING PURCHASES,4777,P125019-SERVICE-catering goods,05/03/2024 00:00,282981,248.45,360001,BIDFOOD,26/02/2024 00:00,31/03/2024 00:00,P12-2024
P&V,MYDDLETON HSE HERITAGE CENTRE,SUPPLIES AND SERVICES,NET CATERING PURCHASES,4777,BTR-FOOD & DRINKS,05/03/2024 00:00,282981,31.6,360001,BIDFOOD,26/02/2024 00:00,31/03/2024 00:00,P12-2024
P&V,MYDDLETON HSE HERITAGE CENTRE,SUPPLIES AND SERVICES,NET CATERING PURCHASES,4777,BTR-FOOD/DRINKS,05/03/2024 00:00,283121,-313.2,360001,BIDFOOD,26/02/2024 00:00,31/03/2024 00:00,P12-2024
P&V,MYDDLETON HSE HERITAGE CENTRE,SUPPLIES AND SERVICES,NET CATERING PURCHASES,4777,BTR-FOOD/DRINKS,05/03/2024 00:00,283121,264.86,360001,BIDFOOD,26/02/2024 00:00,31/03/2024 00:00,P12-2024
P&V,MYDDLETON HSE HERITAGE CENTRE,SUPPLIES AND SERVICES,NET CATERING PURCHASES,4777,BTR-FOOD/DRINKS,05/03/2024 00:00,283121,48.34,360001,BIDFOOD,26/02/2024 00:00,31/03/2024 00:00,P12-2024
P&V,MYDDLETON HSE HERITAGE CENTRE,SUPPLIES AND SERVICES,NET CATERING PURCHASES,4777,P125130-SERVICE-catering goods,05/03/2024 00:00,283121,313.2,360001,BIDFOOD,26/02/2024 00:00,31/03/2024 00:00,P12-2024
P&V,MYDDLETON HSE HERITAGE CENTRE,SUPPLIES AND SERVICES,NET CATERING PURCHASES,4777,P124717-SERVICE-CATERING GOODS,05/03/2024 00:00,283136,48.98,JJ0188,JJ FOOD SERVICE LIMITED,26/02/2024 00:00,31/03/2024 00:00,P12-2024
